Workbook

Sheet INSTRUÇÕES
F3: Após fazer a seleção nos filtros pelo tipo de prova, escalão, etc tem de carregar neste botão para ordenar da Melhor Marca para a Pior Marca, esta ordenação também formata o numero de casas decimais de cada marca.
F9: Caso pretenda apenas a melhor marca de cada atleta deve carregar neste botão.
F15: Após ter feito filtros, ordenações, etc este botão permite voltar a colocar tudo na "posição inicial"
F21: Após ter executado o SB serve para retirar o filtro SB e ver de novo todas as marcas

Sheet Resultados
A5: Ser | B5: Cod | C5: Jorn | D5: Data | E5: Época | F5: Prova | G5: Local | H5: Tipo | I5: Especialidade | J5: Escalão | K5: Nasc | L5: Gen | M5: LicFPA | N5: Atleta | O5: Clube | P5: Marca | Q5: Gen+Esp+Dorsal | R5: Melhor | S5: MarcaC | T5: Vento | U5: Tipo Marca
A6: 1 | B6: 2024001 | D6: =IF(C6=2,VLOOKUP($B6,Competicoes!$A$2:$F$66,4,FALSE)+1,VLOOKUP($B6,Competicoes!$A$2:$F$66,4,FALSE)) -> 2019-11-09 | E6: =VLOOKUP($B6,Competicoes!$A$2:$F$66,6,FALSE) -> 2019-20 | F6: =VLOOKUP($B6,Competicoes!$A$2:$F$66,5,FALSE) -> Torneio de Abertura Prof. Mário Avelino | G6: =VLOOKUP($B6,Competicoes!$A$2:$F$66,2,FALSE) -> Óbidos | H6: =LEFT(VLOOKUP($B6,Competicoes!$A$2:$F$66,3,FALSE),2) -> AL | I6: 60 | J6: =VLOOKUP($M6,'Atletas2019-20'!$A$3:$G$1358,7,FALSE) -> Ben-B | K6: =VLOOKUP($M6,'Atletas2019-20'!$A$3:$F$1358,5,FALSE) -> 2009 | L6: =VLOOKUP($M6,'Atletas2019-20'!$A$3:$F$1358,3,FALSE) -> F | M6: 152002 | N6: =VLOOKUP($M6,'Atletas2019-20'!$A$3:$F$1358,2,FALSE) -> Matilde Silva | O6: =VLOOKUP($M6,'Atletas2019-20'!$A$3:$F$1358,6,FALSE) -> JV | P6: 10.44 | Q6: =L6&I6&M6 -> F60152002 | R6: =IF(COUNTIF($Q$6:Q6,Q6)=1,"SB","") -> SB | S6: =SIGN(P6)*P6 -> 10.44 | T6: -0.3 | U6: 1
A7: 2 | B7: 2024001 | D7: =IF(C7=2,VLOOKUP($B7,Competicoes!$A$2:$F$66,4,FALSE)+1,VLOOKUP($B7,Competicoes!$A$2:$F$66,4,FALSE)) -> 2019-11-09 | E7: =VLOOKUP($B7,Competicoes!$A$2:$F$66,6,FALSE) -> 2019-20 | F7: =VLOOKUP($B7,Competicoes!$A$2:$F$66,5,FALSE) -> Torneio de Abertura Prof. Mário Avelino | G7: =VLOOKUP($B7,Competicoes!$A$2:$F$66,2,FALSE) -> Óbidos | H7: =LEFT(VLOOKUP($B7,Competicoes!$A$2:$F$66,3,FALSE),2) -> AL | I7: 60 | J7: =VLOOKUP($M7,'Atletas2019-20'!$A$3:$G$1358,7,FALSE) -> Ben-B | K7: =VLOOKUP($M7,'Atletas2019-20'!$A$3:$F$1358,5,FALSE) -> 2009 | L7: =VLOOKUP($M7,'Atletas2019-20'!$A$3:$F$1358,3,FALSE) -> F | M7: 143522 | N7: =VLOOKUP($M7,'Atletas2019-20'!$A$3:$F$1358,2,FALSE) -> Carolina Mateus | O7: =VLOOKUP($M7,'Atletas2019-20'!$A$3:$F$1358,6,FALSE) -> GRFB | P7: 10.64 | Q7: F60143522 | R7: =IF(COUNTIF($Q$6:Q7,Q7)=1,"SB","") -> SB | S7: 10.64 | T7: -0.3 | U7: 1
A8: 3 | B8: 2024001 | D8: =IF(C8=2,VLOOKUP($B8,Competicoes!$A$2:$F$66,4,FALSE)+1,VLOOKUP($B8,Competicoes!$A$2:$F$66,4,FALSE)) -> 2019-11-09 | E8: =VLOOKUP($B8,Competicoes!$A$2:$F$66,6,FALSE) -> 2019-20 | F8: =VLOOKUP($B8,Competicoes!$A$2:$F$66,5,FALSE) -> Torneio de Abertura Prof. Mário Avelino | G8: =VLOOKUP($B8,Competicoes!$A$2:$F$66,2,FALSE) -> Óbidos | H8: =LEFT(VLOOKUP($B8,Competicoes!$A$2:$F$66,3,FALSE),2) -> AL | I8: 60 | J8: =VLOOKUP($M8,'Atletas2019-20'!$A$3:$G$1358,7,FALSE) -> Ben-B | K8: =VLOOKUP($M8,'Atletas2019-20'!$A$3:$F$1358,5,FALSE) -> 2010 | L8: =VLOOKUP($M8,'Atletas2019-20'!$A$3:$F$1358,3,FALSE) -> F | M8: 145877 | N8: =VLOOKUP($M8,'Atletas2019-20'!$A$3:$F$1358,2,FALSE) -> Francisca Reis | O8: =VLOOKUP($M8,'Atletas2019-20'!$A$3:$F$1358,6,FALSE) -> JV | P8: 10.84 | Q8: F60145877 | R8: =IF(COUNTIF($Q$6:Q8,Q8)=1,"SB","") -> SB | S8: 10.84 | T8: -0.3 | U8: 1
A9: 4 | B9: 2024001 | D9: =IF(C9=2,VLOOKUP($B9,Competicoes!$A$2:$F$66,4,FALSE)+1,VLOOKUP($B9,Competicoes!$A$2:$F$66,4,FALSE)) -> 2019-11-09 | E9: =VLOOKUP($B9,Competicoes!$A$2:$F$66,6,FALSE) -> 2019-20 | F9: =VLOOKUP($B9,Competicoes!$A$2:$F$66,5,FALSE) -> Torneio de Abertura Prof. Mário Avelino | G9: =VLOOKUP($B9,Competicoes!$A$2:$F$66,2,FALSE) -> Óbidos | H9: =LEFT(VLOOKUP($B9,Competicoes!$A$2:$F$66,3,FALSE),2) -> AL | I9: 60 | J9: =VLOOKUP($M9,'Atletas2019-20'!$A$3:$G$1358,7,FALSE) -> Ben-B | K9: =VLOOKUP($M9,'Atletas2019-20'!$A$3:$F$1358,5,FALSE) -> 2010 | L9: =VLOOKUP($M9,'Atletas2019-20'!$A$3:$F$1358,3,FALSE) -> F | M9: 140556 | N9: =VLOOKUP($M9,'Atletas2019-20'!$A$3:$F$1358,2,FALSE) -> Lara Simões | O9: =VLOOKUP($M9,'Atletas2019-20'!$A$3:$F$1358,6,FALSE) -> JV | P9: 12.14 | Q9: F60140556 | R9: =IF(COUNTIF($Q$6:Q9,Q9)=1,"SB","") -> SB | S9: 12.14 | T9: -0.3 | U9: 1
A10: 5 | B10: 2024001 | D10: =IF(C10=2,VLOOKUP($B10,Competicoes!$A$2:$F$66,4,FALSE)+1,VLOOKUP($B10,Competicoes!$A$2:$F$66,4,FALSE)) -> 2019-11-09 | E10: =VLOOKUP($B10,Competicoes!$A$2:$F$66,6,FALSE) -> 2019-20 | F10: =VLOOKUP($B10,Competicoes!$A$2:$F$66,5,FALSE) -> Torneio de Abertura Prof. Mário Avelino | G10: =VLOOKUP($B10,Competicoes!$A$2:$F$66,2,FALSE) -> Óbidos | H10: =LEFT(VLOOKUP($B10,Competicoes!$A$2:$F$66,3,FALSE),2) -> AL | I10: 60 | J10: =VLOOKUP($M10,'Atletas2019-20'!$A$3:$G$1358,7,FALSE) -> Ben-B | K10: =VLOOKUP($M10,'Atletas2019-20'!$A$3:$F$1358,5,FALSE) -> 2009 | L10: =VLOOKUP($M10,'Atletas2019-20'!$A$3:$F$1358,3,FALSE) -> F | M10: 158775 | N10: =VLOOKUP($M10,'Atletas2019-20'!$A$3:$F$1358,2,FALSE) -> Sofia Ferromau | O10: =VLOOKUP($M10,'Atletas2019-20'!$A$3:$F$1358,6,FALSE) -> CDBBR | P10: 12.64 | Q10: F60158775 | R10: =IF(COUNTIF($Q$6:Q10,Q10)=1,"SB","") -> SB | S10: 12.64 | T10: -0.3 | U10: 1
A11: 6 | B11: 2024001 | D11: =IF(C11=2,VLOOKUP($B11,Competicoes!$A$2:$F$66,4,FALSE)+1,VLOOKUP($B11,Competicoes!$A$2:$F$66,4,FALSE)) -> 2019-11-09 | E11: =VLOOKUP($B11,Competicoes!$A$2:$F$66,6,FALSE) -> 2019-20 | F11: =VLOOKUP($B11,Competicoes!$A$2:$F$66,5,FALSE) -> Torneio de Abertura Prof. Mário Avelino | G11: =VLOOKUP($B11,Competicoes!$A$2:$F$66,2,FALSE) -> Óbidos | H11: =LEFT(VLOOKUP($B11,Competicoes!$A$2:$F$66,3,FALSE),2) -> AL | I11: 60 | J11: =VLOOKUP($M11,'Atletas2019-20'!$A$3:$G$1358,7,FALSE) -> Ben-B | K11: =VLOOKUP($M11,'Atletas2019-20'!$A$3:$F$1358,5,FALSE) -> 2010 | L11: =VLOOKUP($M11,'Atletas2019-20'!$A$3:$F$1358,3,FALSE) -> M | M11: 157958 | N11: =VLOOKUP($M11,'Atletas2019-20'!$A$3:$F$1358,2,FALSE) -> Tomás Lopes | O11: =VLOOKUP($M11,'Atletas2019-20'!$A$3:$F$1358,6,FALSE) -> JV | P11: 10.44 | Q11: M60157958 | R11: =IF(COUNTIF($Q$6:Q11,Q11)=1,"SB","") -> SB | S11: 10.44 | T11: -2.2 | U11: 1
A12: 7 | B12: 2024001 | D12: =IF(C12=2,VLOOKUP($B12,Competicoes!$A$2:$F$66,4,FALSE)+1,VLOOKUP($B12,Competicoes!$A$2:$F$66,4,FALSE)) -> 2019-11-09 | E12: =VLOOKUP($B12,Competicoes!$A$2:$F$66,6,FALSE) -> 2019-20 | F12: =VLOOKUP($B12,Competicoes!$A$2:$F$66,5,FALSE) -> Torneio de Abertura Prof. Mário Avelino | G12: =VLOOKUP($B12,Competicoes!$A$2:$F$66,2,FALSE) -> Óbidos | H12: =LEFT(VLOOKUP($B12,Competicoes!$A$2:$F$66,3,FALSE),2) -> AL | I12: 60 | J12: =VLOOKUP($M12,'Atletas2019-20'!$A$3:$G$1358,7,FALSE) -> Ben-B | K12: =VLOOKUP($M12,'Atletas2019-20'!$A$3:$F$1358,5,FALSE) -> 2010 | L12: =VLOOKUP($M12,'Atletas2019-20'!$A$3:$F$1358,3,FALSE) -> M | M12: 158401 | N12: =VLOOKUP($M12,'Atletas2019-20'!$A$3:$F$1358,2,FALSE) -> Diego Música | O12: =VLOOKUP($M12,'Atletas2019-20'!$A$3:$F$1358,6,FALSE) -> JV | P12: 10.64 | Q12: M60158401 | R12: =IF(COUNTIF($Q$6:Q12,Q12)=1,"SB","") -> SB | S12: 10.64 | T12: -2.2 | U12: 1
A13: 8 | B13: 2024001 | D13: =IF(C13=2,VLOOKUP($B13,Competicoes!$A$2:$F$66,4,FALSE)+1,VLOOKUP($B13,Competicoes!$A$2:$F$66,4,FALSE)) -> 2019-11-09 | E13: =VLOOKUP($B13,Competicoes!$A$2:$F$66,6,FALSE) -> 2019-20 | F13: =VLOOKUP($B13,Competicoes!$A$2:$F$66,5,FALSE) -> Torneio de Abertura Prof. Mário Avelino | G13: =VLOOKUP($B13,Competicoes!$A$2:$F$66,2,FALSE) -> Óbidos | H13: =LEFT(VLOOKUP($B13,Competicoes!$A$2:$F$66,3,FALSE),2) -> AL | I13: 60 | J13: =VLOOKUP($M13,'Atletas2019-20'!$A$3:$G$1358,7,FALSE) -> Ben-B | K13: =VLOOKUP($M13,'Atletas2019-20'!$A$3:$F$1358,5,FALSE) -> 2010 | L13: =VLOOKUP($M13,'Atletas2019-20'!$A$3:$F$1358,3,FALSE) -> M | M13: 158533 | N13: =VLOOKUP($M13,'Atletas2019-20'!$A$3:$F$1358,2,FALSE) -> João Diogo | O13: =VLOOKUP($M13,'Atletas2019-20'!$A$3:$F$1358,6,FALSE) -> CDBBR | P13: 10.94 | Q13: M60158533 | R13: =IF(COUNTIF($Q$6:Q13,Q13)=1,"SB","") -> SB | S13: 10.94 | T13: -2.2 | U13: 1
A14: 9 | B14: 2024001 | D14: =IF(C14=2,VLOOKUP($B14,Competicoes!$A$2:$F$66,4,FALSE)+1,VLOOKUP($B14,Competicoes!$A$2:$F$66,4,FALSE)) -> 2019-11-09 | E14: =VLOOKUP($B14,Competicoes!$A$2:$F$66,6,FALSE) -> 2019-20 | F14: =VLOOKUP($B14,Competicoes!$A$2:$F$66,5,FALSE) -> Torneio de Abertura Prof. Mário Avelino | G14: =VLOOKUP($B14,Competicoes!$A$2:$F$66,2,FALSE) -> Óbidos | H14: =LEFT(VLOOKUP($B14,Competicoes!$A$2:$F$66,3,FALSE),2) -> AL | I14: 60 | J14: =VLOOKUP($M14,'Atletas2019-20'!$A$3:$G$1358,7,FALSE) -> Ben-B | K14: =VLOOKUP($M14,'Atletas2019-20'!$A$3:$F$1358,5,FALSE) -> 2010 | L14: =VLOOKUP($M14,'Atletas2019-20'!$A$3:$F$1358,3,FALSE) -> M | M14: 149301 | N14: =VLOOKUP($M14,'Atletas2019-20'!$A$3:$F$1358,2,FALSE) -> João Rodrigues | O14: =VLOOKUP($M14,'Atletas2019-20'!$A$3:$F$1358,6,FALSE) -> CDBBR | P14: 12.14 | Q14: M60149301 | R14: =IF(COUNTIF($Q$6:Q14,Q14)=1,"SB","") -> SB | S14: 12.14 | T14: -2.2 | U14: 1
A15: 10 | B15: 2024001 | D15: =IF(C15=2,VLOOKUP($B15,Competicoes!$A$2:$F$66,4,FALSE)+1,VLOOKUP($B15,Competicoes!$A$2:$F$66,4,FALSE)) -> 2019-11-09 | E15: =VLOOKUP($B15,Competicoes!$A$2:$F$66,6,FALSE) -> 2019-20 | F15: =VLOOKUP($B15,Competicoes!$A$2:$F$66,5,FALSE) -> Torneio de Abertura Prof. Mário Avelino | G15: =VLOOKUP($B15,Competicoes!$A$2:$F$66,2,FALSE) -> Óbidos | H15: =LEFT(VLOOKUP($B15,Competicoes!$A$2:$F$66,3,FALSE),2) -> AL | I15: 60 | J15: =VLOOKUP($M15,'Atletas2019-20'!$A$3:$G$1358,7,FALSE) -> Ben-B | K15: =VLOOKUP($M15,'Atletas2019-20'!$A$3:$F$1358,5,FALSE) -> 2009 | L15: =VLOOKUP($M15,'Atletas2019-20'!$A$3:$F$1358,3,FALSE) -> M | M15: 151964 | N15: =VLOOKUP($M15,'Atletas2019-20'!$A$3:$F$1358,2,FALSE) -> Pedro Marcelino | O15: =VLOOKUP($M15,'Atletas2019-20'!$A$3:$F$1358,6,FALSE) -> JV | P15: 10.24 | Q15: M60151964 | R15: =IF(COUNTIF($Q$6:Q15,Q15)=1,"SB","") -> SB | S15: 10.24 | T15: -0.4 | U15: 1
A16: 11 | B16: 2024001 | D16: =IF(C16=2,VLOOKUP($B16,Competicoes!$A$2:$F$66,4,FALSE)+1,VLOOKUP($B16,Competicoes!$A$2:$F$66,4,FALSE)) -> 2019-11-09 | E16: =VLOOKUP($B16,Competicoes!$A$2:$F$66,6,FALSE) -> 2019-20 | F16: =VLOOKUP($B16,Competicoes!$A$2:$F$66,5,FALSE) -> Torneio de Abertura Prof. Mário Avelino | G16: =VLOOKUP($B16,Competicoes!$A$2:$F$66,2,FALSE) -> Óbidos | H16: =LEFT(VLOOKUP($B16,Competicoes!$A$2:$F$66,3,FALSE),2) -> AL | I16: 60 | J16: =VLOOKUP($M16,'Atletas2019-20'!$A$3:$G$1358,7,FALSE) -> Ben-B | K16: =VLOOKUP($M16,'Atletas2019-20'!$A$3:$F$1358,5,FALSE) -> 2009 | L16: =VLOOKUP($M16,'Atletas2019-20'!$A$3:$F$1358,3,FALSE) -> M | M16: 138385 | N16: =VLOOKUP($M16,'Atletas2019-20'!$A$3:$F$1358,2,FALSE) -> Daniel Matos | O16: =VLOOKUP($M16,'Atletas2019-20'!$A$3:$F$1358,6,FALSE) -> GDP-L | P16: 10.34 | Q16: M60138385 | R16: =IF(COUNTIF($Q$6:Q16,Q16)=1,"SB","") -> SB | S16: 10.34 | T16: -0.4 | U16: 1
A17: 12 | B17: 2024001 | D17: =IF(C17=2,VLOOKUP($B17,Competicoes!$A$2:$F$66,4,FALSE)+1,VLOOKUP($B17,Competicoes!$A$2:$F$66,4,FALSE)) -> 2019-11-09 | E17: =VLOOKUP($B17,Competicoes!$A$2:$F$66,6,FALSE) -> 2019-20 | F17: =VLOOKUP($B17,Competicoes!$A$2:$F$66,5,FALSE) -> Torneio de Abertura Prof. Mário Avelino | G17: =VLOOKUP($B17,Competicoes!$A$2:$F$66,2,FALSE) -> Óbidos | H17: =LEFT(VLOOKUP($B17,Competicoes!$A$2:$F$66,3,FALSE),2) -> AL | I17: 60 | J17: =VLOOKUP($M17,'Atletas2019-20'!$A$3:$G$1358,7,FALSE) -> Ben-B | K17: =VLOOKUP($M17,'Atletas2019-20'!$A$3:$F$1358,5,FALSE) -> 2009 | L17: =VLOOKUP($M17,'Atletas2019-20'!$A$3:$F$1358,3,FALSE) -> M | M17: 139352 | N17: =VLOOKUP($M17,'Atletas2019-20'!$A$3:$F$1358,2,FALSE) -> Diogo Tavares | O17: =VLOOKUP($M17,'Atletas2019-20'!$A$3:$F$1358,6,FALSE) -> JV | P17: 10.84 | Q17: M60139352 | R17: =IF(COUNTIF($Q$6:Q17,Q17)=1,"SB","") -> SB | S17: 10.84 | T17: -0.4 | U17: 1
A18: 13 | B18: 2024001 | D18: =IF(C18=2,VLOOKUP($B18,Competicoes!$A$2:$F$66,4,FALSE)+1,VLOOKUP($B18,Competicoes!$A$2:$F$66,4,FALSE)) -> 2019-11-09 | E18: =VLOOKUP($B18,Competicoes!$A$2:$F$66,6,FALSE) -> 2019-20 | F18: =VLOOKUP($B18,Competicoes!$A$2:$F$66,5,FALSE) -> Torneio de Abertura Prof. Mário Avelino | G18: =VLOOKUP($B18,Competicoes!$A$2:$F$66,2,FALSE) -> Óbidos | H18: =LEFT(VLOOKUP($B18,Competicoes!$A$2:$F$66,3,FALSE),2) -> AL | I18: 60 | J18: =VLOOKUP($M18,'Atletas2019-20'!$A$3:$G$1358,7,FALSE) -> Ben-B | K18: =VLOOKUP($M18,'Atletas2019-20'!$A$3:$F$1358,5,FALSE) -> 2010 | L18: =VLOOKUP($M18,'Atletas2019-20'!$A$3:$F$1358,3,FALSE) -> M | M18: 158576 | N18: =VLOOKUP($M18,'Atletas2019-20'!$A$3:$F$1358,2,FALSE) -> Dinis Vitorino | O18: =VLOOKUP($M18,'Atletas2019-20'!$A$3:$F$1358,6,FALSE) -> CDBBR | P18: 12.44 | Q18: M60158576 | R18: =IF(COUNTIF($Q$6:Q18,Q18)=1,"SB","") -> SB | S18: 12.44 | T18: -0.4 | U18: 1
A19: 14 | B19: 2024001 | D19: =IF(C19=2,VLOOKUP($B19,Competicoes!$A$2:$F$66,4,FALSE)+1,VLOOKUP($B19,Competicoes!$A$2:$F$66,4,FALSE)) -> 2019-11-09 | E19: =VLOOKUP($B19,Competicoes!$A$2:$F$66,6,FALSE) -> 2019-20 | F19: =VLOOKUP($B19,Competicoes!$A$2:$F$66,5,FALSE) -> Torneio de Abertura Prof. Mário Avelino | G19: =VLOOKUP($B19,Competicoes!$A$2:$F$66,2,FALSE) -> Óbidos | H19: =LEFT(VLOOKUP($B19,Competicoes!$A$2:$F$66,3,FALSE),2) -> AL | I19: 60 | J19: =VLOOKUP($M19,'Atletas2019-20'!$A$3:$G$1358,7,FALSE) -> Ben-B | K19: =VLOOKUP($M19,'Atletas2019-20'!$A$3:$F$1358,5,FALSE) -> 2010 | L19: =VLOOKUP($M19,'Atletas2019-20'!$A$3:$F$1358,3,FALSE) -> M | M19: 149318 | N19: =VLOOKUP($M19,'Atletas2019-20'!$A$3:$F$1358,2,FALSE) -> Gabriel Silva | O19: =VLOOKUP($M19,'Atletas2019-20'!$A$3:$F$1358,6,FALSE) -> CDBBR | P19: 12.94 | Q19: M60149318 | R19: =IF(COUNTIF($Q$6:Q19,Q19)=1,"SB","") -> SB | S19: 12.94 | T19: -0.4 | U19: 1
A20: 15 | B20: 2024001 | D20: =IF(C20=2,VLOOKUP($B20,Competicoes!$A$2:$F$66,4,FALSE)+1,VLOOKUP($B20,Competicoes!$A$2:$F$66,4,FALSE)) -> 2019-11-09 | E20: =VLOOKUP($B20,Competicoes!$A$2:$F$66,6,FALSE) -> 2019-20 | F20: =VLOOKUP($B20,Competicoes!$A$2:$F$66,5,FALSE) -> Torneio de Abertura Prof. Mário Avelino | G20: =VLOOKUP($B20,Competicoes!$A$2:$F$66,2,FALSE) -> Óbidos | H20: =LEFT(VLOOKUP($B20,Competicoes!$A$2:$F$66,3,FALSE),2) -> AL | I20: PESO2 | J20: =VLOOKUP($M20,'Atletas2019-20'!$A$3:$G$1358,7,FALSE) -> Inf | K20: =VLOOKUP($M20,'Atletas2019-20'!$A$3:$F$1358,5,FALSE) -> 2007 | L20: =VLOOKUP($M20,'Atletas2019-20'!$A$3:$F$1358,3,FALSE) -> F | M20: 146231 | N20: =VLOOKUP($M20,'Atletas2019-20'!$A$3:$F$1358,2,FALSE) -> Helena Alípio | O20: =VLOOKUP($M20,'Atletas2019-20'!$A$3:$F$1358,6,FALSE) -> JV | P20: -6.55 | Q20: FPESO2146231 | R20: =IF(COUNTIF($Q$6:Q20,Q20)=1,"SB","") -> SB | S20: 6.55 | U20: 2
A21: 16 | B21: 2024001 | D21: =IF(C21=2,VLOOKUP($B21,Competicoes!$A$2:$F$66,4,FALSE)+1,VLOOKUP($B21,Competicoes!$A$2:$F$66,4,FALSE)) -> 2019-11-09 | E21: =VLOOKUP($B21,Competicoes!$A$2:$F$66,6,FALSE) -> 2019-20 | F21: =VLOOKUP($B21,Competicoes!$A$2:$F$66,5,FALSE) -> Torneio de Abertura Prof. Mário Avelino | G21: =VLOOKUP($B21,Competicoes!$A$2:$F$66,2,FALSE) -> Óbidos | H21: =LEFT(VLOOKUP($B21,Competicoes!$A$2:$F$66,3,FALSE),2) -> AL | I21: PESO2 | J21: =VLOOKUP($M21,'Atletas2019-20'!$A$3:$G$1358,7,FALSE) -> Inf | K21: =VLOOKUP($M21,'Atletas2019-20'!$A$3:$F$1358,5,FALSE) -> 2007 | L21: =VLOOKUP($M21,'Atletas2019-20'!$A$3:$F$1358,3,FALSE) -> F | M21: 156551 | N21: =VLOOKUP($M21,'Atletas2019-20'!$A$3:$F$1358,2,FALSE) -> Carolina P Santos | O21: =VLOOKUP($M21,'Atletas2019-20'!$A$3:$F$1358,6,FALSE) -> JV | P21: -4.93 | Q21: FPESO2156551 | R21: =IF(COUNTIF($Q$6:Q21,Q21)=1,"SB","") -> SB | S21: 4.93 | U21: 2
A22: 17 | B22: 2024001 | D22: =IF(C22=2,VLOOKUP($B22,Competicoes!$A$2:$F$66,4,FALSE)+1,VLOOKUP($B22,Competicoes!$A$2:$F$66,4,FALSE)) -> 2019-11-09 | E22: =VLOOKUP($B22,Competicoes!$A$2:$F$66,6,FALSE) -> 2019-20 | F22: =VLOOKUP($B22,Competicoes!$A$2:$F$66,5,FALSE) -> Torneio de Abertura Prof. Mário Avelino | G22: =VLOOKUP($B22,Competicoes!$A$2:$F$66,2,FALSE) -> Óbidos | H22: =LEFT(VLOOKUP($B22,Competicoes!$A$2:$F$66,3,FALSE),2) -> AL | I22: PESO2 | J22: =VLOOKUP($M22,'Atletas2019-20'!$A$3:$G$1358,7,FALSE) -> Inf | K22: =VLOOKUP($M22,'Atletas2019-20'!$A$3:$F$1358,5,FALSE) -> 2007 | L22: =VLOOKUP($M22,'Atletas2019-20'!$A$3:$F$1358,3,FALSE) -> F | M22: 158375 | N22: =VLOOKUP($M22,'Atletas2019-20'!$A$3:$F$1358,2,FALSE) -> Mariana Custódio | O22: =VLOOKUP($M22,'Atletas2019-20'!$A$3:$F$1358,6,FALSE) -> GDP-L | P22: -5.98 | Q22: FPESO2158375 | R22: =IF(COUNTIF($Q$6:Q22,Q22)=1,"SB","") -> SB | S22: 5.98 | U22: 2
A23: 18 | B23: 2024001 | D23: =IF(C23=2,VLOOKUP($B23,Competicoes!$A$2:$F$66,4,FALSE)+1,VLOOKUP($B23,Competicoes!$A$2:$F$66,4,FALSE)) -> 2019-11-09 | E23: =VLOOKUP($B23,Competicoes!$A$2:$F$66,6,FALSE) -> 2019-20 | F23: =VLOOKUP($B23,Competicoes!$A$2:$F$66,5,FALSE) -> Torneio de Abertura Prof. Mário Avelino | G23: =VLOOKUP($B23,Competicoes!$A$2:$F$66,2,FALSE) -> Óbidos | H23: =LEFT(VLOOKUP($B23,Competicoes!$A$2:$F$66,3,FALSE),2) -> AL | I23: PESO2 | J23: =VLOOKUP($M23,'Atletas2019-20'!$A$3:$G$1358,7,FALSE) -> Inf | K23: =VLOOKUP($M23,'Atletas2019-20'!$A$3:$F$1358,5,FALSE) -> 2008 | L23: =VLOOKUP($M23,'Atletas2019-20'!$A$3:$F$1358,3,FALSE) -> F | M23: 158606 | N23: =VLOOKUP($M23,'Atletas2019-20'!$A$3:$F$1358,2,FALSE) -> Filipa Maia | O23: =VLOOKUP($M23,'Atletas2019-20'!$A$3:$F$1358,6,FALSE) -> GDP-L | P23: -4.16 | Q23: FPESO2158606 | R23: =IF(COUNTIF($Q$6:Q23,Q23)=1,"SB","") -> SB | S23: 4.16 | U23: 2
A24: 19 | B24: 2024001 | D24: =IF(C24=2,VLOOKUP($B24,Competicoes!$A$2:$F$66,4,FALSE)+1,VLOOKUP($B24,Competicoes!$A$2:$F$66,4,FALSE)) -> 2019-11-09 | E24: =VLOOKUP($B24,Competicoes!$A$2:$F$66,6,FALSE) -> 2019-20 | F24: =VLOOKUP($B24,Competicoes!$A$2:$F$66,5,FALSE) -> Torneio de Abertura Prof. Mário Avelino | G24: =VLOOKUP($B24,Competicoes!$A$2:$F$66,2,FALSE) -> Óbidos | H24: =LEFT(VLOOKUP($B24,Competicoes!$A$2:$F$66,3,FALSE),2) -> AL | I24: PESO2 | J24: =VLOOKUP($M24,'Atletas2019-20'!$A$3:$G$1358,7,FALSE) -> Inf | K24: =VLOOKUP($M24,'Atletas2019-20'!$A$3:$F$1358,5,FALSE) -> 2007 | L24: =VLOOKUP($M24,'Atletas2019-20'!$A$3:$F$1358,3,FALSE) -> F | M24: 146424 | N24: =VLOOKUP($M24,'Atletas2019-20'!$A$3:$F$1358,2,FALSE) -> Carina Marto | O24: =VLOOKUP($M24,'Atletas2019-20'!$A$3:$F$1358,6,FALSE) -> GDP-L | P24: -6.08 | Q24: FPESO2146424 | R24: =IF(COUNTIF($Q$6:Q24,Q24)=1,"SB","") -> SB | S24: 6.08 | U24: 2
A25: 20 | B25: 2024001 | D25: =IF(C25=2,VLOOKUP($B25,Competicoes!$A$2:$F$66,4,FALSE)+1,VLOOKUP($B25,Competicoes!$A$2:$F$66,4,FALSE)) -> 2019-11-09 | E25: =VLOOKUP($B25,Competicoes!$A$2:$F$66,6,FALSE) -> 2019-20 | F25: =VLOOKUP($B25,Competicoes!$A$2:$F$66,5,FALSE) -> Torneio de Abertura Prof. Mário Avelino | G25: =VLOOKUP($B25,Competicoes!$A$2:$F$66,2,FALSE) -> Óbidos | H25: =LEFT(VLOOKUP($B25,Competicoes!$A$2:$F$66,3,FALSE),2) -> AL | I25: PESO2 | J25: =VLOOKUP($M25,'Atletas2019-20'!$A$3:$G$1358,7,FALSE) -> Inf | K25: =VLOOKUP($M25,'Atletas2019-20'!$A$3:$F$1358,5,FALSE) -> 2007 | L25: =VLOOKUP($M25,'Atletas2019-20'!$A$3:$F$1358,3,FALSE) -> F | M25: 156617 | N25: =VLOOKUP($M25,'Atletas2019-20'!$A$3:$F$1358,2,FALSE) -> Sofia Santos | O25: =VLOOKUP($M25,'Atletas2019-20'!$A$3:$F$1358,6,FALSE) -> JV | P25: -6.27 | Q25: FPESO2156617 | R25: =IF(COUNTIF($Q$6:Q25,Q25)=1,"SB","") -> SB | S25: 6.27 | U25: 2
A26: 21 | B26: 2024001 | D26: =IF(C26=2,VLOOKUP($B26,Competicoes!$A$2:$F$66,4,FALSE)+1,VLOOKUP($B26,Competicoes!$A$2:$F$66,4,FALSE)) -> 2019-11-09 | E26: =VLOOKUP($B26,Competicoes!$A$2:$F$66,6,FALSE) -> 2019-20 | F26: =VLOOKUP($B26,Competicoes!$A$2:$F$66,5,FALSE) -> Torneio de Abertura Prof. Mário Avelino | G26: =VLOOKUP($B26,Competicoes!$A$2:$F$66,2,FALSE) -> Óbidos | H26: =LEFT(VLOOKUP($B26,Competicoes!$A$2:$F$66,3,FALSE),2) -> AL | I26: PESO2 | J26: =VLOOKUP($M26,'Atletas2019-20'!$A$3:$G$1358,7,FALSE) -> Inf | K26: =VLOOKUP($M26,'Atletas2019-20'!$A$3:$F$1358,5,FALSE) -> 2007 | L26: =VLOOKUP($M26,'Atletas2019-20'!$A$3:$F$1358,3,FALSE) -> F | M26: 139372 | N26: =VLOOKUP($M26,'Atletas2019-20'!$A$3:$F$1358,2,FALSE) -> Camila Patraboy | O26: =VLOOKUP($M26,'Atletas2019-20'!$A$3:$F$1358,6,FALSE) -> JV | P26: -7.61 | Q26: FPESO2139372 | R26: =IF(COUNTIF($Q$6:Q26,Q26)=1,"SB","") -> SB | S26: 7.61 | U26: 2
A27: 22 | B27: 2024001 | D27: =IF(C27=2,VLOOKUP($B27,Competicoes!$A$2:$F$66,4,FALSE)+1,VLOOKUP($B27,Competicoes!$A$2:$F$66,4,FALSE)) -> 2019-11-09 | E27: =VLOOKUP($B27,Competicoes!$A$2:$F$66,6,FALSE) -> 2019-20 | F27: =VLOOKUP($B27,Competicoes!$A$2:$F$66,5,FALSE) -> Torneio de Abertura Prof. Mário Avelino | G27: =VLOOKUP($B27,Competicoes!$A$2:$F$66,2,FALSE) -> Óbidos | H27: =LEFT(VLOOKUP($B27,Competicoes!$A$2:$F$66,3,FALSE),2) -> AL | I27: PESO2 | J27: =VLOOKUP($M27,'Atletas2019-20'!$A$3:$G$1358,7,FALSE) -> Inf | K27: =VLOOKUP($M27,'Atletas2019-20'!$A$3:$F$1358,5,FALSE) -> 2008 | L27: =VLOOKUP($M27,'Atletas2019-20'!$A$3:$F$1358,3,FALSE) -> F | M27: 152007 | N27: =VLOOKUP($M27,'Atletas2019-20'!$A$3:$F$1358,2,FALSE) -> Marta Feliciano | O27: =VLOOKUP($M27,'Atletas2019-20'!$A$3:$F$1358,6,FALSE) -> JV | P27: -5.44 | Q27: FPESO2152007 | R27: =IF(COUNTIF($Q$6:Q27,Q27)=1,"SB","") -> SB | S27: 5.44 | U27: 2
A28: 23 | B28: 2024001 | D28: =IF(C28=2,VLOOKUP($B28,Competicoes!$A$2:$F$66,4,FALSE)+1,VLOOKUP($B28,Competicoes!$A$2:$F$66,4,FALSE)) -> 2019-11-09 | E28: =VLOOKUP($B28,Competicoes!$A$2:$F$66,6,FALSE) -> 2019-20 | F28: =VLOOKUP($B28,Competicoes!$A$2:$F$66,5,FALSE) -> Torneio de Abertura Prof. Mário Avelino | G28: =VLOOKUP($B28,Competicoes!$A$2:$F$66,2,FALSE) -> Óbidos | H28: =LEFT(VLOOKUP($B28,Competicoes!$A$2:$F$66,3,FALSE),2) -> AL | I28: PESO2 | J28: =VLOOKUP($M28,'Atletas2019-20'!$A$3:$G$1358,7,FALSE) -> Inf | K28: =VLOOKUP($M28,'Atletas2019-20'!$A$3:$F$1358,5,FALSE) -> 2008 | L28: =VLOOKUP($M28,'Atletas2019-20'!$A$3:$F$1358,3,FALSE) -> F | M28: 157934 | N28: =VLOOKUP($M28,'Atletas2019-20'!$A$3:$F$1358,2,FALSE) -> Alice Varino | O28: =VLOOKUP($M28,'Atletas2019-20'!$A$3:$F$1358,6,FALSE) -> GDP-L | P28: -5.53 | Q28: FPESO2157934 | R28: =IF(COUNTIF($Q$6:Q28,Q28)=1,"SB","") -> SB | S28: 5.53 | U28: 2
A29: 24 | B29: 2024001 | D29: =IF(C29=2,VLOOKUP($B29,Competicoes!$A$2:$F$66,4,FALSE)+1,VLOOKUP($B29,Competicoes!$A$2:$F$66,4,FALSE)) -> 2019-11-09 | E29: =VLOOKUP($B29,Competicoes!$A$2:$F$66,6,FALSE) -> 2019-20 | F29: =VLOOKUP($B29,Competicoes!$A$2:$F$66,5,FALSE) -> Torneio de Abertura Prof. Mário Avelino | G29: =VLOOKUP($B29,Competicoes!$A$2:$F$66,2,FALSE) -> Óbidos | H29: =LEFT(VLOOKUP($B29,Competicoes!$A$2:$F$66,3,FALSE),2) -> AL | I29: PESO2 | J29: =VLOOKUP($M29,'Atletas2019-20'!$A$3:$G$1358,7,FALSE) -> Inf | K29: =VLOOKUP($M29,'Atletas2019-20'!$A$3:$F$1358,5,FALSE) -> 2007 | L29: =VLOOKUP($M29,'Atletas2019-20'!$A$3:$F$1358,3,FALSE) -> F | M29: 143868 | N29: =VLOOKUP($M29,'Atletas2019-20'!$A$3:$F$1358,2,FALSE) -> Marta Carriço | O29: =VLOOKUP($M29,'Atletas2019-20'!$A$3:$F$1358,6,FALSE) -> ACDRA | P29: -7.99 | Q29: FPESO2143868 | R29: =IF(COUNTIF($Q$6:Q29,Q29)=1,"SB","") -> SB | S29: 7.99 | U29: 2
A30: 25 | B30: 2024001 | D30: =IF(C30=2,VLOOKUP($B30,Competicoes!$A$2:$F$66,4,FALSE)+1,VLOOKUP($B30,Competicoes!$A$2:$F$66,4,FALSE)) -> 2019-11-09 | E30: =VLOOKUP($B30,Competicoes!$A$2:$F$66,6,FALSE) -> 2019-20 | F30: =VLOOKUP($B30,Competicoes!$A$2:$F$66,5,FALSE) -> Torneio de Abertura Prof. Mário Avelino | G30: =VLOOKUP($B30,Competicoes!$A$2:$F$66,2,FALSE) -> Óbidos | H30: =LEFT(VLOOKUP($B30,Competicoes!$A$2:$F$66,3,FALSE),2) -> AL | I30: COMPRIM | J30: =VLOOKUP($M30,'Atletas2019-20'!$A$3:$G$1358,7,FALSE) -> Inf | K30: =VLOOKUP($M30,'Atletas2019-20'!$A$3:$F$1358,5,FALSE) -> 2007 | L30: =VLOOKUP($M30,'Atletas2019-20'!$A$3:$F$1358,3,FALSE) -> M | M30: 145061 | N30: =VLOOKUP($M30,'Atletas2019-20'!$A$3:$F$1358,2,FALSE) -> Hugo Matias | O30: =VLOOKUP($M30,'Atletas2019-20'!$A$3:$F$1358,6,FALSE) -> JV | P30: -3.54 | Q30: MCOMPRIM145061 | R30: =IF(COUNTIF($Q$6:Q30,Q30)=1,"SB","") -> SB | S30: 3.54 | T30: -0.4 | U30: 2
A31: 26 | B31: 2024001 | D31: =IF(C31=2,VLOOKUP($B31,Competicoes!$A$2:$F$66,4,FALSE)+1,VLOOKUP($B31,Competicoes!$A$2:$F$66,4,FALSE)) -> 2019-11-09 | E31: =VLOOKUP($B31,Competicoes!$A$2:$F$66,6,FALSE) -> 2019-20 | F31: =VLOOKUP($B31,Competicoes!$A$2:$F$66,5,FALSE) -> Torneio de Abertura Prof. Mário Avelino | G31: =VLOOKUP($B31,Competicoes!$A$2:$F$66,2,FALSE) -> Óbidos | H31: =LEFT(VLOOKUP($B31,Competicoes!$A$2:$F$66,3,FALSE),2) -> AL | I31: COMPRIM | J31: =VLOOKUP($M31,'Atletas2019-20'!$A$3:$G$1358,7,FALSE) -> Inf | K31: =VLOOKUP($M31,'Atletas2019-20'!$A$3:$F$1358,5,FALSE) -> 2008 | L31: =VLOOKUP($M31,'Atletas2019-20'!$A$3:$F$1358,3,FALSE) -> M | M31: 152367 | N31: =VLOOKUP($M31,'Atletas2019-20'!$A$3:$F$1358,2,FALSE) -> Afonso Nogueira | O31: =VLOOKUP($M31,'Atletas2019-20'!$A$3:$F$1358,6,FALSE) -> JV | P31: -3.39 | Q31: MCOMPRIM152367 | R31: =IF(COUNTIF($Q$6:Q31,Q31)=1,"SB","") -> SB | S31: 3.39 | T31: 0.8 | U31: 2
A32: 27 | B32: 2024001 | D32: =IF(C32=2,VLOOKUP($B32,Competicoes!$A$2:$F$66,4,FALSE)+1,VLOOKUP($B32,Competicoes!$A$2:$F$66,4,FALSE)) -> 2019-11-09 | E32: =VLOOKUP($B32,Competicoes!$A$2:$F$66,6,FALSE) -> 2019-20 | F32: =VLOOKUP($B32,Competicoes!$A$2:$F$66,5,FALSE) -> Torneio de Abertura Prof. Mário Avelino | G32: =VLOOKUP($B32,Competicoes!$A$2:$F$66,2,FALSE) -> Óbidos | H32: =LEFT(VLOOKUP($B32,Competicoes!$A$2:$F$66,3,FALSE),2) -> AL | I32: COMPRIM | J32: =VLOOKUP($M32,'Atletas2019-20'!$A$3:$G$1358,7,FALSE) -> Inf | K32: =VLOOKUP($M32,'Atletas2019-20'!$A$3:$F$1358,5,FALSE) -> 2007 | L32: =VLOOKUP($M32,'Atletas2019-20'!$A$3:$F$1358,3,FALSE) -> M | M32: 132214 | N32: =VLOOKUP($M32,'Atletas2019-20'!$A$3:$F$1358,2,FALSE) -> Tomás Monteiro | O32: =VLOOKUP($M32,'Atletas2019-20'!$A$3:$F$1358,6,FALSE) -> JV | P32: -4.28 | Q32: MCOMPRIM132214 | R32: =IF(COUNTIF($Q$6:Q32,Q32)=1,"SB","") -> SB | S32: 4.28 | T32: 1.1 | U32: 2
A33: 28 | B33: 2024001 | D33: =IF(C33=2,VLOOKUP($B33,Competicoes!$A$2:$F$66,4,FALSE)+1,VLOOKUP($B33,Competicoes!$A$2:$F$66,4,FALSE)) -> 2019-11-09 | E33: =VLOOKUP($B33,Competicoes!$A$2:$F$66,6,FALSE) -> 2019-20 | F33: =VLOOKUP($B33,Competicoes!$A$2:$F$66,5,FALSE) -> Torneio de Abertura Prof. Mário Avelino | G33: =VLOOKUP($B33,Competicoes!$A$2:$F$66,2,FALSE) -> Óbidos | H33: =LEFT(VLOOKUP($B33,Competicoes!$A$2:$F$66,3,FALSE),2) -> AL | I33: COMPRIM | J33: =VLOOKUP($M33,'Atletas2019-20'!$A$3:$G$1358,7,FALSE) -> Inf | K33: =VLOOKUP($M33,'Atletas2019-20'!$A$3:$F$1358,5,FALSE) -> 2007 | L33: =VLOOKUP($M33,'Atletas2019-20'!$A$3:$F$1358,3,FALSE) -> M | M33: 131383 | N33: =VLOOKUP($M33,'Atletas2019-20'!$A$3:$F$1358,2,FALSE) -> Gabriel Cunha | O33: =VLOOKUP($M33,'Atletas2019-20'!$A$3:$F$1358,6,FALSE) -> GDP-L | P33: -4.95 | Q33: MCOMPRIM131383 | R33: =IF(COUNTIF($Q$6:Q33,Q33)=1,"SB","") -> SB | S33: 4.95 | T33: 0.6 | U33: 2
A34: 29 | B34: 2024001 | D34: =IF(C34=2,VLOOKUP($B34,Competicoes!$A$2:$F$66,4,FALSE)+1,VLOOKUP($B34,Competicoes!$A$2:$F$66,4,FALSE)) -> 2019-11-09 | E34: =VLOOKUP($B34,Competicoes!$A$2:$F$66,6,FALSE) -> 2019-20 | F34: =VLOOKUP($B34,Competicoes!$A$2:$F$66,5,FALSE) -> Torneio de Abertura Prof. Mário Avelino | G34: =VLOOKUP($B34,Competicoes!$A$2:$F$66,2,FALSE) -> Óbidos | H34: =LEFT(VLOOKUP($B34,Competicoes!$A$2:$F$66,3,FALSE),2) -> AL | I34: COMPRIM | J34: =VLOOKUP($M34,'Atletas2019-20'!$A$3:$G$1358,7,FALSE) -> Inf | K34: =VLOOKUP($M34,'Atletas2019-20'!$A$3:$F$1358,5,FALSE) -> 2008 | L34: =VLOOKUP($M34,'Atletas2019-20'!$A$3:$F$1358,3,FALSE) -> M | M34: 157936 | N34: =VLOOKUP($M34,'Atletas2019-20'!$A$3:$F$1358,2,FALSE) -> Matias Ferreira | O34: =VLOOKUP($M34,'Atletas2019-20'!$A$3:$F$1358,6,FALSE) -> GDP-L | P34: -3.21 | Q34: MCOMPRIM157936 | R34: =IF(COUNTIF($Q$6:Q34,Q34)=1,"SB","") -> SB | S34: 3.21 | T34: -0.3 | U34: 2
A35: 30 | B35: 2024001 | D35: =IF(C35=2,VLOOKUP($B35,Competicoes!$A$2:$F$66,4,FALSE)+1,VLOOKUP($B35,Competicoes!$A$2:$F$66,4,FALSE)) -> 2019-11-09 | E35: =VLOOKUP($B35,Competicoes!$A$2:$F$66,6,FALSE) -> 2019-20 | F35: =VLOOKUP($B35,Competicoes!$A$2:$F$66,5,FALSE) -> Torneio de Abertura Prof. Mário Avelino | G35: =VLOOKUP($B35,Competicoes!$A$2:$F$66,2,FALSE) -> Óbidos | H35: =LEFT(VLOOKUP($B35,Competicoes!$A$2:$F$66,3,FALSE),2) -> AL | I35: COMPRIM | J35: =VLOOKUP($M35,'Atletas2019-20'!$A$3:$G$1358,7,FALSE) -> Inf | K35: =VLOOKUP($M35,'Atletas2019-20'!$A$3:$F$1358,5,FALSE) -> 2008 | L35: =VLOOKUP($M35,'Atletas2019-20'!$A$3:$F$1358,3,FALSE) -> M | M35: 157957 | N35: =VLOOKUP($M35,'Atletas2019-20'!$A$3:$F$1358,2,FALSE) -> Eduardo Cruz | O35: =VLOOKUP($M35,'Atletas2019-20'!$A$3:$F$1358,6,FALSE) -> GDP-L | P35: -3.09 | Q35: MCOMPRIM157957 | R35: =IF(COUNTIF($Q$6:Q35,Q35)=1,"SB","") -> SB | S35: 3.09 | T35: 0.3 | U35: 2
A36: 31 | B36: 2024001 | D36: =IF(C36=2,VLOOKUP($B36,Competicoes!$A$2:$F$66,4,FALSE)+1,VLOOKUP($B36,Competicoes!$A$2:$F$66,4,FALSE)) -> 2019-11-09 | E36: =VLOOKUP($B36,Competicoes!$A$2:$F$66,6,FALSE) -> 2019-20 | F36: =VLOOKUP($B36,Competicoes!$A$2:$F$66,5,FALSE) -> Torneio de Abertura Prof. Mário Avelino | G36: =VLOOKUP($B36,Competicoes!$A$2:$F$66,2,FALSE) -> Óbidos | H36: =LEFT(VLOOKUP($B36,Competicoes!$A$2:$F$66,3,FALSE),2) -> AL | I36: COMPRIM | J36: =VLOOKUP($M36,'Atletas2019-20'!$A$3:$G$1358,7,FALSE) -> Inf | K36: =VLOOKUP($M36,'Atletas2019-20'!$A$3:$F$1358,5,FALSE) -> 2008 | L36: =VLOOKUP($M36,'Atletas2019-20'!$A$3:$F$1358,3,FALSE) -> M | M36: 153294 | N36: =VLOOKUP($M36,'Atletas2019-20'!$A$3:$F$1358,2,FALSE) -> António Vasconcelos | O36: =VLOOKUP($M36,'Atletas2019-20'!$A$3:$F$1358,6,FALSE) -> JV | P36: -3.37 | Q36: MCOMPRIM153294 | R36: =IF(COUNTIF($Q$6:Q36,Q36)=1,"SB","") -> SB | S36: 3.37 | T36: -0.5 | U36: 2
A37: 32 | B37: 2024001 | D37: =IF(C37=2,VLOOKUP($B37,Competicoes!$A$2:$F$66,4,FALSE)+1,VLOOKUP($B37,Competicoes!$A$2:$F$66,4,FALSE)) -> 2019-11-09 | E37: =VLOOKUP($B37,Competicoes!$A$2:$F$66,6,FALSE) -> 2019-20 | F37: =VLOOKUP($B37,Competicoes!$A$2:$F$66,5,FALSE) -> Torneio de Abertura Prof. Mário Avelino | G37: =VLOOKUP($B37,Competicoes!$A$2:$F$66,2,FALSE) -> Óbidos | H37: =LEFT(VLOOKUP($B37,Competicoes!$A$2:$F$66,3,FALSE),2) -> AL | I37: COMPRIM | J37: =VLOOKUP($M37,'Atletas2019-20'!$A$3:$G$1358,7,FALSE) -> Inf | K37: =VLOOKUP($M37,'Atletas2019-20'!$A$3:$F$1358,5,FALSE) -> 2008 | L37: =VLOOKUP($M37,'Atletas2019-20'!$A$3:$F$1358,3,FALSE) -> M | M37: 139333 | N37: =VLOOKUP($M37,'Atletas2019-20'!$A$3:$F$1358,2,FALSE) -> Filipe Fernandes | O37: =VLOOKUP($M37,'Atletas2019-20'!$A$3:$F$1358,6,FALSE) -> JV | P37: -3.01 | Q37: MCOMPRIM139333 | R37: =IF(COUNTIF($Q$6:Q37,Q37)=1,"SB","") -> SB | S37: 3.01 | T37: 0.4 | U37: 2
A38: 33 | B38: 2024001 | D38: =IF(C38=2,VLOOKUP($B38,Competicoes!$A$2:$F$66,4,FALSE)+1,VLOOKUP($B38,Competicoes!$A$2:$F$66,4,FALSE)) -> 2019-11-09 | E38: =VLOOKUP($B38,Competicoes!$A$2:$F$66,6,FALSE) -> 2019-20 | F38: =VLOOKUP($B38,Competicoes!$A$2:$F$66,5,FALSE) -> Torneio de Abertura Prof. Mário Avelino | G38: =VLOOKUP($B38,Competicoes!$A$2:$F$66,2,FALSE) -> Óbidos | H38: =LEFT(VLOOKUP($B38,Competicoes!$A$2:$F$66,3,FALSE),2) -> AL | I38: COMPRIM | J38: =VLOOKUP($M38,'Atletas2019-20'!$A$3:$G$1358,7,FALSE) -> Inf | K38: =VLOOKUP($M38,'Atletas2019-20'!$A$3:$F$1358,5,FALSE) -> 2008 | L38: =VLOOKUP($M38,'Atletas2019-20'!$A$3:$F$1358,3,FALSE) -> M | M38: 155570 | N38: =VLOOKUP($M38,'Atletas2019-20'!$A$3:$F$1358,2,FALSE) -> Davide Prazeres | O38: =VLOOKUP($M38,'Atletas2019-20'!$A$3:$F$1358,6,FALSE) -> CDBBR | P38: -2.67 | Q38: MCOMPRIM155570 | R38: =IF(COUNTIF($Q$6:Q38,Q38)=1,"SB","") -> SB | S38: 2.67 | T38: -1.5 | U38: 2
A39: 34 | B39: 2024001 | D39: =IF(C39=2,VLOOKUP($B39,Competicoes!$A$2:$F$66,4,FALSE)+1,VLOOKUP($B39,Competicoes!$A$2:$F$66,4,FALSE)) -> 2019-11-09 | E39: =VLOOKUP($B39,Competicoes!$A$2:$F$66,6,FALSE) -> 2019-20 | F39: =VLOOKUP($B39,Competicoes!$A$2:$F$66,5,FALSE) -> Torneio de Abertura Prof. Mário Avelino | G39: =VLOOKUP($B39,Competicoes!$A$2:$F$66,2,FALSE) -> Óbidos | H39: =LEFT(VLOOKUP($B39,Competicoes!$A$2:$F$66,3,FALSE),2) -> AL | I39: COMPRIM | J39: =VLOOKUP($M39,'Atletas2019-20'!$A$3:$G$1358,7,FALSE) -> Inf | K39: =VLOOKUP($M39,'Atletas2019-20'!$A$3:$F$1358,5,FALSE) -> 2008 | L39: =VLOOKUP($M39,'Atletas2019-20'!$A$3:$F$1358,3,FALSE) -> M | M39: 149690 | N39: =VLOOKUP($M39,'Atletas2019-20'!$A$3:$F$1358,2,FALSE) -> Artur Coelho | O39: =VLOOKUP($M39,'Atletas2019-20'!$A$3:$F$1358,6,FALSE) -> CDBBR | P39: -1.89 | Q39: MCOMPRIM149690 | R39: =IF(COUNTIF($Q$6:Q39,Q39)=1,"SB","") -> SB | S39: 1.89 | T39: 0.4 | U39: 2
A40: 35 | B40: 2024001 | D40: =IF(C40=2,VLOOKUP($B40,Competicoes!$A$2:$F$66,4,FALSE)+1,VLOOKUP($B40,Competicoes!$A$2:$F$66,4,FALSE)) -> 2019-11-09 | E40: =VLOOKUP($B40,Competicoes!$A$2:$F$66,6,FALSE) -> 2019-20 | F40: =VLOOKUP($B40,Competicoes!$A$2:$F$66,5,FALSE) -> Torneio de Abertura Prof. Mário Avelino | G40: =VLOOKUP($B40,Competicoes!$A$2:$F$66,2,FALSE) -> Óbidos | H40: =LEFT(VLOOKUP($B40,Competicoes!$A$2:$F$66,3,FALSE),2) -> AL | I40: COMPRIM | J40: =VLOOKUP($M40,'Atletas2019-20'!$A$3:$G$1358,7,FALSE) -> Inf | K40: =VLOOKUP($M40,'Atletas2019-20'!$A$3:$F$1358,5,FALSE) -> 2007 | L40: =VLOOKUP($M40,'Atletas2019-20'!$A$3:$F$1358,3,FALSE) -> M | M40: 150874 | N40: =VLOOKUP($M40,'Atletas2019-20'!$A$3:$F$1358,2,FALSE) -> Denis Hrabar | O40: =VLOOKUP($M40,'Atletas2019-20'!$A$3:$F$1358,6,FALSE) -> JV | P40: -4.45 | Q40: MCOMPRIM150874 | R40: =IF(COUNTIF($Q$6:Q40,Q40)=1,"SB","") -> SB | S40: 4.45 | T40: 0.7 | U40: 2
A41: 36 | B41: 2024001 | D41: =IF(C41=2,VLOOKUP($B41,Competicoes!$A$2:$F$66,4,FALSE)+1,VLOOKUP($B41,Competicoes!$A$2:$F$66,4,FALSE)) -> 2019-11-09 | E41: =VLOOKUP($B41,Competicoes!$A$2:$F$66,6,FALSE) -> 2019-20 | F41: =VLOOKUP($B41,Competicoes!$A$2:$F$66,5,FALSE) -> Torneio de Abertura Prof. Mário Avelino | G41: =VLOOKUP($B41,Competicoes!$A$2:$F$66,2,FALSE) -> Óbidos | H41: =LEFT(VLOOKUP($B41,Competicoes!$A$2:$F$66,3,FALSE),2) -> AL | I41: COMPRIM | J41: =VLOOKUP($M41,'Atletas2019-20'!$A$3:$G$1358,7,FALSE) -> Inf | K41: =VLOOKUP($M41,'Atletas2019-20'!$A$3:$F$1358,5,FALSE) -> 2007 | L41: =VLOOKUP($M41,'Atletas2019-20'!$A$3:$F$1358,3,FALSE) -> M | M41: 146293 | N41: =VLOOKUP($M41,'Atletas2019-20'!$A$3:$F$1358,2,FALSE) -> Rodrigo Esteves | O41: =VLOOKUP($M41,'Atletas2019-20'!$A$3:$F$1358,6,FALSE) -> GDP-L | P41: -3.43 | Q41: MCOMPRIM146293 | R41: =IF(COUNTIF($Q$6:Q41,Q41)=1,"SB","") -> SB | S41: 3.43 | T41: -1.1 | U41: 2
A42: 37 | B42: 2024001 | D42: =IF(C42=2,VLOOKUP($B42,Competicoes!$A$2:$F$66,4,FALSE)+1,VLOOKUP($B42,Competicoes!$A$2:$F$66,4,FALSE)) -> 2019-11-09 | E42: =VLOOKUP($B42,Competicoes!$A$2:$F$66,6,FALSE) -> 2019-20 | F42: =VLOOKUP($B42,Competicoes!$A$2:$F$66,5,FALSE) -> Torneio de Abertura Prof. Mário Avelino | G42: =VLOOKUP($B42,Competicoes!$A$2:$F$66,2,FALSE) -> Óbidos | H42: =LEFT(VLOOKUP($B42,Competicoes!$A$2:$F$66,3,FALSE),2) -> AL | I42: 500 Mx | J42: =VLOOKUP($M42,'Atletas2019-20'!$A$3:$G$1358,7,FALSE) -> Ben-B | K42: =VLOOKUP($M42,'Atletas2019-20'!$A$3:$F$1358,5,FALSE) -> 2009 | L42: =VLOOKUP($M42,'Atletas2019-20'!$A$3:$F$1358,3,FALSE) -> F | M42: 152002 | N42: =VLOOKUP($M42,'Atletas2019-20'!$A$3:$F$1358,2,FALSE) -> Matilde Silva | O42: =VLOOKUP($M42,'Atletas2019-20'!$A$3:$F$1358,6,FALSE) -> JV | P42: 335.7 | Q42: F500 Mx152002 | R42: =IF(COUNTIF($Q$6:Q42,Q42)=1,"SB","") -> SB | S42: 335.7 | U42: 2
A43: 38 | B43: 2024001 | D43: =IF(C43=2,VLOOKUP($B43,Competicoes!$A$2:$F$66,4,FALSE)+1,VLOOKUP($B43,Competicoes!$A$2:$F$66,4,FALSE)) -> 2019-11-09 | E43: =VLOOKUP($B43,Competicoes!$A$2:$F$66,6,FALSE) -> 2019-20 | F43: =VLOOKUP($B43,Competicoes!$A$2:$F$66,5,FALSE) -> Torneio de Abertura Prof. Mário Avelino | G43: =VLOOKUP($B43,Competicoes!$A$2:$F$66,2,FALSE) -> Óbidos | H43: =LEFT(VLOOKUP($B43,Competicoes!$A$2:$F$66,3,FALSE),2) -> AL | I43: 500 Mx | J43: =VLOOKUP($M43,'Atletas2019-20'!$A$3:$G$1358,7,FALSE) -> Ben-B | K43: =VLOOKUP($M43,'Atletas2019-20'!$A$3:$F$1358,5,FALSE) -> 2009 | L43: =VLOOKUP($M43,'Atletas2019-20'!$A$3:$F$1358,3,FALSE) -> F | M43: 158775 | N43: =VLOOKUP($M43,'Atletas2019-20'!$A$3:$F$1358,2,FALSE) -> Sofia Ferromau | O43: =VLOOKUP($M43,'Atletas2019-20'!$A$3:$F$1358,6,FALSE) -> CDBBR | P43: 354.4 | Q43: F500 Mx158775 | R43: =IF(COUNTIF($Q$6:Q43,Q43)=1,"SB","") -> SB | S43: 354.4 | U43: 2
A44: 39 | B44: 2024001 | D44: =IF(C44=2,VLOOKUP($B44,Competicoes!$A$2:$F$66,4,FALSE)+1,VLOOKUP($B44,Competicoes!$A$2:$F$66,4,FALSE)) -> 2019-11-09 | E44: =VLOOKUP($B44,Competicoes!$A$2:$F$66,6,FALSE) -> 2019-20 | F44: =VLOOKUP($B44,Competicoes!$A$2:$F$66,5,FALSE) -> Torneio de Abertura Prof. Mário Avelino | G44: =VLOOKUP($B44,Competicoes!$A$2:$F$66,2,FALSE) -> Óbidos | H44: =LEFT(VLOOKUP($B44,Competicoes!$A$2:$F$66,3,FALSE),2) -> AL | I44: 500 Mx | J44: =VLOOKUP($M44,'Atletas2019-20'!$A$3:$G$1358,7,FALSE) -> Ben-B | K44: =VLOOKUP($M44,'Atletas2019-20'!$A$3:$F$1358,5,FALSE) -> 2010 | L44: =VLOOKUP($M44,'Atletas2019-20'!$A$3:$F$1358,3,FALSE) -> M | M44: 149301 | N44: =VLOOKUP($M44,'Atletas2019-20'!$A$3:$F$1358,2,FALSE) -> João Rodrigues | O44: =VLOOKUP($M44,'Atletas2019-20'!$A$3:$F$1358,6,FALSE) -> CDBBR | P44: 353.7 | Q44: M500 Mx149301 | R44: =IF(COUNTIF($Q$6:Q44,Q44)=1,"SB","") -> SB | S44: 353.7 | U44: 2
A45: 40 | B45: 2024001 | D45: =IF(C45=2,VLOOKUP($B45,Competicoes!$A$2:$F$66,4,FALSE)+1,VLOOKUP($B45,Competicoes!$A$2:$F$66,4,FALSE)) -> 2019-11-09 | E45: =VLOOKUP($B45,Competicoes!$A$2:$F$66,6,FALSE) -> 2019-20 | F45: =VLOOKUP($B45,Competicoes!$A$2:$F$66,5,FALSE) -> Torneio de Abertura Prof. Mário Avelino | G45: =VLOOKUP($B45,Competicoes!$A$2:$F$66,2,FALSE) -> Óbidos | H45: =LEFT(VLOOKUP($B45,Competicoes!$A$2:$F$66,3,FALSE),2) -> AL | I45: 60 | J45: =VLOOKUP($M45,'Atletas2019-20'!$A$3:$G$1358,7,FALSE) -> Inf | K45: =VLOOKUP($M45,'Atletas2019-20'!$A$3:$F$1358,5,FALSE) -> 2007 | L45: =VLOOKUP($M45,'Atletas2019-20'!$A$3:$F$1358,3,FALSE) -> F | M45: 156617 | N45: =VLOOKUP($M45,'Atletas2019-20'!$A$3:$F$1358,2,FALSE) -> Sofia Santos | O45: =VLOOKUP($M45,'Atletas2019-20'!$A$3:$F$1358,6,FALSE) -> JV | P45: 9.14 | Q45: F60156617 | R45: =IF(COUNTIF($Q$6:Q45,Q45)=1,"SB","") -> SB | S45: 9.14 | T45: 6 | U45: 1
A46: 41 | B46: 2024001 | D46: =IF(C46=2,VLOOKUP($B46,Competicoes!$A$2:$F$66,4,FALSE)+1,VLOOKUP($B46,Competicoes!$A$2:$F$66,4,FALSE)) -> 2019-11-09 | E46: =VLOOKUP($B46,Competicoes!$A$2:$F$66,6,FALSE) -> 2019-20 | F46: =VLOOKUP($B46,Competicoes!$A$2:$F$66,5,FALSE) -> Torneio de Abertura Prof. Mário Avelino | G46: =VLOOKUP($B46,Competicoes!$A$2:$F$66,2,FALSE) -> Óbidos | H46: =LEFT(VLOOKUP($B46,Competicoes!$A$2:$F$66,3,FALSE),2) -> AL | I46: 60 | J46: =VLOOKUP($M46,'Atletas2019-20'!$A$3:$G$1358,7,FALSE) -> Inf | K46: =VLOOKUP($M46,'Atletas2019-20'!$A$3:$F$1358,5,FALSE) -> 2007 | L46: =VLOOKUP($M46,'Atletas2019-20'!$A$3:$F$1358,3,FALSE) -> F | M46: 158375 | N46: =VLOOKUP($M46,'Atletas2019-20'!$A$3:$F$1358,2,FALSE) -> Mariana Custódio | O46: =VLOOKUP($M46,'Atletas2019-20'!$A$3:$F$1358,6,FALSE) -> GDP-L | P46: 9.54 | Q46: F60158375 | R46: =IF(COUNTIF($Q$6:Q46,Q46)=1,"SB","") -> SB | S46: 9.54 | T46: 6 | U46: 1
A47: 42 | B47: 2024001 | D47: =IF(C47=2,VLOOKUP($B47,Competicoes!$A$2:$F$66,4,FALSE)+1,VLOOKUP($B47,Competicoes!$A$2:$F$66,4,FALSE)) -> 2019-11-09 | E47: =VLOOKUP($B47,Competicoes!$A$2:$F$66,6,FALSE) -> 2019-20 | F47: =VLOOKUP($B47,Competicoes!$A$2:$F$66,5,FALSE) -> Torneio de Abertura Prof. Mário Avelino | G47: =VLOOKUP($B47,Competicoes!$A$2:$F$66,2,FALSE) -> Óbidos | H47: =LEFT(VLOOKUP($B47,Competicoes!$A$2:$F$66,3,FALSE),2) -> AL | I47: 60 | J47: =VLOOKUP($M47,'Atletas2019-20'!$A$3:$G$1358,7,FALSE) -> Inf | K47: =VLOOKUP($M47,'Atletas2019-20'!$A$3:$F$1358,5,FALSE) -> 2007 | L47: =VLOOKUP($M47,'Atletas2019-20'!$A$3:$F$1358,3,FALSE) -> F | M47: 146231 | N47: =VLOOKUP($M47,'Atletas2019-20'!$A$3:$F$1358,2,FALSE) -> Helena Alípio | O47: =VLOOKUP($M47,'Atletas2019-20'!$A$3:$F$1358,6,FALSE) -> JV | P47: 10.34 | Q47: F60146231 | R47: =IF(COUNTIF($Q$6:Q47,Q47)=1,"SB","") -> SB | S47: 10.34 | T47: 6 | U47: 1
A48: 43 | B48: 2024001 | D48: =IF(C48=2,VLOOKUP($B48,Competicoes!$A$2:$F$66,4,FALSE)+1,VLOOKUP($B48,Competicoes!$A$2:$F$66,4,FALSE)) -> 2019-11-09 | E48: =VLOOKUP($B48,Competicoes!$A$2:$F$66,6,FALSE) -> 2019-20 | F48: =VLOOKUP($B48,Competicoes!$A$2:$F$66,5,FALSE) -> Torneio de Abertura Prof. Mário Avelino | G48: =VLOOKUP($B48,Competicoes!$A$2:$F$66,2,FALSE) -> Óbidos | H48: =LEFT(VLOOKUP($B48,Competicoes!$A$2:$F$66,3,FALSE),2) -> AL | I48: 60 | J48: =VLOOKUP($M48,'Atletas2019-20'!$A$3:$G$1358,7,FALSE) -> Inf | K48: =VLOOKUP($M48,'Atletas2019-20'!$A$3:$F$1358,5,FALSE) -> 2008 | L48: =VLOOKUP($M48,'Atletas2019-20'!$A$3:$F$1358,3,FALSE) -> F | M48: 156811 | N48: =VLOOKUP($M48,'Atletas2019-20'!$A$3:$F$1358,2,FALSE) -> Constança Lavos | O48: =VLOOKUP($M48,'Atletas2019-20'!$A$3:$F$1358,6,FALSE) -> JV | P48: 10.54 | Q48: F60156811 | R48: =IF(COUNTIF($Q$6:Q48,Q48)=1,"SB","") -> SB | S48: 10.54 | T48: 6 | U48: 1
A49: 44 | B49: 2024001 | D49: =IF(C49=2,VLOOKUP($B49,Competicoes!$A$2:$F$66,4,FALSE)+1,VLOOKUP($B49,Competicoes!$A$2:$F$66,4,FALSE)) -> 2019-11-09 | E49: =VLOOKUP($B49,Competicoes!$A$2:$F$66,6,FALSE) -> 2019-20 | F49: =VLOOKUP($B49,Competicoes!$A$2:$F$66,5,FALSE) -> Torneio de Abertura Prof. Mário Avelino | G49: =VLOOKUP($B49,Competicoes!$A$2:$F$66,2,FALSE) -> Óbidos | H49: =LEFT(VLOOKUP($B49,Competicoes!$A$2:$F$66,3,FALSE),2) -> AL | I49: 60 | J49: =VLOOKUP($M49,'Atletas2019-20'!$A$3:$G$1358,7,FALSE) -> Inf | K49: =VLOOKUP($M49,'Atletas2019-20'!$A$3:$F$1358,5,FALSE) -> 2007 | L49: =VLOOKUP($M49,'Atletas2019-20'!$A$3:$F$1358,3,FALSE) -> F | M49: 156551 | N49: =VLOOKUP($M49,'Atletas2019-20'!$A$3:$F$1358,2,FALSE) -> Carolina P Santos | O49: =VLOOKUP($M49,'Atletas2019-20'!$A$3:$F$1358,6,FALSE) -> JV | P49: 10.64 | Q49: F60156551 | R49: =IF(COUNTIF($Q$6:Q49,Q49)=1,"SB","") -> SB | S49: 10.64 | T49: 6 | U49: 1
A50: 45 | B50: 2024001 | D50: =IF(C50=2,VLOOKUP($B50,Competicoes!$A$2:$F$66,4,FALSE)+1,VLOOKUP($B50,Competicoes!$A$2:$F$66,4,FALSE)) -> 2019-11-09 | E50: =VLOOKUP($B50,Competicoes!$A$2:$F$66,6,FALSE) -> 2019-20 | F50: =VLOOKUP($B50,Competicoes!$A$2:$F$66,5,FALSE) -> Torneio de Abertura Prof. Mário Avelino | G50: =VLOOKUP($B50,Competicoes!$A$2:$F$66,2,FALSE) -> Óbidos | H50: =LEFT(VLOOKUP($B50,Competicoes!$A$2:$F$66,3,FALSE),2) -> AL | I50: 60 | J50: =VLOOKUP($M50,'Atletas2019-20'!$A$3:$G$1358,7,FALSE) -> Inf | K50: =VLOOKUP($M50,'Atletas2019-20'!$A$3:$F$1358,5,FALSE) -> 2008 | L50: =VLOOKUP($M50,'Atletas2019-20'!$A$3:$F$1358,3,FALSE) -> F | M50: 131029 | N50: =VLOOKUP($M50,'Atletas2019-20'!$A$3:$F$1358,2,FALSE) -> Luna Julião | O50: =VLOOKUP($M50,'Atletas2019-20'!$A$3:$F$1358,6,FALSE) -> JV | P50: 10.94 | Q50: F60131029 | R50: =IF(COUNTIF($Q$6:Q50,Q50)=1,"SB","") -> SB | S50: 10.94 | T50: 6 | U50: 1
A51: 46 | B51: 2024001 | D51: =IF(C51=2,VLOOKUP($B51,Competicoes!$A$2:$F$66,4,FALSE)+1,VLOOKUP($B51,Competicoes!$A$2:$F$66,4,FALSE)) -> 2019-11-09 | E51: =VLOOKUP($B51,Competicoes!$A$2:$F$66,6,FALSE) -> 2019-20 | F51: =VLOOKUP($B51,Competicoes!$A$2:$F$66,5,FALSE) -> Torneio de Abertura Prof. Mário Avelino | G51: =VLOOKUP($B51,Competicoes!$A$2:$F$66,2,FALSE) -> Óbidos | H51: =LEFT(VLOOKUP($B51,Competicoes!$A$2:$F$66,3,FALSE),2) -> AL | I51: 60 | J51: =VLOOKUP($M51,'Atletas2019-20'!$A$3:$G$1358,7,FALSE) -> Inf | K51: =VLOOKUP($M51,'Atletas2019-20'!$A$3:$F$1358,5,FALSE) -> 2007 | L51: =VLOOKUP($M51,'Atletas2019-20'!$A$3:$F$1358,3,FALSE) -> F | M51: 143868 | N51: =VLOOKUP($M51,'Atletas2019-20'!$A$3:$F$1358,2,FALSE) -> Marta Carriço | O51: =VLOOKUP($M51,'Atletas2019-20'!$A$3:$F$1358,6,FALSE) -> ACDRA | P51: 8.44 | Q51: F60143868 | R51: =IF(COUNTIF($Q$6:Q51,Q51)=1,"SB","") -> SB | S51: 8.44 | T51: 5 | U51: 1
A52: 47 | B52: 2024001 | D52: =IF(C52=2,VLOOKUP($B52,Competicoes!$A$2:$F$66,4,FALSE)+1,VLOOKUP($B52,Competicoes!$A$2:$F$66,4,FALSE)) -> 2019-11-09 | E52: =VLOOKUP($B52,Competicoes!$A$2:$F$66,6,FALSE) -> 2019-20 | F52: =VLOOKUP($B52,Competicoes!$A$2:$F$66,5,FALSE) -> Torneio de Abertura Prof. Mário Avelino | G52: =VLOOKUP($B52,Competicoes!$A$2:$F$66,2,FALSE) -> Óbidos | H52: =LEFT(VLOOKUP($B52,Competicoes!$A$2:$F$66,3,FALSE),2) -> AL | I52: 60 | J52: =VLOOKUP($M52,'Atletas2019-20'!$A$3:$G$1358,7,FALSE) -> Inf | K52: =VLOOKUP($M52,'Atletas2019-20'!$A$3:$F$1358,5,FALSE) -> 2007 | L52: =VLOOKUP($M52,'Atletas2019-20'!$A$3:$F$1358,3,FALSE) -> F | M52: 146424 | N52: =VLOOKUP($M52,'Atletas2019-20'!$A$3:$F$1358,2,FALSE) -> Carina Marto | O52: =VLOOKUP($M52,'Atletas2019-20'!$A$3:$F$1358,6,FALSE) -> GDP-L | P52: 9.04 | Q52: F60146424 | R52: =IF(COUNTIF($Q$6:Q52,Q52)=1,"SB","") -> SB | S52: 9.04 | T52: 5 | U52: 1
A53: 48 | B53: 2024001 | D53: =IF(C53=2,VLOOKUP($B53,Competicoes!$A$2:$F$66,4,FALSE)+1,VLOOKUP($B53,Competicoes!$A$2:$F$66,4,FALSE)) -> 2019-11-09 | E53: =VLOOKUP($B53,Competicoes!$A$2:$F$66,6,FALSE) -> 2019-20 | F53: =VLOOKUP($B53,Competicoes!$A$2:$F$66,5,FALSE) -> Torneio de Abertura Prof. Mário Avelino | G53: =VLOOKUP($B53,Competicoes!$A$2:$F$66,2,FALSE) -> Óbidos | H53: =LEFT(VLOOKUP($B53,Competicoes!$A$2:$F$66,3,FALSE),2) -> AL | I53: 60 | J53: =VLOOKUP($M53,'Atletas2019-20'!$A$3:$G$1358,7,FALSE) -> Inf | K53: =VLOOKUP($M53,'Atletas2019-20'!$A$3:$F$1358,5,FALSE) -> 2008 | L53: =VLOOKUP($M53,'Atletas2019-20'!$A$3:$F$1358,3,FALSE) -> F | M53: 152007 | N53: =VLOOKUP($M53,'Atletas2019-20'!$A$3:$F$1358,2,FALSE) -> Marta Feliciano | O53: =VLOOKUP($M53,'Atletas2019-20'!$A$3:$F$1358,6,FALSE) -> JV | P53: 9.24 | Q53: F60152007 | R53: =IF(COUNTIF($Q$6:Q53,Q53)=1,"SB","") -> SB | S53: 9.24 | T53: 5 | U53: 1
A54: 49 | B54: 2024001 | D54: =IF(C54=2,VLOOKUP($B54,Competicoes!$A$2:$F$66,4,FALSE)+1,VLOOKUP($B54,Competicoes!$A$2:$F$66,4,FALSE)) -> 2019-11-09 | E54: =VLOOKUP($B54,Competicoes!$A$2:$F$66,6,FALSE) -> 2019-20 | F54: =VLOOKUP($B54,Competicoes!$A$2:$F$66,5,FALSE) -> Torneio de Abertura Prof. Mário Avelino | G54: =VLOOKUP($B54,Competicoes!$A$2:$F$66,2,FALSE) -> Óbidos | H54: =LEFT(VLOOKUP($B54,Competicoes!$A$2:$F$66,3,FALSE),2) -> AL | I54: 60 | J54: =VLOOKUP($M54,'Atletas2019-20'!$A$3:$G$1358,7,FALSE) -> Inf | K54: =VLOOKUP($M54,'Atletas2019-20'!$A$3:$F$1358,5,FALSE) -> 2008 | L54: =VLOOKUP($M54,'Atletas2019-20'!$A$3:$F$1358,3,FALSE) -> F | M54: 153645 | N54: =VLOOKUP($M54,'Atletas2019-20'!$A$3:$F$1358,2,FALSE) -> Benedita Matias | O54: =VLOOKUP($M54,'Atletas2019-20'!$A$3:$F$1358,6,FALSE) -> JV | P54: 9.54 | Q54: F60153645 | R54: =IF(COUNTIF($Q$6:Q54,Q54)=1,"SB","") -> SB | S54: 9.54 | T54: 5 | U54: 1
A55: 50 | B55: 2024001 | D55: =IF(C55=2,VLOOKUP($B55,Competicoes!$A$2:$F$66,4,FALSE)+1,VLOOKUP($B55,Competicoes!$A$2:$F$66,4,FALSE)) -> 2019-11-09 | E55: =VLOOKUP($B55,Competicoes!$A$2:$F$66,6,FALSE) -> 2019-20 | F55: =VLOOKUP($B55,Competicoes!$A$2:$F$66,5,FALSE) -> Torneio de Abertura Prof. Mário Avelino | G55: =VLOOKUP($B55,Competicoes!$A$2:$F$66,2,FALSE) -> Óbidos | H55: =LEFT(VLOOKUP($B55,Competicoes!$A$2:$F$66,3,FALSE),2) -> AL | I55: 60 | J55: =VLOOKUP($M55,'Atletas2019-20'!$A$3:$G$1358,7,FALSE) -> Inf | K55: =VLOOKUP($M55,'Atletas2019-20'!$A$3:$F$1358,5,FALSE) -> 2007 | L55: =VLOOKUP($M55,'Atletas2019-20'!$A$3:$F$1358,3,FALSE) -> F | M55: 139372 | N55: =VLOOKUP($M55,'Atletas2019-20'!$A$3:$F$1358,2,FALSE) -> Camila Patraboy | O55: =VLOOKUP($M55,'Atletas2019-20'!$A$3:$F$1358,6,FALSE) -> JV | P55: 10.34 | Q55: F60139372 | R55: =IF(COUNTIF($Q$6:Q55,Q55)=1,"SB","") -> SB | S55: 10.34 | T55: 5 | U55: 1
A56: 51 | B56: 2024001 | D56: =IF(C56=2,VLOOKUP($B56,Competicoes!$A$2:$F$66,4,FALSE)+1,VLOOKUP($B56,Competicoes!$A$2:$F$66,4,FALSE)) -> 2019-11-09 | E56: =VLOOKUP($B56,Competicoes!$A$2:$F$66,6,FALSE) -> 2019-20 | F56: =VLOOKUP($B56,Competicoes!$A$2:$F$66,5,FALSE) -> Torneio de Abertura Prof. Mário Avelino | G56: =VLOOKUP($B56,Competicoes!$A$2:$F$66,2,FALSE) -> Óbidos | H56: =LEFT(VLOOKUP($B56,Competicoes!$A$2:$F$66,3,FALSE),2) -> AL | I56: 60 | J56: =VLOOKUP($M56,'Atletas2019-20'!$A$3:$G$1358,7,FALSE) -> Inf | K56: =VLOOKUP($M56,'Atletas2019-20'!$A$3:$F$1358,5,FALSE) -> 2008 | L56: =VLOOKUP($M56,'Atletas2019-20'!$A$3:$F$1358,3,FALSE) -> F | M56: 141300 | N56: =VLOOKUP($M56,'Atletas2019-20'!$A$3:$F$1358,2,FALSE) -> Miriam Machado | O56: =VLOOKUP($M56,'Atletas2019-20'!$A$3:$F$1358,6,FALSE) -> JV | P56: 10.64 | Q56: F60141300 | R56: =IF(COUNTIF($Q$6:Q56,Q56)=1,"SB","") -> SB | S56: 10.64 | T56: 5 | U56: 1
A57: 52 | B57: 2024001 | D57: =IF(C57=2,VLOOKUP($B57,Competicoes!$A$2:$F$66,4,FALSE)+1,VLOOKUP($B57,Competicoes!$A$2:$F$66,4,FALSE)) -> 2019-11-09 | E57: =VLOOKUP($B57,Competicoes!$A$2:$F$66,6,FALSE) -> 2019-20 | F57: =VLOOKUP($B57,Competicoes!$A$2:$F$66,5,FALSE) -> Torneio de Abertura Prof. Mário Avelino | G57: =VLOOKUP($B57,Competicoes!$A$2:$F$66,2,FALSE) -> Óbidos | H57: =LEFT(VLOOKUP($B57,Competicoes!$A$2:$F$66,3,FALSE),2) -> AL | I57: 60 | J57: =VLOOKUP($M57,'Atletas2019-20'!$A$3:$G$1358,7,FALSE) -> Inf | K57: =VLOOKUP($M57,'Atletas2019-20'!$A$3:$F$1358,5,FALSE) -> 2007 | L57: =VLOOKUP($M57,'Atletas2019-20'!$A$3:$F$1358,3,FALSE) -> M | M57: 132214 | N57: =VLOOKUP($M57,'Atletas2019-20'!$A$3:$F$1358,2,FALSE) -> Tomás Monteiro | O57: =VLOOKUP($M57,'Atletas2019-20'!$A$3:$F$1358,6,FALSE) -> JV | P57: 9.24 | Q57: M60132214 | R57: =IF(COUNTIF($Q$6:Q57,Q57)=1,"SB","") -> SB | S57: 9.24 | T57: 3.8 | U57: 1
A58: 53 | B58: 2024001 | D58: =IF(C58=2,VLOOKUP($B58,Competicoes!$A$2:$F$66,4,FALSE)+1,VLOOKUP($B58,Competicoes!$A$2:$F$66,4,FALSE)) -> 2019-11-09 | E58: =VLOOKUP($B58,Competicoes!$A$2:$F$66,6,FALSE) -> 2019-20 | F58: =VLOOKUP($B58,Competicoes!$A$2:$F$66,5,FALSE) -> Torneio de Abertura Prof. Mário Avelino | G58: =VLOOKUP($B58,Competicoes!$A$2:$F$66,2,FALSE) -> Óbidos | H58: =LEFT(VLOOKUP($B58,Competicoes!$A$2:$F$66,3,FALSE),2) -> AL | I58: 60 | J58: =VLOOKUP($M58,'Atletas2019-20'!$A$3:$G$1358,7,FALSE) -> Inf | K58: =VLOOKUP($M58,'Atletas2019-20'!$A$3:$F$1358,5,FALSE) -> 2007 | L58: =VLOOKUP($M58,'Atletas2019-20'!$A$3:$F$1358,3,FALSE) -> M | M58: 146293 | N58: =VLOOKUP($M58,'Atletas2019-20'!$A$3:$F$1358,2,FALSE) -> Rodrigo Esteves | O58: =VLOOKUP($M58,'Atletas2019-20'!$A$3:$F$1358,6,FALSE) -> GDP-L | P58: 9.64 | Q58: M60146293 | R58: =IF(COUNTIF($Q$6:Q58,Q58)=1,"SB","") -> SB | S58: 9.64 | T58: 3.8 | U58: 1
A59: 54 | B59: 2024001 | D59: =IF(C59=2,VLOOKUP($B59,Competicoes!$A$2:$F$66,4,FALSE)+1,VLOOKUP($B59,Competicoes!$A$2:$F$66,4,FALSE)) -> 2019-11-09 | E59: =VLOOKUP($B59,Competicoes!$A$2:$F$66,6,FALSE) -> 2019-20 | F59: =VLOOKUP($B59,Competicoes!$A$2:$F$66,5,FALSE) -> Torneio de Abertura Prof. Mário Avelino | G59: =VLOOKUP($B59,Competicoes!$A$2:$F$66,2,FALSE) -> Óbidos | H59: =LEFT(VLOOKUP($B59,Competicoes!$A$2:$F$66,3,FALSE),2) -> AL | I59: 60 | J59: =VLOOKUP($M59,'Atletas2019-20'!$A$3:$G$1358,7,FALSE) -> Inf | K59: =VLOOKUP($M59,'Atletas2019-20'!$A$3:$F$1358,5,FALSE) -> 2008 | L59: =VLOOKUP($M59,'Atletas2019-20'!$A$3:$F$1358,3,FALSE) -> M | M59: 157936 | N59: =VLOOKUP($M59,'Atletas2019-20'!$A$3:$F$1358,2,FALSE) -> Matias Ferreira | O59: =VLOOKUP($M59,'Atletas2019-20'!$A$3:$F$1358,6,FALSE) -> GDP-L | P59: 9.84 | Q59: M60157936 | R59: =IF(COUNTIF($Q$6:Q59,Q59)=1,"SB","") -> SB | S59: 9.84 | T59: 3.8 | U59: 1
A60: 55 | B60: 2024001 | D60: =IF(C60=2,VLOOKUP($B60,Competicoes!$A$2:$F$66,4,FALSE)+1,VLOOKUP($B60,Competicoes!$A$2:$F$66,4,FALSE)) -> 2019-11-09 | E60: =VLOOKUP($B60,Competicoes!$A$2:$F$66,6,FALSE) -> 2019-20 | F60: =VLOOKUP($B60,Competicoes!$A$2:$F$66,5,FALSE) -> Torneio de Abertura Prof. Mário Avelino | G60: =VLOOKUP($B60,Competicoes!$A$2:$F$66,2,FALSE) -> Óbidos | H60: =LEFT(VLOOKUP($B60,Competicoes!$A$2:$F$66,3,FALSE),2) -> AL | I60: 60 | J60: =VLOOKUP($M60,'Atletas2019-20'!$A$3:$G$1358,7,FALSE) -> Inf | K60: =VLOOKUP($M60,'Atletas2019-20'!$A$3:$F$1358,5,FALSE) -> 2008 | L60: =VLOOKUP($M60,'Atletas2019-20'!$A$3:$F$1358,3,FALSE) -> M | M60: 152367 | N60: =VLOOKUP($M60,'Atletas2019-20'!$A$3:$F$1358,2,FALSE) -> Afonso Nogueira | O60: =VLOOKUP($M60,'Atletas2019-20'!$A$3:$F$1358,6,FALSE) -> JV | P60: 10.34 | Q60: M60152367 | R60: =IF(COUNTIF($Q$6:Q60,Q60)=1,"SB","") -> SB | S60: 10.34 | T60: 3.8 | U60: 1
A61: 56 | B61: 2024001 | D61: =IF(C61=2,VLOOKUP($B61,Competicoes!$A$2:$F$66,4,FALSE)+1,VLOOKUP($B61,Competicoes!$A$2:$F$66,4,FALSE)) -> 2019-11-09 | E61: =VLOOKUP($B61,Competicoes!$A$2:$F$66,6,FALSE) -> 2019-20 | F61: =VLOOKUP($B61,Competicoes!$A$2:$F$66,5,FALSE) -> Torneio de Abertura Prof. Mário Avelino | G61: =VLOOKUP($B61,Competicoes!$A$2:$F$66,2,FALSE) -> Óbidos | H61: =LEFT(VLOOKUP($B61,Competicoes!$A$2:$F$66,3,FALSE),2) -> AL | I61: 60 | J61: =VLOOKUP($M61,'Atletas2019-20'!$A$3:$G$1358,7,FALSE) -> Inf | K61: =VLOOKUP($M61,'Atletas2019-20'!$A$3:$F$1358,5,FALSE) -> 2008 | L61: =VLOOKUP($M61,'Atletas2019-20'!$A$3:$F$1358,3,FALSE) -> M | M61: 157957 | N61: =VLOOKUP($M61,'Atletas2019-20'!$A$3:$F$1358,2,FALSE) -> Eduardo Cruz | O61: =VLOOKUP($M61,'Atletas2019-20'!$A$3:$F$1358,6,FALSE) -> GDP-L | P61: 10.54 | Q61: M60157957 | R61: =IF(COUNTIF($Q$6:Q61,Q61)=1,"SB","") -> SB | S61: 10.54 | T61: 3.8 | U61: 1
A62: 57 | B62: 2024001 | D62: =IF(C62=2,VLOOKUP($B62,Competicoes!$A$2:$F$66,4,FALSE)+1,VLOOKUP($B62,Competicoes!$A$2:$F$66,4,FALSE)) -> 2019-11-09 | E62: =VLOOKUP($B62,Competicoes!$A$2:$F$66,6,FALSE) -> 2019-20 | F62: =VLOOKUP($B62,Competicoes!$A$2:$F$66,5,FALSE) -> Torneio de Abertura Prof. Mário Avelino | G62: =VLOOKUP($B62,Competicoes!$A$2:$F$66,2,FALSE) -> Óbidos | H62: =LEFT(VLOOKUP($B62,Competicoes!$A$2:$F$66,3,FALSE),2) -> AL | I62: 60 | J62: =VLOOKUP($M62,'Atletas2019-20'!$A$3:$G$1358,7,FALSE) -> Inf | K62: =VLOOKUP($M62,'Atletas2019-20'!$A$3:$F$1358,5,FALSE) -> 2008 | L62: =VLOOKUP($M62,'Atletas2019-20'!$A$3:$F$1358,3,FALSE) -> M | M62: 155570 | N62: =VLOOKUP($M62,'Atletas2019-20'!$A$3:$F$1358,2,FALSE) -> Davide Prazeres | O62: =VLOOKUP($M62,'Atletas2019-20'!$A$3:$F$1358,6,FALSE) -> CDBBR | P62: 11.04 | Q62: M60155570 | R62: =IF(COUNTIF($Q$6:Q62,Q62)=1,"SB","") -> SB | S62: 11.04 | T62: 3.8 | U62: 1
A63: 58 | B63: 2024001 | D63: =IF(C63=2,VLOOKUP($B63,Competicoes!$A$2:$F$66,4,FALSE)+1,VLOOKUP($B63,Competicoes!$A$2:$F$66,4,FALSE)) -> 2019-11-09 | E63: =VLOOKUP($B63,Competicoes!$A$2:$F$66,6,FALSE) -> 2019-20 | F63: =VLOOKUP($B63,Competicoes!$A$2:$F$66,5,FALSE) -> Torneio de Abertura Prof. Mário Avelino | G63: =VLOOKUP($B63,Competicoes!$A$2:$F$66,2,FALSE) -> Óbidos | H63: =LEFT(VLOOKUP($B63,Competicoes!$A$2:$F$66,3,FALSE),2) -> AL | I63: 60 | J63: =VLOOKUP($M63,'Atletas2019-20'!$A$3:$G$1358,7,FALSE) -> Inf | K63: =VLOOKUP($M63,'Atletas2019-20'!$A$3:$F$1358,5,FALSE) -> 2007 | L63: =VLOOKUP($M63,'Atletas2019-20'!$A$3:$F$1358,3,FALSE) -> M | M63: 131383 | N63: =VLOOKUP($M63,'Atletas2019-20'!$A$3:$F$1358,2,FALSE) -> Gabriel Cunha | O63: =VLOOKUP($M63,'Atletas2019-20'!$A$3:$F$1358,6,FALSE) -> GDP-L | P63: 8.24 | Q63: M60131383 | R63: =IF(COUNTIF($Q$6:Q63,Q63)=1,"SB","") -> SB | S63: 8.24 | T63: 5.1 | U63: 1
A64: 59 | B64: 2024001 | D64: =IF(C64=2,VLOOKUP($B64,Competicoes!$A$2:$F$66,4,FALSE)+1,VLOOKUP($B64,Competicoes!$A$2:$F$66,4,FALSE)) -> 2019-11-09 | E64: =VLOOKUP($B64,Competicoes!$A$2:$F$66,6,FALSE) -> 2019-20 | F64: =VLOOKUP($B64,Competicoes!$A$2:$F$66,5,FALSE) -> Torneio de Abertura Prof. Mário Avelino | G64: =VLOOKUP($B64,Competicoes!$A$2:$F$66,2,FALSE) -> Óbidos | H64: =LEFT(VLOOKUP($B64,Competicoes!$A$2:$F$66,3,FALSE),2) -> AL | I64: 60 | J64: =VLOOKUP($M64,'Atletas2019-20'!$A$3:$G$1358,7,FALSE) -> Inf | K64: =VLOOKUP($M64,'Atletas2019-20'!$A$3:$F$1358,5,FALSE) -> 2007 | L64: =VLOOKUP($M64,'Atletas2019-20'!$A$3:$F$1358,3,FALSE) -> M | M64: 150874 | N64: =VLOOKUP($M64,'Atletas2019-20'!$A$3:$F$1358,2,FALSE) -> Denis Hrabar | O64: =VLOOKUP($M64,'Atletas2019-20'!$A$3:$F$1358,6,FALSE) -> JV | P64: 8.74 | Q64: M60150874 | R64: =IF(COUNTIF($Q$6:Q64,Q64)=1,"SB","") -> SB | S64: 8.74 | T64: 5.1 | U64: 1
A65: 60 | B65: 2024001 | D65: =IF(C65=2,VLOOKUP($B65,Competicoes!$A$2:$F$66,4,FALSE)+1,VLOOKUP($B65,Competicoes!$A$2:$F$66,4,FALSE)) -> 2019-11-09 | E65: =VLOOKUP($B65,Competicoes!$A$2:$F$66,6,FALSE) -> 2019-20 | F65: =VLOOKUP($B65,Competicoes!$A$2:$F$66,5,FALSE) -> Torneio de Abertura Prof. Mário Avelino | G65: =VLOOKUP($B65,Competicoes!$A$2:$F$66,2,FALSE) -> Óbidos | H65: =LEFT(VLOOKUP($B65,Competicoes!$A$2:$F$66,3,FALSE),2) -> AL | I65: 60 | J65: =VLOOKUP($M65,'Atletas2019-20'!$A$3:$G$1358,7,FALSE) -> Inf | K65: =VLOOKUP($M65,'Atletas2019-20'!$A$3:$F$1358,5,FALSE) -> 2008 | L65: =VLOOKUP($M65,'Atletas2019-20'!$A$3:$F$1358,3,FALSE) -> M | M65: 153294 | N65: =VLOOKUP($M65,'Atletas2019-20'!$A$3:$F$1358,2,FALSE) -> António Vasconcelos | O65: =VLOOKUP($M65,'Atletas2019-20'!$A$3:$F$1358,6,FALSE) -> JV | P65: 9.04 | Q65: M60153294 | R65: =IF(COUNTIF($Q$6:Q65,Q65)=1,"SB","") -> SB | S65: 9.04 | T65: 5.1 | U65: 1
A66: 61 | B66: 2024001 | D66: =IF(C66=2,VLOOKUP($B66,Competicoes!$A$2:$F$66,4,FALSE)+1,VLOOKUP($B66,Competicoes!$A$2:$F$66,4,FALSE)) -> 2019-11-09 | E66: =VLOOKUP($B66,Competicoes!$A$2:$F$66,6,FALSE) -> 2019-20 | F66: =VLOOKUP($B66,Competicoes!$A$2:$F$66,5,FALSE) -> Torneio de Abertura Prof. Mário Avelino | G66: =VLOOKUP($B66,Competicoes!$A$2:$F$66,2,FALSE) -> Óbidos | H66: =LEFT(VLOOKUP($B66,Competicoes!$A$2:$F$66,3,FALSE),2) -> AL | I66: 60 | J66: =VLOOKUP($M66,'Atletas2019-20'!$A$3:$G$1358,7,FALSE) -> Inf | K66: =VLOOKUP($M66,'Atletas2019-20'!$A$3:$F$1358,5,FALSE) -> 2007 | L66: =VLOOKUP($M66,'Atletas2019-20'!$A$3:$F$1358,3,FALSE) -> M | M66: 145061 | N66: =VLOOKUP($M66,'Atletas2019-20'!$A$3:$F$1358,2,FALSE) -> Hugo Matias | O66: =VLOOKUP($M66,'Atletas2019-20'!$A$3:$F$1358,6,FALSE) -> JV | P66: 9.24 | Q66: M60145061 | R66: =IF(COUNTIF($Q$6:Q66,Q66)=1,"SB","") -> SB | S66: 9.24 | T66: 5.1 | U66: 1
A67: 62 | B67: 2024001 | D67: =IF(C67=2,VLOOKUP($B67,Competicoes!$A$2:$F$66,4,FALSE)+1,VLOOKUP($B67,Competicoes!$A$2:$F$66,4,FALSE)) -> 2019-11-09 | E67: =VLOOKUP($B67,Competicoes!$A$2:$F$66,6,FALSE) -> 2019-20 | F67: =VLOOKUP($B67,Competicoes!$A$2:$F$66,5,FALSE) -> Torneio de Abertura Prof. Mário Avelino | G67: =VLOOKUP($B67,Competicoes!$A$2:$F$66,2,FALSE) -> Óbidos | H67: =LEFT(VLOOKUP($B67,Competicoes!$A$2:$F$66,3,FALSE),2) -> AL | I67: 60 | J67: =VLOOKUP($M67,'Atletas2019-20'!$A$3:$G$1358,7,FALSE) -> Inf | K67: =VLOOKUP($M67,'Atletas2019-20'!$A$3:$F$1358,5,FALSE) -> 2008 | L67: =VLOOKUP($M67,'Atletas2019-20'!$A$3:$F$1358,3,FALSE) -> M | M67: 139333 | N67: =VLOOKUP($M67,'Atletas2019-20'!$A$3:$F$1358,2,FALSE) -> Filipe Fernandes | O67: =VLOOKUP($M67,'Atletas2019-20'!$A$3:$F$1358,6,FALSE) -> JV | P67: 10.74 | Q67: M60139333 | R67: =IF(COUNTIF($Q$6:Q67,Q67)=1,"SB","") -> SB | S67: 10.74 | T67: 5.1 | U67: 1
A68: 63 | B68: 2024001 | D68: =IF(C68=2,VLOOKUP($B68,Competicoes!$A$2:$F$66,4,FALSE)+1,VLOOKUP($B68,Competicoes!$A$2:$F$66,4,FALSE)) -> 2019-11-09 | E68: =VLOOKUP($B68,Competicoes!$A$2:$F$66,6,FALSE) -> 2019-20 | F68: =VLOOKUP($B68,Competicoes!$A$2:$F$66,5,FALSE) -> Torneio de Abertura Prof. Mário Avelino | G68: =VLOOKUP($B68,Competicoes!$A$2:$F$66,2,FALSE) -> Óbidos | H68: =LEFT(VLOOKUP($B68,Competicoes!$A$2:$F$66,3,FALSE),2) -> AL | I68: 60 | J68: =VLOOKUP($M68,'Atletas2019-20'!$A$3:$G$1358,7,FALSE) -> Inf | K68: =VLOOKUP($M68,'Atletas2019-20'!$A$3:$F$1358,5,FALSE) -> 2008 | L68: =VLOOKUP($M68,'Atletas2019-20'!$A$3:$F$1358,3,FALSE) -> M | M68: 149690 | N68: =VLOOKUP($M68,'Atletas2019-20'!$A$3:$F$1358,2,FALSE) -> Artur Coelho | O68: =VLOOKUP($M68,'Atletas2019-20'!$A$3:$F$1358,6,FALSE) -> CDBBR | P68: 12.04 | Q68: M60149690 | R68: =IF(COUNTIF($Q$6:Q68,Q68)=1,"SB","") -> SB | S68: 12.04 | T68: 5.1 | U68: 1
A69: 64 | B69: 2024001 | D69: =IF(C69=2,VLOOKUP($B69,Competicoes!$A$2:$F$66,4,FALSE)+1,VLOOKUP($B69,Competicoes!$A$2:$F$66,4,FALSE)) -> 2019-11-09 | E69: =VLOOKUP($B69,Competicoes!$A$2:$F$66,6,FALSE) -> 2019-20 | F69: =VLOOKUP($B69,Competicoes!$A$2:$F$66,5,FALSE) -> Torneio de Abertura Prof. Mário Avelino | G69: =VLOOKUP($B69,Competicoes!$A$2:$F$66,2,FALSE) -> Óbidos | H69: =LEFT(VLOOKUP($B69,Competicoes!$A$2:$F$66,3,FALSE),2) -> AL | I69: ARRBOLA | J69: =VLOOKUP($M69,'Atletas2019-20'!$A$3:$G$1358,7,FALSE) -> Ben-B | K69: =VLOOKUP($M69,'Atletas2019-20'!$A$3:$F$1358,5,FALSE) -> 2010 | L69: =VLOOKUP($M69,'Atletas2019-20'!$A$3:$F$1358,3,FALSE) -> F | M69: 140556 | N69: =VLOOKUP($M69,'Atletas2019-20'!$A$3:$F$1358,2,FALSE) -> Lara Simões | O69: =VLOOKUP($M69,'Atletas2019-20'!$A$3:$F$1358,6,FALSE) -> JV | P69: -9.74 | Q69: FARRBOLA140556 | R69: =IF(COUNTIF($Q$6:Q69,Q69)=1,"SB","") -> SB | S69: 9.74 | U69: 2
A70: 65 | B70: 2024001 | D70: =IF(C70=2,VLOOKUP($B70,Competicoes!$A$2:$F$66,4,FALSE)+1,VLOOKUP($B70,Competicoes!$A$2:$F$66,4,FALSE)) -> 2019-11-09 | E70: =VLOOKUP($B70,Competicoes!$A$2:$F$66,6,FALSE) -> 2019-20 | F70: =VLOOKUP($B70,Competicoes!$A$2:$F$66,5,FALSE) -> Torneio de Abertura Prof. Mário Avelino | G70: =VLOOKUP($B70,Competicoes!$A$2:$F$66,2,FALSE) -> Óbidos | H70: =LEFT(VLOOKUP($B70,Competicoes!$A$2:$F$66,3,FALSE),2) -> AL | I70: ARRBOLA | J70: =VLOOKUP($M70,'Atletas2019-20'!$A$3:$G$1358,7,FALSE) -> Ben-B | K70: =VLOOKUP($M70,'Atletas2019-20'!$A$3:$F$1358,5,FALSE) -> 2010 | L70: =VLOOKUP($M70,'Atletas2019-20'!$A$3:$F$1358,3,FALSE) -> F | M70: 145877 | N70: =VLOOKUP($M70,'Atletas2019-20'!$A$3:$F$1358,2,FALSE) -> Francisca Reis | O70: =VLOOKUP($M70,'Atletas2019-20'!$A$3:$F$1358,6,FALSE) -> JV | P70: -10.77 | Q70: =L70&I70&M70 -> FARRBOLA145877 | R70: =IF(COUNTIF($Q$6:Q70,Q70)=1,"SB","") -> SB | S70: =SIGN(P70)*P70 -> 10.77 | U70: 2
A71: 66 | B71: 2024001 | D71: =IF(C71=2,VLOOKUP($B71,Competicoes!$A$2:$F$66,4,FALSE)+1,VLOOKUP($B71,Competicoes!$A$2:$F$66,4,FALSE)) -> 2019-11-09 | E71: =VLOOKUP($B71,Competicoes!$A$2:$F$66,6,FALSE) -> 2019-20 | F71: =VLOOKUP($B71,Competicoes!$A$2:$F$66,5,FALSE) -> Torneio de Abertura Prof. Mário Avelino | G71: =VLOOKUP($B71,Competicoes!$A$2:$F$66,2,FALSE) -> Óbidos | H71: =LEFT(VLOOKUP($B71,Competicoes!$A$2:$F$66,3,FALSE),2) -> AL | I71: ARRBOLA | J71: =VLOOKUP($M71,'Atletas2019-20'!$A$3:$G$1358,7,FALSE) -> Ben-B | K71: =VLOOKUP($M71,'Atletas2019-20'!$A$3:$F$1358,5,FALSE) -> 2009 | L71: =VLOOKUP($M71,'Atletas2019-20'!$A$3:$F$1358,3,FALSE) -> F | M71: 143522 | N71: =VLOOKUP($M71,'Atletas2019-20'!$A$3:$F$1358,2,FALSE) -> Carolina Mateus | O71: =VLOOKUP($M71,'Atletas2019-20'!$A$3:$F$1358,6,FALSE) -> GRFB | P71: -14.29 | Q71: FARRBOLA143522 | R71: =IF(COUNTIF($Q$6:Q71,Q71)=1,"SB","") -> SB | S71: 14.29 | U71: 2
A72: 67 | B72: 2024001 | D72: =IF(C72=2,VLOOKUP($B72,Competicoes!$A$2:$F$66,4,FALSE)+1,VLOOKUP($B72,Competicoes!$A$2:$F$66,4,FALSE)) -> 2019-11-09 | E72: =VLOOKUP($B72,Competicoes!$A$2:$F$66,6,FALSE) -> 2019-20 | F72: =VLOOKUP($B72,Competicoes!$A$2:$F$66,5,FALSE) -> Torneio de Abertura Prof. Mário Avelino | G72: =VLOOKUP($B72,Competicoes!$A$2:$F$66,2,FALSE) -> Óbidos | H72: =LEFT(VLOOKUP($B72,Competicoes!$A$2:$F$66,3,FALSE),2) -> AL | I72: ARRBOLA | J72: =VLOOKUP($M72,'Atletas2019-20'!$A$3:$G$1358,7,FALSE) -> Ben-B | K72: =VLOOKUP($M72,'Atletas2019-20'!$A$3:$F$1358,5,FALSE) -> 2009 | L72: =VLOOKUP($M72,'Atletas2019-20'!$A$3:$F$1358,3,FALSE) -> F | M72: 158775 | N72: =VLOOKUP($M72,'Atletas2019-20'!$A$3:$F$1358,2,FALSE) -> Sofia Ferromau | O72: =VLOOKUP($M72,'Atletas2019-20'!$A$3:$F$1358,6,FALSE) -> CDBBR | P72: -9.49 | Q72: FARRBOLA158775 | R72: =IF(COUNTIF($Q$6:Q72,Q72)=1,"SB","") -> SB | S72: 9.49 | U72: 2
A73: 68 | B73: 2024001 | D73: =IF(C73=2,VLOOKUP($B73,Competicoes!$A$2:$F$66,4,FALSE)+1,VLOOKUP($B73,Competicoes!$A$2:$F$66,4,FALSE)) -> 2019-11-09 | E73: =VLOOKUP($B73,Competicoes!$A$2:$F$66,6,FALSE) -> 2019-20 | F73: =VLOOKUP($B73,Competicoes!$A$2:$F$66,5,FALSE) -> Torneio de Abertura Prof. Mário Avelino | G73: =VLOOKUP($B73,Competicoes!$A$2:$F$66,2,FALSE) -> Óbidos | H73: =LEFT(VLOOKUP($B73,Competicoes!$A$2:$F$66,3,FALSE),2) -> AL | I73: ARRBOLA | J73: =VLOOKUP($M73,'Atletas2019-20'!$A$3:$G$1358,7,FALSE) -> Ben-B | K73: =VLOOKUP($M73,'Atletas2019-20'!$A$3:$F$1358,5,FALSE) -> 2010 | L73: =VLOOKUP($M73,'Atletas2019-20'!$A$3:$F$1358,3,FALSE) -> M | M73: 149318 | N73: =VLOOKUP($M73,'Atletas2019-20'!$A$3:$F$1358,2,FALSE) -> Gabriel Silva | O73: =VLOOKUP($M73,'Atletas2019-20'!$A$3:$F$1358,6,FALSE) -> CDBBR | P73: -12.45 | Q73: MARRBOLA149318 | R73: =IF(COUNTIF($Q$6:Q73,Q73)=1,"SB","") -> SB | S73: 12.45 | U73: 2
A74: 69 | B74: 2024001 | D74: =IF(C74=2,VLOOKUP($B74,Competicoes!$A$2:$F$66,4,FALSE)+1,VLOOKUP($B74,Competicoes!$A$2:$F$66,4,FALSE)) -> 2019-11-09 | E74: =VLOOKUP($B74,Competicoes!$A$2:$F$66,6,FALSE) -> 2019-20 | F74: =VLOOKUP($B74,Competicoes!$A$2:$F$66,5,FALSE) -> Torneio de Abertura Prof. Mário Avelino | G74: =VLOOKUP($B74,Competicoes!$A$2:$F$66,2,FALSE) -> Óbidos | H74: =LEFT(VLOOKUP($B74,Competicoes!$A$2:$F$66,3,FALSE),2) -> AL | I74: ARRBOLA | J74: =VLOOKUP($M74,'Atletas2019-20'!$A$3:$G$1358,7,FALSE) -> Ben-B | K74: =VLOOKUP($M74,'Atletas2019-20'!$A$3:$F$1358,5,FALSE) -> 2010 | L74: =VLOOKUP($M74,'Atletas2019-20'!$A$3:$F$1358,3,FALSE) -> M | M74: 157958 | N74: =VLOOKUP($M74,'Atletas2019-20'!$A$3:$F$1358,2,FALSE) -> Tomás Lopes | O74: =VLOOKUP($M74,'Atletas2019-20'!$A$3:$F$1358,6,FALSE) -> JV | P74: -21.67 | Q74: MARRBOLA157958 | R74: =IF(COUNTIF($Q$6:Q74,Q74)=1,"SB","") -> SB | S74: 21.67 | U74: 2
A75: 70 | B75: 2024001 | D75: =IF(C75=2,VLOOKUP($B75,Competicoes!$A$2:$F$66,4,FALSE)+1,VLOOKUP($B75,Competicoes!$A$2:$F$66,4,FALSE)) -> 2019-11-09 | E75: =VLOOKUP($B75,Competicoes!$A$2:$F$66,6,FALSE) -> 2019-20 | F75: =VLOOKUP($B75,Competicoes!$A$2:$F$66,5,FALSE) -> Torneio de Abertura Prof. Mário Avelino | G75: =VLOOKUP($B75,Competicoes!$A$2:$F$66,2,FALSE) -> Óbidos | H75: =LEFT(VLOOKUP($B75,Competicoes!$A$2:$F$66,3,FALSE),2) -> AL | I75: ARRBOLA | J75: =VLOOKUP($M75,'Atletas2019-20'!$A$3:$G$1358,7,FALSE) -> Ben-B | K75: =VLOOKUP($M75,'Atletas2019-20'!$A$3:$F$1358,5,FALSE) -> 2009 | L75: =VLOOKUP($M75,'Atletas2019-20'!$A$3:$F$1358,3,FALSE) -> M | M75: 138385 | N75: =VLOOKUP($M75,'Atletas2019-20'!$A$3:$F$1358,2,FALSE) -> Daniel Matos | O75: =VLOOKUP($M75,'Atletas2019-20'!$A$3:$F$1358,6,FALSE) -> GDP-L | P75: -27.3 | Q75: MARRBOLA138385 | R75: =IF(COUNTIF($Q$6:Q75,Q75)=1,"SB","") -> SB | S75: 27.3 | U75: 2
A76: 71 | B76: 2024001 | D76: =IF(C76=2,VLOOKUP($B76,Competicoes!$A$2:$F$66,4,FALSE)+1,VLOOKUP($B76,Competicoes!$A$2:$F$66,4,FALSE)) -> 2019-11-09 | E76: =VLOOKUP($B76,Competicoes!$A$2:$F$66,6,FALSE) -> 2019-20 | F76: =VLOOKUP($B76,Competicoes!$A$2:$F$66,5,FALSE) -> Torneio de Abertura Prof. Mário Avelino | G76: =VLOOKUP($B76,Competicoes!$A$2:$F$66,2,FALSE) -> Óbidos | H76: =LEFT(VLOOKUP($B76,Competicoes!$A$2:$F$66,3,FALSE),2) -> AL | I76: ARRBOLA | J76: =VLOOKUP($M76,'Atletas2019-20'!$A$3:$G$1358,7,FALSE) -> Ben-B | K76: =VLOOKUP($M76,'Atletas2019-20'!$A$3:$F$1358,5,FALSE) -> 2010 | L76: =VLOOKUP($M76,'Atletas2019-20'!$A$3:$F$1358,3,FALSE) -> M | M76: 158533 | N76: =VLOOKUP($M76,'Atletas2019-20'!$A$3:$F$1358,2,FALSE) -> João Diogo | O76: =VLOOKUP($M76,'Atletas2019-20'!$A$3:$F$1358,6,FALSE) -> CDBBR | P76: -25.43 | Q76: MARRBOLA158533 | R76: =IF(COUNTIF($Q$6:Q76,Q76)=1,"SB","") -> SB | S76: 25.43 | U76: 2
A77: 72 | B77: 2024001 | D77: =IF(C77=2,VLOOKUP($B77,Competicoes!$A$2:$F$66,4,FALSE)+1,VLOOKUP($B77,Competicoes!$A$2:$F$66,4,FALSE)) -> 2019-11-09 | E77: =VLOOKUP($B77,Competicoes!$A$2:$F$66,6,FALSE) -> 2019-20 | F77: =VLOOKUP($B77,Competicoes!$A$2:$F$66,5,FALSE) -> Torneio de Abertura Prof. Mário Avelino | G77: =VLOOKUP($B77,Competicoes!$A$2:$F$66,2,FALSE) -> Óbidos | H77: =LEFT(VLOOKUP($B77,Competicoes!$A$2:$F$66,3,FALSE),2) -> AL | I77: ARRBOLA | J77: =VLOOKUP($M77,'Atletas2019-20'!$A$3:$G$1358,7,FALSE) -> Ben-B | K77: =VLOOKUP($M77,'Atletas2019-20'!$A$3:$F$1358,5,FALSE) -> 2009 | L77: =VLOOKUP($M77,'Atletas2019-20'!$A$3:$F$1358,3,FALSE) -> M | M77: 151964 | N77: =VLOOKUP($M77,'Atletas2019-20'!$A$3:$F$1358,2,FALSE) -> Pedro Marcelino | O77: =VLOOKUP($M77,'Atletas2019-20'!$A$3:$F$1358,6,FALSE) -> JV | P77: -17.06 | Q77: MARRBOLA151964 | R77: =IF(COUNTIF($Q$6:Q77,Q77)=1,"SB","") -> SB | S77: 17.06 | U77: 2
A78: 73 | B78: 2024001 | D78: =IF(C78=2,VLOOKUP($B78,Competicoes!$A$2:$F$66,4,FALSE)+1,VLOOKUP($B78,Competicoes!$A$2:$F$66,4,FALSE)) -> 2019-11-09 | E78: =VLOOKUP($B78,Competicoes!$A$2:$F$66,6,FALSE) -> 2019-20 | F78: =VLOOKUP($B78,Competicoes!$A$2:$F$66,5,FALSE) -> Torneio de Abertura Prof. Mário Avelino | G78: =VLOOKUP($B78,Competicoes!$A$2:$F$66,2,FALSE) -> Óbidos | H78: =LEFT(VLOOKUP($B78,Competicoes!$A$2:$F$66,3,FALSE),2) -> AL | I78: ARRBOLA | J78: =VLOOKUP($M78,'Atletas2019-20'!$A$3:$G$1358,7,FALSE) -> Ben-B | K78: =VLOOKUP($M78,'Atletas2019-20'!$A$3:$F$1358,5,FALSE) -> 2009 | L78: =VLOOKUP($M78,'Atletas2019-20'!$A$3:$F$1358,3,FALSE) -> M | M78: 139352 | N78: =VLOOKUP($M78,'Atletas2019-20'!$A$3:$F$1358,2,FALSE) -> Diogo Tavares | O78: =VLOOKUP($M78,'Atletas2019-20'!$A$3:$F$1358,6,FALSE) -> JV | P78: -13.35 | Q78: MARRBOLA139352 | R78: =IF(COUNTIF($Q$6:Q78,Q78)=1,"SB","") -> SB | S78: 13.35 | U78: 2
A79: 74 | B79: 2024001 | D79: =IF(C79=2,VLOOKUP($B79,Competicoes!$A$2:$F$66,4,FALSE)+1,VLOOKUP($B79,Competicoes!$A$2:$F$66,4,FALSE)) -> 2019-11-09 | E79: =VLOOKUP($B79,Competicoes!$A$2:$F$66,6,FALSE) -> 2019-20 | F79: =VLOOKUP($B79,Competicoes!$A$2:$F$66,5,FALSE) -> Torneio de Abertura Prof. Mário Avelino | G79: =VLOOKUP($B79,Competicoes!$A$2:$F$66,2,FALSE) -> Óbidos | H79: =LEFT(VLOOKUP($B79,Competicoes!$A$2:$F$66,3,FALSE),2) -> AL | I79: ARRBOLA | J79: =VLOOKUP($M79,'Atletas2019-20'!$A$3:$G$1358,7,FALSE) -> Ben-B | K79: =VLOOKUP($M79,'Atletas2019-20'!$A$3:$F$1358,5,FALSE) -> 2010 | L79: =VLOOKUP($M79,'Atletas2019-20'!$A$3:$F$1358,3,FALSE) -> M | M79: 149301 | N79: =VLOOKUP($M79,'Atletas2019-20'!$A$3:$F$1358,2,FALSE) -> João Rodrigues | O79: =VLOOKUP($M79,'Atletas2019-20'!$A$3:$F$1358,6,FALSE) -> CDBBR | P79: -18.75 | Q79: MARRBOLA149301 | R79: =IF(COUNTIF($Q$6:Q79,Q79)=1,"SB","") -> SB | S79: 18.75 | U79: 2
A80: 75 | B80: 2024001 | D80: =IF(C80=2,VLOOKUP($B80,Competicoes!$A$2:$F$66,4,FALSE)+1,VLOOKUP($B80,Competicoes!$A$2:$F$66,4,FALSE)) -> 2019-11-09 | E80: =VLOOKUP($B80,Competicoes!$A$2:$F$66,6,FALSE) -> 2019-20 | F80: =VLOOKUP($B80,Competicoes!$A$2:$F$66,5,FALSE) -> Torneio de Abertura Prof. Mário Avelino | G80: =VLOOKUP($B80,Competicoes!$A$2:$F$66,2,FALSE) -> Óbidos | H80: =LEFT(VLOOKUP($B80,Competicoes!$A$2:$F$66,3,FALSE),2) -> AL | I80: ARRBOLA | J80: =VLOOKUP($M80,'Atletas2019-20'!$A$3:$G$1358,7,FALSE) -> Ben-B | K80: =VLOOKUP($M80,'Atletas2019-20'!$A$3:$F$1358,5,FALSE) -> 2010 | L80: =VLOOKUP($M80,'Atletas2019-20'!$A$3:$F$1358,3,FALSE) -> M | M80: 158401 | N80: =VLOOKUP($M80,'Atletas2019-20'!$A$3:$F$1358,2,FALSE) -> Diego Música | O80: =VLOOKUP($M80,'Atletas2019-20'!$A$3:$F$1358,6,FALSE) -> JV | P80: -19.5 | Q80: MARRBOLA158401 | R80: =IF(COUNTIF($Q$6:Q80,Q80)=1,"SB","") -> SB | S80: 19.5 | U80: 2
A81: 76 | B81: 2024001 | D81: =IF(C81=2,VLOOKUP($B81,Competicoes!$A$2:$F$66,4,FALSE)+1,VLOOKUP($B81,Competicoes!$A$2:$F$66,4,FALSE)) -> 2019-11-09 | E81: =VLOOKUP($B81,Competicoes!$A$2:$F$66,6,FALSE) -> 2019-20 | F81: =VLOOKUP($B81,Competicoes!$A$2:$F$66,5,FALSE) -> Torneio de Abertura Prof. Mário Avelino | G81: =VLOOKUP($B81,Competicoes!$A$2:$F$66,2,FALSE) -> Óbidos | H81: =LEFT(VLOOKUP($B81,Competicoes!$A$2:$F$66,3,FALSE),2) -> AL | I81: ARRBOLA | J81: =VLOOKUP($M81,'Atletas2019-20'!$A$3:$G$1358,7,FALSE) -> Ben-B | K81: =VLOOKUP($M81,'Atletas2019-20'!$A$3:$F$1358,5,FALSE) -> 2010 | L81: =VLOOKUP($M81,'Atletas2019-20'!$A$3:$F$1358,3,FALSE) -> M | M81: 158576 | N81: =VLOOKUP($M81,'Atletas2019-20'!$A$3:$F$1358,2,FALSE) -> Dinis Vitorino | O81: =VLOOKUP($M81,'Atletas2019-20'!$A$3:$F$1358,6,FALSE) -> CDBBR | P81: -8.63 | Q81: MARRBOLA158576 | R81: =IF(COUNTIF($Q$6:Q81,Q81)=1,"SB","") -> SB | S81: 8.63 | U81: 2
A82: 77 | B82: 2024001 | D82: =IF(C82=2,VLOOKUP($B82,Competicoes!$A$2:$F$66,4,FALSE)+1,VLOOKUP($B82,Competicoes!$A$2:$F$66,4,FALSE)) -> 2019-11-09 | E82: =VLOOKUP($B82,Competicoes!$A$2:$F$66,6,FALSE) -> 2019-20 | F82: =VLOOKUP($B82,Competicoes!$A$2:$F$66,5,FALSE) -> Torneio de Abertura Prof. Mário Avelino | G82: =VLOOKUP($B82,Competicoes!$A$2:$F$66,2,FALSE) -> Óbidos | H82: =LEFT(VLOOKUP($B82,Competicoes!$A$2:$F$66,3,FALSE),2) -> AL | I82: 1000MX | J82: =VLOOKUP($M82,'Atletas2019-20'!$A$3:$G$1358,7,FALSE) -> Inf | K82: =VLOOKUP($M82,'Atletas2019-20'!$A$3:$F$1358,5,FALSE) -> 2008 | L82: =VLOOKUP($M82,'Atletas2019-20'!$A$3:$F$1358,3,FALSE) -> F | M82: 157934 | N82: =VLOOKUP($M82,'Atletas2019-20'!$A$3:$F$1358,2,FALSE) -> Alice Varino | O82: =VLOOKUP($M82,'Atletas2019-20'!$A$3:$F$1358,6,FALSE) -> GDP-L | P82: 637.6 | Q82: F1000MX157934 | R82: =IF(COUNTIF($Q$6:Q82,Q82)=1,"SB","") -> SB | S82: 637.6 | U82: 2
A83: 78 | B83: 2024001 | D83: =IF(C83=2,VLOOKUP($B83,Competicoes!$A$2:$F$66,4,FALSE)+1,VLOOKUP($B83,Competicoes!$A$2:$F$66,4,FALSE)) -> 2019-11-09 | E83: =VLOOKUP($B83,Competicoes!$A$2:$F$66,6,FALSE) -> 2019-20 | F83: =VLOOKUP($B83,Competicoes!$A$2:$F$66,5,FALSE) -> Torneio de Abertura Prof. Mário Avelino | G83: =VLOOKUP($B83,Competicoes!$A$2:$F$66,2,FALSE) -> Óbidos | H83: =LEFT(VLOOKUP($B83,Competicoes!$A$2:$F$66,3,FALSE),2) -> AL | I83: 1000MX | J83: =VLOOKUP($M83,'Atletas2019-20'!$A$3:$G$1358,7,FALSE) -> Inf | K83: =VLOOKUP($M83,'Atletas2019-20'!$A$3:$F$1358,5,FALSE) -> 2008 | L83: =VLOOKUP($M83,'Atletas2019-20'!$A$3:$F$1358,3,FALSE) -> F | M83: 141300 | N83: =VLOOKUP($M83,'Atletas2019-20'!$A$3:$F$1358,2,FALSE) -> Miriam Machado | O83: =VLOOKUP($M83,'Atletas2019-20'!$A$3:$F$1358,6,FALSE) -> JV | P83: 645.9 | Q83: F1000MX141300 | R83: =IF(COUNTIF($Q$6:Q83,Q83)=1,"SB","") -> SB | S83: 645.9 | U83: 2
A84: 79 | B84: 2024001 | D84: =IF(C84=2,VLOOKUP($B84,Competicoes!$A$2:$F$66,4,FALSE)+1,VLOOKUP($B84,Competicoes!$A$2:$F$66,4,FALSE)) -> 2019-11-09 | E84: =VLOOKUP($B84,Competicoes!$A$2:$F$66,6,FALSE) -> 2019-20 | F84: =VLOOKUP($B84,Competicoes!$A$2:$F$66,5,FALSE) -> Torneio de Abertura Prof. Mário Avelino | G84: =VLOOKUP($B84,Competicoes!$A$2:$F$66,2,FALSE) -> Óbidos | H84: =LEFT(VLOOKUP($B84,Competicoes!$A$2:$F$66,3,FALSE),2) -> AL | I84: 1000MX | J84: =VLOOKUP($M84,'Atletas2019-20'!$A$3:$G$1358,7,FALSE) -> Inf | K84: =VLOOKUP($M84,'Atletas2019-20'!$A$3:$F$1358,5,FALSE) -> 2008 | L84: =VLOOKUP($M84,'Atletas2019-20'!$A$3:$F$1358,3,FALSE) -> F | M84: 131029 | N84: =VLOOKUP($M84,'Atletas2019-20'!$A$3:$F$1358,2,FALSE) -> Luna Julião | O84: =VLOOKUP($M84,'Atletas2019-20'!$A$3:$F$1358,6,FALSE) -> JV | P84: 646.2 | Q84: F1000MX131029 | R84: =IF(COUNTIF($Q$6:Q84,Q84)=1,"SB","") -> SB | S84: 646.2 | U84: 2
A85: 80 | B85: 2024001 | D85: =IF(C85=2,VLOOKUP($B85,Competicoes!$A$2:$F$66,4,FALSE)+1,VLOOKUP($B85,Competicoes!$A$2:$F$66,4,FALSE)) -> 2019-11-09 | E85: =VLOOKUP($B85,Competicoes!$A$2:$F$66,6,FALSE) -> 2019-20 | F85: =VLOOKUP($B85,Competicoes!$A$2:$F$66,5,FALSE) -> Torneio de Abertura Prof. Mário Avelino | G85: =VLOOKUP($B85,Competicoes!$A$2:$F$66,2,FALSE) -> Óbidos | H85: =LEFT(VLOOKUP($B85,Competicoes!$A$2:$F$66,3,FALSE),2) -> AL | I85: 1000MX | J85: =VLOOKUP($M85,'Atletas2019-20'!$A$3:$G$1358,7,FALSE) -> Inf | K85: =VLOOKUP($M85,'Atletas2019-20'!$A$3:$F$1358,5,FALSE) -> 2008 | L85: =VLOOKUP($M85,'Atletas2019-20'!$A$3:$F$1358,3,FALSE) -> F | M85: 153645 | N85: =VLOOKUP($M85,'Atletas2019-20'!$A$3:$F$1358,2,FALSE) -> Benedita Matias | O85: =VLOOKUP($M85,'Atletas2019-20'!$A$3:$F$1358,6,FALSE) -> JV | P85: 714.3 | Q85: F1000MX153645 | R85: =IF(COUNTIF($Q$6:Q85,Q85)=1,"SB","") -> SB | S85: 714.3 | U85: 2
A86: 81 | B86: 2024001 | D86: =IF(C86=2,VLOOKUP($B86,Competicoes!$A$2:$F$66,4,FALSE)+1,VLOOKUP($B86,Competicoes!$A$2:$F$66,4,FALSE)) -> 2019-11-09 | E86: =VLOOKUP($B86,Competicoes!$A$2:$F$66,6,FALSE) -> 2019-20 | F86: =VLOOKUP($B86,Competicoes!$A$2:$F$66,5,FALSE) -> Torneio de Abertura Prof. Mário Avelino | G86: =VLOOKUP($B86,Competicoes!$A$2:$F$66,2,FALSE) -> Óbidos | H86: =LEFT(VLOOKUP($B86,Competicoes!$A$2:$F$66,3,FALSE),2) -> AL | I86: 1000MX | J86: =VLOOKUP($M86,'Atletas2019-20'!$A$3:$G$1358,7,FALSE) -> Inf | K86: =VLOOKUP($M86,'Atletas2019-20'!$A$3:$F$1358,5,FALSE) -> 2008 | L86: =VLOOKUP($M86,'Atletas2019-20'!$A$3:$F$1358,3,FALSE) -> F | M86: 156811 | N86: =VLOOKUP($M86,'Atletas2019-20'!$A$3:$F$1358,2,FALSE) -> Constança Lavos | O86: =VLOOKUP($M86,'Atletas2019-20'!$A$3:$F$1358,6,FALSE) -> JV | P86: 751.8 | Q86: F1000MX156811 | R86: =IF(COUNTIF($Q$6:Q86,Q86)=1,"SB","") -> SB | S86: 751.8 | U86: 2
A87: 82 | B87: 2024001 | D87: =IF(C87=2,VLOOKUP($B87,Competicoes!$A$2:$F$66,4,FALSE)+1,VLOOKUP($B87,Competicoes!$A$2:$F$66,4,FALSE)) -> 2019-11-09 | E87: =VLOOKUP($B87,Competicoes!$A$2:$F$66,6,FALSE) -> 2019-20 | F87: =VLOOKUP($B87,Competicoes!$A$2:$F$66,5,FALSE) -> Torneio de Abertura Prof. Mário Avelino | G87: =VLOOKUP($B87,Competicoes!$A$2:$F$66,2,FALSE) -> Óbidos | H87: =LEFT(VLOOKUP($B87,Competicoes!$A$2:$F$66,3,FALSE),2) -> AL | I87: 1000MX | J87: =VLOOKUP($M87,'Atletas2019-20'!$A$3:$G$1358,7,FALSE) -> Inf | K87: =VLOOKUP($M87,'Atletas2019-20'!$A$3:$F$1358,5,FALSE) -> 2008 | L87: =VLOOKUP($M87,'Atletas2019-20'!$A$3:$F$1358,3,FALSE) -> M | M87: 139333 | N87: =VLOOKUP($M87,'Atletas2019-20'!$A$3:$F$1358,2,FALSE) -> Filipe Fernandes | O87: =VLOOKUP($M87,'Atletas2019-20'!$A$3:$F$1358,6,FALSE) -> JV | P87: 702.6 | Q87: M1000MX139333 | R87: =IF(COUNTIF($Q$6:Q87,Q87)=1,"SB","") -> SB | S87: 702.6 | U87: 2
A88: 83 | B88: 2024001 | D88: =IF(C88=2,VLOOKUP($B88,Competicoes!$A$2:$F$66,4,FALSE)+1,VLOOKUP($B88,Competicoes!$A$2:$F$66,4,FALSE)) -> 2019-11-09 | E88: =VLOOKUP($B88,Competicoes!$A$2:$F$66,6,FALSE) -> 2019-20 | F88: =VLOOKUP($B88,Competicoes!$A$2:$F$66,5,FALSE) -> Torneio de Abertura Prof. Mário Avelino | G88: =VLOOKUP($B88,Competicoes!$A$2:$F$66,2,FALSE) -> Óbidos | H88: =LEFT(VLOOKUP($B88,Competicoes!$A$2:$F$66,3,FALSE),2) -> AL | I88: 1000MX | J88: =VLOOKUP($M88,'Atletas2019-20'!$A$3:$G$1358,7,FALSE) -> Inf | K88: =VLOOKUP($M88,'Atletas2019-20'!$A$3:$F$1358,5,FALSE) -> 2007 | L88: =VLOOKUP($M88,'Atletas2019-20'!$A$3:$F$1358,3,FALSE) -> M | M88: 145061 | N88: =VLOOKUP($M88,'Atletas2019-20'!$A$3:$F$1358,2,FALSE) -> Hugo Matias | O88: =VLOOKUP($M88,'Atletas2019-20'!$A$3:$F$1358,6,FALSE) -> JV | P88: 716.8 | Q88: M1000MX145061 | R88: =IF(COUNTIF($Q$6:Q88,Q88)=1,"SB","") -> SB | S88: 716.8 | U88: 2
A89: 84 | B89: 2024001 | D89: =IF(C89=2,VLOOKUP($B89,Competicoes!$A$2:$F$66,4,FALSE)+1,VLOOKUP($B89,Competicoes!$A$2:$F$66,4,FALSE)) -> 2019-11-09 | E89: =VLOOKUP($B89,Competicoes!$A$2:$F$66,6,FALSE) -> 2019-20 | F89: =VLOOKUP($B89,Competicoes!$A$2:$F$66,5,FALSE) -> Torneio de Abertura Prof. Mário Avelino | G89: =VLOOKUP($B89,Competicoes!$A$2:$F$66,2,FALSE) -> Óbidos | H89: =LEFT(VLOOKUP($B89,Competicoes!$A$2:$F$66,3,FALSE),2) -> AL | I89: 1000MX | J89: =VLOOKUP($M89,'Atletas2019-20'!$A$3:$G$1358,7,FALSE) -> Inf | K89: =VLOOKUP($M89,'Atletas2019-20'!$A$3:$F$1358,5,FALSE) -> 2008 | L89: =VLOOKUP($M89,'Atletas2019-20'!$A$3:$F$1358,3,FALSE) -> M | M89: 155570 | N89: =VLOOKUP($M89,'Atletas2019-20'!$A$3:$F$1358,2,FALSE) -> Davide Prazeres | O89: =VLOOKUP($M89,'Atletas2019-20'!$A$3:$F$1358,6,FALSE) -> CDBBR | P89: 736.7 | Q89: M1000MX155570 | R89: =IF(COUNTIF($Q$6:Q89,Q89)=1,"SB","") -> SB | S89: 736.7 | U89: 2
A90: 85 | B90: 2024001 | D90: =IF(C90=2,VLOOKUP($B90,Competicoes!$A$2:$F$66,4,FALSE)+1,VLOOKUP($B90,Competicoes!$A$2:$F$66,4,FALSE)) -> 2019-11-09 | E90: =VLOOKUP($B90,Competicoes!$A$2:$F$66,6,FALSE) -> 2019-20 | F90: =VLOOKUP($B90,Competicoes!$A$2:$F$66,5,FALSE) -> Torneio de Abertura Prof. Mário Avelino | G90: =VLOOKUP($B90,Competicoes!$A$2:$F$66,2,FALSE) -> Óbidos | H90: =LEFT(VLOOKUP($B90,Competicoes!$A$2:$F$66,3,FALSE),2) -> AL | I90: 1000MX | J90: =VLOOKUP($M90,'Atletas2019-20'!$A$3:$G$1358,7,FALSE) -> Inf | K90: =VLOOKUP($M90,'Atletas2019-20'!$A$3:$F$1358,5,FALSE) -> 2008 | L90: =VLOOKUP($M90,'Atletas2019-20'!$A$3:$F$1358,3,FALSE) -> M | M90: 149690 | N90: =VLOOKUP($M90,'Atletas2019-20'!$A$3:$F$1358,2,FALSE) -> Artur Coelho | O90: =VLOOKUP($M90,'Atletas2019-20'!$A$3:$F$1358,6,FALSE) -> CDBBR | P90: 752 | Q90: M1000MX149690 | R90: =IF(COUNTIF($Q$6:Q90,Q90)=1,"SB","") -> SB | S90: 752 | U90: 2
A91: 86 | B91: 2024002 | D91: =IF(C91=2,VLOOKUP($B91,Competicoes!$A$2:$F$66,4,FALSE)+1,VLOOKUP($B91,Competicoes!$A$2:$F$66,4,FALSE)) -> 2019-11-23 | E91: =VLOOKUP($B91,Competicoes!$A$2:$F$66,6,FALSE) -> 2019-20 | F91: =VLOOKUP($B91,Competicoes!$A$2:$F$66,5,FALSE) -> Torneio de Preparação de Pista | G91: =VLOOKUP($B91,Competicoes!$A$2:$F$66,2,FALSE) -> Marinha Grande | H91: =LEFT(VLOOKUP($B91,Competicoes!$A$2:$F$66,3,FALSE),2) -> AL | I91: 60 | J91: =VLOOKUP($M91,'Atletas2019-20'!$A$3:$G$1358,7,FALSE) -> Ini | K91: =VLOOKUP($M91,'Atletas2019-20'!$A$3:$F$1358,5,FALSE) -> 2005 | L91: =VLOOKUP($M91,'Atletas2019-20'!$A$3:$F$1358,3,FALSE) -> M | M91: 156904 | N91: =VLOOKUP($M91,'Atletas2019-20'!$A$3:$F$1358,2,FALSE) -> Diogo Nogueira | O91: =VLOOKUP($M91,'Atletas2019-20'!$A$3:$F$1358,6,FALSE) -> ACDRA | P91: 7.84 | Q91: M60156904 | R91: =IF(COUNTIF($Q$6:Q91,Q91)=1,"SB","") -> SB | S91: 7.84 | T91: 2.7 | U91: 2
A92: 87 | B92: 2024002 | D92: =IF(C92=2,VLOOKUP($B92,Competicoes!$A$2:$F$66,4,FALSE)+1,VLOOKUP($B92,Competicoes!$A$2:$F$66,4,FALSE)) -> 2019-11-23 | E92: =VLOOKUP($B92,Competicoes!$A$2:$F$66,6,FALSE) -> 2019-20 | F92: =VLOOKUP($B92,Competicoes!$A$2:$F$66,5,FALSE) -> Torneio de Preparação de Pista | G92: =VLOOKUP($B92,Competicoes!$A$2:$F$66,2,FALSE) -> Marinha Grande | H92: =LEFT(VLOOKUP($B92,Competicoes!$A$2:$F$66,3,FALSE),2) -> AL | I92: 60 | J92: =VLOOKUP($M92,'Atletas2019-20'!$A$3:$G$1358,7,FALSE) -> Ini | K92: =VLOOKUP($M92,'Atletas2019-20'!$A$3:$F$1358,5,FALSE) -> 2005 | L92: =VLOOKUP($M92,'Atletas2019-20'!$A$3:$F$1358,3,FALSE) -> M | M92: 131323 | N92: =VLOOKUP($M92,'Atletas2019-20'!$A$3:$F$1358,2,FALSE) -> Tiago Gomes | O92: =VLOOKUP($M92,'Atletas2019-20'!$A$3:$F$1358,6,FALSE) -> ACB-L | P92: 7.92 | Q92: M60131323 | R92: =IF(COUNTIF($Q$6:Q92,Q92)=1,"SB","") -> SB | S92: 7.92 | T92: 2.7 | U92: 2
A93: 88 | B93: 2024002 | D93: =IF(C93=2,VLOOKUP($B93,Competicoes!$A$2:$F$66,4,FALSE)+1,VLOOKUP($B93,Competicoes!$A$2:$F$66,4,FALSE)) -> 2019-11-23 | E93: =VLOOKUP($B93,Competicoes!$A$2:$F$66,6,FALSE) -> 2019-20 | F93: =VLOOKUP($B93,Competicoes!$A$2:$F$66,5,FALSE) -> Torneio de Preparação de Pista | G93: =VLOOKUP($B93,Competicoes!$A$2:$F$66,2,FALSE) -> Marinha Grande | H93: =LEFT(VLOOKUP($B93,Competicoes!$A$2:$F$66,3,FALSE),2) -> AL | I93: 60 | J93: =VLOOKUP($M93,'Atletas2019-20'!$A$3:$G$1358,7,FALSE) -> Ini | K93: =VLOOKUP($M93,'Atletas2019-20'!$A$3:$F$1358,5,FALSE) -> 2005 | L93: =VLOOKUP($M93,'Atletas2019-20'!$A$3:$F$1358,3,FALSE) -> M | M93: 158132 | N93: =VLOOKUP($M93,'Atletas2019-20'!$A$3:$F$1358,2,FALSE) -> Guilherme Augusto | O93: =VLOOKUP($M93,'Atletas2019-20'!$A$3:$F$1358,6,FALSE) -> GDAA | P93: 8.54 | Q93: M60158132 | R93: =IF(COUNTIF($Q$6:Q93,Q93)=1,"SB","") -> SB | S93: 8.54 | T93: 2.7 | U93: 2
A94: 89 | B94: 2024002 | D94: =IF(C94=2,VLOOKUP($B94,Competicoes!$A$2:$F$66,4,FALSE)+1,VLOOKUP($B94,Competicoes!$A$2:$F$66,4,FALSE)) -> 2019-11-23 | E94: =VLOOKUP($B94,Competicoes!$A$2:$F$66,6,FALSE) -> 2019-20 | F94: =VLOOKUP($B94,Competicoes!$A$2:$F$66,5,FALSE) -> Torneio de Preparação de Pista | G94: =VLOOKUP($B94,Competicoes!$A$2:$F$66,2,FALSE) -> Marinha Grande | H94: =LEFT(VLOOKUP($B94,Competicoes!$A$2:$F$66,3,FALSE),2) -> AL | I94: 60 | J94: =VLOOKUP($M94,'Atletas2019-20'!$A$3:$G$1358,7,FALSE) -> Ini | K94: =VLOOKUP($M94,'Atletas2019-20'!$A$3:$F$1358,5,FALSE) -> 2006 | L94: =VLOOKUP($M94,'Atletas2019-20'!$A$3:$F$1358,3,FALSE) -> M | M94: 154056 | N94: =VLOOKUP($M94,'Atletas2019-20'!$A$3:$F$1358,2,FALSE) -> João Rocha | O94: =VLOOKUP($M94,'Atletas2019-20'!$A$3:$F$1358,6,FALSE) -> JV | P94: 8.62 | Q94: M60154056 | R94: =IF(COUNTIF($Q$6:Q94,Q94)=1,"SB","") -> SB | S94: 8.62 | T94: 2.7 | U94: 2
A95: 90 | B95: 2024002 | D95: =IF(C95=2,VLOOKUP($B95,Competicoes!$A$2:$F$66,4,FALSE)+1,VLOOKUP($B95,Competicoes!$A$2:$F$66,4,FALSE)) -> 2019-11-23 | E95: =VLOOKUP($B95,Competicoes!$A$2:$F$66,6,FALSE) -> 2019-20 | F95: =VLOOKUP($B95,Competicoes!$A$2:$F$66,5,FALSE) -> Torneio de Preparação de Pista | G95: =VLOOKUP($B95,Competicoes!$A$2:$F$66,2,FALSE) -> Marinha Grande | H95: =LEFT(VLOOKUP($B95,Competicoes!$A$2:$F$66,3,FALSE),2) -> AL | I95: 60 | J95: =VLOOKUP($M95,'Atletas2019-20'!$A$3:$G$1358,7,FALSE) -> Ini | K95: =VLOOKUP($M95,'Atletas2019-20'!$A$3:$F$1358,5,FALSE) -> 2005 | L95: =VLOOKUP($M95,'Atletas2019-20'!$A$3:$F$1358,3,FALSE) -> M | M95: 140207 | N95: =VLOOKUP($M95,'Atletas2019-20'!$A$3:$F$1358,2,FALSE) -> Filipe Pereira | O95: =VLOOKUP($M95,'Atletas2019-20'!$A$3:$F$1358,6,FALSE) -> CAMG | P95: 9.08 | Q95: M60140207 | R95: =IF(COUNTIF($Q$6:Q95,Q95)=1,"SB","") -> SB | S95: 9.08 | T95: 2.7 | U95: 2
A96: 91 | B96: 2024002 | D96: =IF(C96=2,VLOOKUP($B96,Competicoes!$A$2:$F$66,4,FALSE)+1,VLOOKUP($B96,Competicoes!$A$2:$F$66,4,FALSE)) -> 2019-11-23 | E96: =VLOOKUP($B96,Competicoes!$A$2:$F$66,6,FALSE) -> 2019-20 | F96: =VLOOKUP($B96,Competicoes!$A$2:$F$66,5,FALSE) -> Torneio de Preparação de Pista | G96: =VLOOKUP($B96,Competicoes!$A$2:$F$66,2,FALSE) -> Marinha Grande | H96: =LEFT(VLOOKUP($B96,Competicoes!$A$2:$F$66,3,FALSE),2) -> AL | I96: 60 | J96: =VLOOKUP($M96,'Atletas2019-20'!$A$3:$G$1358,7,FALSE) -> Ini | K96: =VLOOKUP($M96,'Atletas2019-20'!$A$3:$F$1358,5,FALSE) -> 2006 | L96: =VLOOKUP($M96,'Atletas2019-20'!$A$3:$F$1358,3,FALSE) -> M | M96: 128791 | N96: =VLOOKUP($M96,'Atletas2019-20'!$A$3:$F$1358,2,FALSE) -> Eduardo Camarate | O96: =VLOOKUP($M96,'Atletas2019-20'!$A$3:$F$1358,6,FALSE) -> JV | P96: 9.83 | Q96: M60128791 | R96: =IF(COUNTIF($Q$6:Q96,Q96)=1,"SB","") -> SB | S96: 9.83 | T96: 2.7 | U96: 2
A97: 92 | B97: 2024002 | D97: =IF(C97=2,VLOOKUP($B97,Competicoes!$A$2:$F$66,4,FALSE)+1,VLOOKUP($B97,Competicoes!$A$2:$F$66,4,FALSE)) -> 2019-11-23 | E97: =VLOOKUP($B97,Competicoes!$A$2:$F$66,6,FALSE) -> 2019-20 | F97: =VLOOKUP($B97,Competicoes!$A$2:$F$66,5,FALSE) -> Torneio de Preparação de Pista | G97: =VLOOKUP($B97,Competicoes!$A$2:$F$66,2,FALSE) -> Marinha Grande | H97: =LEFT(VLOOKUP($B97,Competicoes!$A$2:$F$66,3,FALSE),2) -> AL | I97: 60 | J97: =VLOOKUP($M97,'Atletas2019-20'!$A$3:$G$1358,7,FALSE) -> Ini | K97: =VLOOKUP($M97,'Atletas2019-20'!$A$3:$F$1358,5,FALSE) -> 2006 | L97: =VLOOKUP($M97,'Atletas2019-20'!$A$3:$F$1358,3,FALSE) -> M | M97: 150272 | N97: =VLOOKUP($M97,'Atletas2019-20'!$A$3:$F$1358,2,FALSE) -> Miguel Gomes | O97: =VLOOKUP($M97,'Atletas2019-20'!$A$3:$F$1358,6,FALSE) -> CAMG | P97: 10.13 | Q97: M60150272 | R97: =IF(COUNTIF($Q$6:Q97,Q97)=1,"SB","") -> SB | S97: 10.13 | T97: 2.7 | U97: 2
A98: 93 | B98: 2024002 | D98: =IF(C98=2,VLOOKUP($B98,Competicoes!$A$2:$F$66,4,FALSE)+1,VLOOKUP($B98,Competicoes!$A$2:$F$66,4,FALSE)) -> 2019-11-23 | E98: =VLOOKUP($B98,Competicoes!$A$2:$F$66,6,FALSE) -> 2019-20 | F98: =VLOOKUP($B98,Competicoes!$A$2:$F$66,5,FALSE) -> Torneio de Preparação de Pista | G98: =VLOOKUP($B98,Competicoes!$A$2:$F$66,2,FALSE) -> Marinha Grande | H98: =LEFT(VLOOKUP($B98,Competicoes!$A$2:$F$66,3,FALSE),2) -> AL | I98: 60 | J98: =VLOOKUP($M98,'Atletas2019-20'!$A$3:$G$1358,7,FALSE) -> Ini | K98: =VLOOKUP($M98,'Atletas2019-20'!$A$3:$F$1358,5,FALSE) -> 2005 | L98: =VLOOKUP($M98,'Atletas2019-20'!$A$3:$F$1358,3,FALSE) -> M | M98: 138182 | N98: =VLOOKUP($M98,'Atletas2019-20'!$A$3:$F$1358,2,FALSE) -> Miguel Pereira | O98: =VLOOKUP($M98,'Atletas2019-20'!$A$3:$F$1358,6,FALSE) -> CAMG | P98: 7.97 | Q98: M60138182 | R98: =IF(COUNTIF($Q$6:Q98,Q98)=1,"SB","") -> SB | S98: 7.97 | T98: 3.9 | U98: 2
A99: 94 | B99: 2024002 | D99: =IF(C99=2,VLOOKUP($B99,Competicoes!$A$2:$F$66,4,FALSE)+1,VLOOKUP($B99,Competicoes!$A$2:$F$66,4,FALSE)) -> 2019-11-23 | E99: =VLOOKUP($B99,Competicoes!$A$2:$F$66,6,FALSE) -> 2019-20 | F99: =VLOOKUP($B99,Competicoes!$A$2:$F$66,5,FALSE) -> Torneio de Preparação de Pista | G99: =VLOOKUP($B99,Competicoes!$A$2:$F$66,2,FALSE) -> Marinha Grande | H99: =LEFT(VLOOKUP($B99,Competicoes!$A$2:$F$66,3,FALSE),2) -> AL | I99: 60 | J99: =VLOOKUP($M99,'Atletas2019-20'!$A$3:$G$1358,7,FALSE) -> Ini | K99: =VLOOKUP($M99,'Atletas2019-20'!$A$3:$F$1358,5,FALSE) -> 2005 | L99: =VLOOKUP($M99,'Atletas2019-20'!$A$3:$F$1358,3,FALSE) -> M | M99: 157983 | N99: =VLOOKUP($M99,'Atletas2019-20'!$A$3:$F$1358,2,FALSE) -> António Salvador | O99: =VLOOKUP($M99,'Atletas2019-20'!$A$3:$F$1358,6,FALSE) -> GDAA | P99: 8.55 | Q99: M60157983 | R99: =IF(COUNTIF($Q$6:Q99,Q99)=1,"SB","") -> SB | S99: 8.55 | T99: 3.9 | U99: 2
A100: 95 | B100: 2024002 | D100: =IF(C100=2,VLOOKUP($B100,Competicoes!$A$2:$F$66,4,FALSE)+1,VLOOKUP($B100,Competicoes!$A$2:$F$66,4,FALSE)) -> 2019-11-23 | E100: =VLOOKUP($B100,Competicoes!$A$2:$F$66,6,FALSE) -> 2019-20 | F100: =VLOOKUP($B100,Competicoes!$A$2:$F$66,5,FALSE) -> Torneio de Preparação de Pista | G100: =VLOOKUP($B100,Competicoes!$A$2:$F$66,2,FALSE) -> Marinha Grande | H100: =LEFT(VLOOKUP($B100,Competicoes!$A$2:$F$66,3,FALSE),2) -> AL | I100: 60 | J100: =VLOOKUP($M100,'Atletas2019-20'!$A$3:$G$1358,7,FALSE) -> Ini | K100: =VLOOKUP($M100,'Atletas2019-20'!$A$3:$F$1358,5,FALSE) -> 2005 | L100: =VLOOKUP($M100,'Atletas2019-20'!$A$3:$F$1358,3,FALSE) -> M | M100: 134352 | N100: =VLOOKUP($M100,'Atletas2019-20'!$A$3:$F$1358,2,FALSE) -> João Santos | O100: =VLOOKUP($M100,'Atletas2019-20'!$A$3:$F$1358,6,FALSE) -> JV | P100: 8.61 | Q100: M60134352 | R100: =IF(COUNTIF($Q$6:Q100,Q100)=1,"SB","") -> SB | S100: 8.61 | T100: 3.9 | U100: 2
A101: 96 | B101: 2024002 | D101: =IF(C101=2,VLOOKUP($B101,Competicoes!$A$2:$F$66,4,FALSE)+1,VLOOKUP($B101,Competicoes!$A$2:$F$66,4,FALSE)) -> 2019-11-23 | E101: =VLOOKUP($B101,Competicoes!$A$2:$F$66,6,FALSE) -> 2019-20 | F101: =VLOOKUP($B101,Competicoes!$A$2:$F$66,5,FALSE) -> Torneio de Preparação de Pista | G101: =VLOOKUP($B101,Competicoes!$A$2:$F$66,2,FALSE) -> Marinha Grande | H101: =LEFT(VLOOKUP($B101,Competicoes!$A$2:$F$66,3,FALSE),2) -> AL | I101: 60 | J101: =VLOOKUP($M101,'Atletas2019-20'!$A$3:$G$1358,7,FALSE) -> Ini | K101: =VLOOKUP($M101,'Atletas2019-20'!$A$3:$F$1358,5,FALSE) -> 2006 | L101: =VLOOKUP($M101,'Atletas2019-20'!$A$3:$F$1358,3,FALSE) -> M | M101: 140600 | N101: =VLOOKUP($M101,'Atletas2019-20'!$A$3:$F$1358,2,FALSE) -> Ivo Gomes | O101: =VLOOKUP($M101,'Atletas2019-20'!$A$3:$F$1358,6,FALSE) -> ACB-L | P101: 8.84 | Q101: M60140600 | R101: =IF(COUNTIF($Q$6:Q101,Q101)=1,"SB","") -> SB | S101: 8.84 | T101: 3.9 | U101: 2
A102: 97 | B102: 2024002 | D102: =IF(C102=2,VLOOKUP($B102,Competicoes!$A$2:$F$66,4,FALSE)+1,VLOOKUP($B102,Competicoes!$A$2:$F$66,4,FALSE)) -> 2019-11-23 | E102: =VLOOKUP($B102,Competicoes!$A$2:$F$66,6,FALSE) -> 2019-20 | F102: =VLOOKUP($B102,Competicoes!$A$2:$F$66,5,FALSE) -> Torneio de Preparação de Pista | G102: =VLOOKUP($B102,Competicoes!$A$2:$F$66,2,FALSE) -> Marinha Grande | H102: =LEFT(VLOOKUP($B102,Competicoes!$A$2:$F$66,3,FALSE),2) -> AL | I102: 60 | J102: =VLOOKUP($M102,'Atletas2019-20'!$A$3:$G$1358,7,FALSE) -> Ini | K102: =VLOOKUP($M102,'Atletas2019-20'!$A$3:$F$1358,5,FALSE) -> 2005 | L102: =VLOOKUP($M102,'Atletas2019-20'!$A$3:$F$1358,3,FALSE) -> M | M102: 139359 | N102: =VLOOKUP($M102,'Atletas2019-20'!$A$3:$F$1358,2,FALSE) -> Dinis Santos | O102: =VLOOKUP($M102,'Atletas2019-20'!$A$3:$F$1358,6,FALSE) -> JV | P102: 8.93 | Q102: M60139359 | R102: =IF(COUNTIF($Q$6:Q102,Q102)=1,"SB","") -> SB | S102: 8.93 | T102: 3.9 | U102: 2
A103: 98 | B103: 2024002 | D103: =IF(C103=2,VLOOKUP($B103,Competicoes!$A$2:$F$66,4,FALSE)+1,VLOOKUP($B103,Competicoes!$A$2:$F$66,4,FALSE)) -> 2019-11-23 | E103: =VLOOKUP($B103,Competicoes!$A$2:$F$66,6,FALSE) -> 2019-20 | F103: =VLOOKUP($B103,Competicoes!$A$2:$F$66,5,FALSE) -> Torneio de Preparação de Pista | G103: =VLOOKUP($B103,Competicoes!$A$2:$F$66,2,FALSE) -> Marinha Grande | H103: =LEFT(VLOOKUP($B103,Competicoes!$A$2:$F$66,3,FALSE),2) -> AL | I103: 60 | J103: =VLOOKUP($M103,'Atletas2019-20'!$A$3:$G$1358,7,FALSE) -> Ini | K103: =VLOOKUP($M103,'Atletas2019-20'!$A$3:$F$1358,5,FALSE) -> 2005 | L103: =VLOOKUP($M103,'Atletas2019-20'!$A$3:$F$1358,3,FALSE) -> M | M103: 156673 | N103: =VLOOKUP($M103,'Atletas2019-20'!$A$3:$F$1358,2,FALSE) -> Rafael Antunes | O103: =VLOOKUP($M103,'Atletas2019-20'!$A$3:$F$1358,6,FALSE) -> CAMG | P103: 9.05 | Q103: M60156673 | R103: =IF(COUNTIF($Q$6:Q103,Q103)=1,"SB","") -> SB | S103: 9.05 | T103: 3.9 | U103: 2
A104: 99 | B104: 2024002 | D104: =IF(C104=2,VLOOKUP($B104,Competicoes!$A$2:$F$66,4,FALSE)+1,VLOOKUP($B104,Competicoes!$A$2:$F$66,4,FALSE)) -> 2019-11-23 | E104: =VLOOKUP($B104,Competicoes!$A$2:$F$66,6,FALSE) -> 2019-20 | F104: =VLOOKUP($B104,Competicoes!$A$2:$F$66,5,FALSE) -> Torneio de Preparação de Pista | G104: =VLOOKUP($B104,Competicoes!$A$2:$F$66,2,FALSE) -> Marinha Grande | H104: =LEFT(VLOOKUP($B104,Competicoes!$A$2:$F$66,3,FALSE),2) -> AL | I104: 60 | J104: =VLOOKUP($M104,'Atletas2019-20'!$A$3:$G$1358,7,FALSE) -> Ini | K104: =VLOOKUP($M104,'Atletas2019-20'!$A$3:$F$1358,5,FALSE) -> 2005 | L104: =VLOOKUP($M104,'Atletas2019-20'!$A$3:$F$1358,3,FALSE) -> M | M104: 156717 | N104: =VLOOKUP($M104,'Atletas2019-20'!$A$3:$F$1358,2,FALSE) -> João Maia | O104: =VLOOKUP($M104,'Atletas2019-20'!$A$3:$F$1358,6,FALSE) -> CAMG | P104: 12.04 | Q104: M60156717 | R104: =IF(COUNTIF($Q$6:Q104,Q104)=1,"SB","") -> SB | S104: 12.04 | T104: 3.9 | U104: 2
A105: 100 | B105: 2024002 | D105: =IF(C105=2,VLOOKUP($B105,Competicoes!$A$2:$F$66,4,FALSE)+1,VLOOKUP($B105,Competicoes!$A$2:$F$66,4,FALSE)) -> 2019-11-23 | E105: =VLOOKUP($B105,Competicoes!$A$2:$F$66,6,FALSE) -> 2019-20 | F105: =VLOOKUP($B105,Competicoes!$A$2:$F$66,5,FALSE) -> Torneio de Preparação de Pista | G105: =VLOOKUP($B105,Competicoes!$A$2:$F$66,2,FALSE) -> Marinha Grande | H105: =LEFT(VLOOKUP($B105,Competicoes!$A$2:$F$66,3,FALSE),2) -> AL | I105: 60 | J105: =VLOOKUP($M105,'Atletas2019-20'!$A$3:$G$1358,7,FALSE) -> Ini | K105: =VLOOKUP($M105,'Atletas2019-20'!$A$3:$F$1358,5,FALSE) -> 2005 | L105: =VLOOKUP($M105,'Atletas2019-20'!$A$3:$F$1358,3,FALSE) -> M | M105: 150944 | N105: =VLOOKUP($M105,'Atletas2019-20'!$A$3:$F$1358,2,FALSE) -> Hugo Tavares | O105: =VLOOKUP($M105,'Atletas2019-20'!$A$3:$F$1358,6,FALSE) -> ACDRA | P105: 7.54 | Q105: M60150944 | R105: =IF(COUNTIF($Q$6:Q105,Q105)=1,"SB","") -> SB | S105: 7.54 | T105: 3.5 | U105: 2
A106: 101 | B106: 2024002 | D106: =IF(C106=2,VLOOKUP($B106,Competicoes!$A$2:$F$66,4,FALSE)+1,VLOOKUP($B106,Competicoes!$A$2:$F$66,4,FALSE)) -> 2019-11-23 | E106: =VLOOKUP($B106,Competicoes!$A$2:$F$66,6,FALSE) -> 2019-20 | F106: =VLOOKUP($B106,Competicoes!$A$2:$F$66,5,FALSE) -> Torneio de Preparação de Pista | G106: =VLOOKUP($B106,Competicoes!$A$2:$F$66,2,FALSE) -> Marinha Grande | H106: =LEFT(VLOOKUP($B106,Competicoes!$A$2:$F$66,3,FALSE),2) -> AL | I106: 60 | J106: =VLOOKUP($M106,'Atletas2019-20'!$A$3:$G$1358,7,FALSE) -> Ini | K106: =VLOOKUP($M106,'Atletas2019-20'!$A$3:$F$1358,5,FALSE) -> 2005 | L106: =VLOOKUP($M106,'Atletas2019-20'!$A$3:$F$1358,3,FALSE) -> M | M106: 152672 | N106: =VLOOKUP($M106,'Atletas2019-20'!$A$3:$F$1358,2,FALSE) -> João Martins | O106: =VLOOKUP($M106,'Atletas2019-20'!$A$3:$F$1358,6,FALSE) -> JV | P106: 7.85 | Q106: M60152672 | R106: =IF(COUNTIF($Q$6:Q106,Q106)=1,"SB","") -> SB | S106: 7.85 | T106: 3.5 | U106: 2
A107: 102 | B107: 2024002 | D107: =IF(C107=2,VLOOKUP($B107,Competicoes!$A$2:$F$66,4,FALSE)+1,VLOOKUP($B107,Competicoes!$A$2:$F$66,4,FALSE)) -> 2019-11-23 | E107: =VLOOKUP($B107,Competicoes!$A$2:$F$66,6,FALSE) -> 2019-20 | F107: =VLOOKUP($B107,Competicoes!$A$2:$F$66,5,FALSE) -> Torneio de Preparação de Pista | G107: =VLOOKUP($B107,Competicoes!$A$2:$F$66,2,FALSE) -> Marinha Grande | H107: =LEFT(VLOOKUP($B107,Competicoes!$A$2:$F$66,3,FALSE),2) -> AL | I107: 60 | J107: =VLOOKUP($M107,'Atletas2019-20'!$A$3:$G$1358,7,FALSE) -> Ini | K107: =VLOOKUP($M107,'Atletas2019-20'!$A$3:$F$1358,5,FALSE) -> 2005 | L107: =VLOOKUP($M107,'Atletas2019-20'!$A$3:$F$1358,3,FALSE) -> M | M107: 132623 | N107: =VLOOKUP($M107,'Atletas2019-20'!$A$3:$F$1358,2,FALSE) -> José Maria Parreira | O107: =VLOOKUP($M107,'Atletas2019-20'!$A$3:$F$1358,6,FALSE) -> ACDRA | P107: 8.18 | Q107: M60132623 | R107: =IF(COUNTIF($Q$6:Q107,Q107)=1,"SB","") -> SB | S107: 8.18 | T107: 3.5 | U107: 2
A108: 103 | B108: 2024002 | D108: =IF(C108=2,VLOOKUP($B108,Competicoes!$A$2:$F$66,4,FALSE)+1,VLOOKUP($B108,Competicoes!$A$2:$F$66,4,FALSE)) -> 2019-11-23 | E108: =VLOOKUP($B108,Competicoes!$A$2:$F$66,6,FALSE) -> 2019-20 | F108: =VLOOKUP($B108,Competicoes!$A$2:$F$66,5,FALSE) -> Torneio de Preparação de Pista | G108: =VLOOKUP($B108,Competicoes!$A$2:$F$66,2,FALSE) -> Marinha Grande | H108: =LEFT(VLOOKUP($B108,Competicoes!$A$2:$F$66,3,FALSE),2) -> AL | I108: 60 | J108: =VLOOKUP($M108,'Atletas2019-20'!$A$3:$G$1358,7,FALSE) -> Ini | K108: =VLOOKUP($M108,'Atletas2019-20'!$A$3:$F$1358,5,FALSE) -> 2005 | L108: =VLOOKUP($M108,'Atletas2019-20'!$A$3:$F$1358,3,FALSE) -> M | M108: 151450 | N108: =VLOOKUP($M108,'Atletas2019-20'!$A$3:$F$1358,2,FALSE) -> Diogo Chaves | O108: =VLOOKUP($M108,'Atletas2019-20'!$A$3:$F$1358,6,FALSE) -> ACDRA | P108: 8.19 | Q108: M60151450 | R108: =IF(COUNTIF($Q$6:Q108,Q108)=1,"SB","") -> SB | S108: 8.19 | T108: 3.5 | U108: 2
A109: 104 | B109: 2024002 | D109: =IF(C109=2,VLOOKUP($B109,Competicoes!$A$2:$F$66,4,FALSE)+1,VLOOKUP($B109,Competicoes!$A$2:$F$66,4,FALSE)) -> 2019-11-23 | E109: =VLOOKUP($B109,Competicoes!$A$2:$F$66,6,FALSE) -> 2019-20 | F109: =VLOOKUP($B109,Competicoes!$A$2:$F$66,5,FALSE) -> Torneio de Preparação de Pista | G109: =VLOOKUP($B109,Competicoes!$A$2:$F$66,2,FALSE) -> Marinha Grande | H109: =LEFT(VLOOKUP($B109,Competicoes!$A$2:$F$66,3,FALSE),2) -> AL | I109: 60 | J109: =VLOOKUP($M109,'Atletas2019-20'!$A$3:$G$1358,7,FALSE) -> Ini | K109: =VLOOKUP($M109,'Atletas2019-20'!$A$3:$F$1358,5,FALSE) -> 2005 | L109: =VLOOKUP($M109,'Atletas2019-20'!$A$3:$F$1358,3,FALSE) -> M | M109: 151095 | N109: =VLOOKUP($M109,'Atletas2019-20'!$A$3:$F$1358,2,FALSE) -> Mateus Matias | O109: =VLOOKUP($M109,'Atletas2019-20'!$A$3:$F$1358,6,FALSE) -> JV | P109: 8.26 | Q109: M60151095 | R109: =IF(COUNTIF($Q$6:Q109,Q109)=1,"SB","") -> SB | S109: 8.26 | T109: 3.5 | U109: 2
A110: 105 | B110: 2024002 | D110: =IF(C110=2,VLOOKUP($B110,Competicoes!$A$2:$F$66,4,FALSE)+1,VLOOKUP($B110,Competicoes!$A$2:$F$66,4,FALSE)) -> 2019-11-23 | E110: =VLOOKUP($B110,Competicoes!$A$2:$F$66,6,FALSE) -> 2019-20 | F110: =VLOOKUP($B110,Competicoes!$A$2:$F$66,5,FALSE) -> Torneio de Preparação de Pista | G110: =VLOOKUP($B110,Competicoes!$A$2:$F$66,2,FALSE) -> Marinha Grande | H110: =LEFT(VLOOKUP($B110,Competicoes!$A$2:$F$66,3,FALSE),2) -> AL | I110: 60 | J110: =VLOOKUP($M110,'Atletas2019-20'!$A$3:$G$1358,7,FALSE) -> Ini | K110: =VLOOKUP($M110,'Atletas2019-20'!$A$3:$F$1358,5,FALSE) -> 2006 | L110: =VLOOKUP($M110,'Atletas2019-20'!$A$3:$F$1358,3,FALSE) -> M | M110: 144508 | N110: =VLOOKUP($M110,'Atletas2019-20'!$A$3:$F$1358,2,FALSE) -> Luca Cruz | O110: =VLOOKUP($M110,'Atletas2019-20'!$A$3:$F$1358,6,FALSE) -> JV | P110: 8.27 | Q110: M60144508 | R110: =IF(COUNTIF($Q$6:Q110,Q110)=1,"SB","") -> SB | S110: 8.27 | T110: 3.5 | U110: 2
A111: 106 | B111: 2024002 | D111: =IF(C111=2,VLOOKUP($B111,Competicoes!$A$2:$F$66,4,FALSE)+1,VLOOKUP($B111,Competicoes!$A$2:$F$66,4,FALSE)) -> 2019-11-23 | E111: =VLOOKUP($B111,Competicoes!$A$2:$F$66,6,FALSE) -> 2019-20 | F111: =VLOOKUP($B111,Competicoes!$A$2:$F$66,5,FALSE) -> Torneio de Preparação de Pista | G111: =VLOOKUP($B111,Competicoes!$A$2:$F$66,2,FALSE) -> Marinha Grande | H111: =LEFT(VLOOKUP($B111,Competicoes!$A$2:$F$66,3,FALSE),2) -> AL | I111: 60 | J111: =VLOOKUP($M111,'Atletas2019-20'!$A$3:$G$1358,7,FALSE) -> Ini | K111: =VLOOKUP($M111,'Atletas2019-20'!$A$3:$F$1358,5,FALSE) -> 2006 | L111: =VLOOKUP($M111,'Atletas2019-20'!$A$3:$F$1358,3,FALSE) -> M | M111: 139227 | N111: =VLOOKUP($M111,'Atletas2019-20'!$A$3:$F$1358,2,FALSE) -> Tiago Jorge | O111: =VLOOKUP($M111,'Atletas2019-20'!$A$3:$F$1358,6,FALSE) -> JV | P111: 9.35 | Q111: M60139227 | R111: =IF(COUNTIF($Q$6:Q111,Q111)=1,"SB","") -> SB | S111: 9.35 | T111: 3.5 | U111: 2
A112: 107 | B112: 2024002 | D112: =IF(C112=2,VLOOKUP($B112,Competicoes!$A$2:$F$66,4,FALSE)+1,VLOOKUP($B112,Competicoes!$A$2:$F$66,4,FALSE)) -> 2019-11-23 | E112: =VLOOKUP($B112,Competicoes!$A$2:$F$66,6,FALSE) -> 2019-20 | F112: =VLOOKUP($B112,Competicoes!$A$2:$F$66,5,FALSE) -> Torneio de Preparação de Pista | G112: =VLOOKUP($B112,Competicoes!$A$2:$F$66,2,FALSE) -> Marinha Grande | H112: =LEFT(VLOOKUP($B112,Competicoes!$A$2:$F$66,3,FALSE),2) -> AL | I112: 60 | J112: =VLOOKUP($M112,'Atletas2019-20'!$A$3:$G$1358,7,FALSE) -> Ini | K112: =VLOOKUP($M112,'Atletas2019-20'!$A$3:$F$1358,5,FALSE) -> 2005 | L112: =VLOOKUP($M112,'Atletas2019-20'!$A$3:$F$1358,3,FALSE) -> F | M112: 158017 | N112: =VLOOKUP($M112,'Atletas2019-20'!$A$3:$F$1358,2,FALSE) -> Beatriz Gonçalves | O112: =VLOOKUP($M112,'Atletas2019-20'!$A$3:$F$1358,6,FALSE) -> ACDRA | P112: 8.84 | Q112: F60158017 | R112: =IF(COUNTIF($Q$6:Q112,Q112)=1,"SB","") -> SB | S112: 8.84 | T112: 3.1 | U112: 2
A113: 108 | B113: 2024002 | D113: =IF(C113=2,VLOOKUP($B113,Competicoes!$A$2:$F$66,4,FALSE)+1,VLOOKUP($B113,Competicoes!$A$2:$F$66,4,FALSE)) -> 2019-11-23 | E113: =VLOOKUP($B113,Competicoes!$A$2:$F$66,6,FALSE) -> 2019-20 | F113: =VLOOKUP($B113,Competicoes!$A$2:$F$66,5,FALSE) -> Torneio de Preparação de Pista | G113: =VLOOKUP($B113,Competicoes!$A$2:$F$66,2,FALSE) -> Marinha Grande | H113: =LEFT(VLOOKUP($B113,Competicoes!$A$2:$F$66,3,FALSE),2) -> AL | I113: 60 | J113: =VLOOKUP($M113,'Atletas2019-20'!$A$3:$G$1358,7,FALSE) -> Ini | K113: =VLOOKUP($M113,'Atletas2019-20'!$A$3:$F$1358,5,FALSE) -> 2006 | L113: =VLOOKUP($M113,'Atletas2019-20'!$A$3:$F$1358,3,FALSE) -> F | M113: 157467 | N113: =VLOOKUP($M113,'Atletas2019-20'!$A$3:$F$1358,2,FALSE) -> Rafaela Pires | O113: =VLOOKUP($M113,'Atletas2019-20'!$A$3:$F$1358,6,FALSE) -> GDP-L | P113: 8.95 | Q113: F60157467 | R113: =IF(COUNTIF($Q$6:Q113,Q113)=1,"SB","") -> SB | S113: 8.95 | T113: 3.1 | U113: 2
A114: 109 | B114: 2024002 | D114: =IF(C114=2,VLOOKUP($B114,Competicoes!$A$2:$F$66,4,FALSE)+1,VLOOKUP($B114,Competicoes!$A$2:$F$66,4,FALSE)) -> 2019-11-23 | E114: =VLOOKUP($B114,Competicoes!$A$2:$F$66,6,FALSE) -> 2019-20 | F114: =VLOOKUP($B114,Competicoes!$A$2:$F$66,5,FALSE) -> Torneio de Preparação de Pista | G114: =VLOOKUP($B114,Competicoes!$A$2:$F$66,2,FALSE) -> Marinha Grande | H114: =LEFT(VLOOKUP($B114,Competicoes!$A$2:$F$66,3,FALSE),2) -> AL | I114: 60 | J114: =VLOOKUP($M114,'Atletas2019-20'!$A$3:$G$1358,7,FALSE) -> Ini | K114: =VLOOKUP($M114,'Atletas2019-20'!$A$3:$F$1358,5,FALSE) -> 2005 | L114: =VLOOKUP($M114,'Atletas2019-20'!$A$3:$F$1358,3,FALSE) -> F | M114: 152060 | N114: =VLOOKUP($M114,'Atletas2019-20'!$A$3:$F$1358,2,FALSE) -> Diana Pinéu | O114: =VLOOKUP($M114,'Atletas2019-20'!$A$3:$F$1358,6,FALSE) -> JV | P114: 9.39 | Q114: F60152060 | R114: =IF(COUNTIF($Q$6:Q114,Q114)=1,"SB","") -> SB | S114: 9.39 | T114: 3.1 | U114: 2
A115: 110 | B115: 2024002 | D115: =IF(C115=2,VLOOKUP($B115,Competicoes!$A$2:$F$66,4,FALSE)+1,VLOOKUP($B115,Competicoes!$A$2:$F$66,4,FALSE)) -> 2019-11-23 | E115: =VLOOKUP($B115,Competicoes!$A$2:$F$66,6,FALSE) -> 2019-20 | F115: =VLOOKUP($B115,Competicoes!$A$2:$F$66,5,FALSE) -> Torneio de Preparação de Pista | G115: =VLOOKUP($B115,Competicoes!$A$2:$F$66,2,FALSE) -> Marinha Grande | H115: =LEFT(VLOOKUP($B115,Competicoes!$A$2:$F$66,3,FALSE),2) -> AL | I115: 60 | J115: =VLOOKUP($M115,'Atletas2019-20'!$A$3:$G$1358,7,FALSE) -> Ini | K115: =VLOOKUP($M115,'Atletas2019-20'!$A$3:$F$1358,5,FALSE) -> 2005 | L115: =VLOOKUP($M115,'Atletas2019-20'!$A$3:$F$1358,3,FALSE) -> F | M115: 156747 | N115: =VLOOKUP($M115,'Atletas2019-20'!$A$3:$F$1358,2,FALSE) -> Lúcia Santos | O115: =VLOOKUP($M115,'Atletas2019-20'!$A$3:$F$1358,6,FALSE) -> CAMG | P115: 9.9 | Q115: F60156747 | R115: =IF(COUNTIF($Q$6:Q115,Q115)=1,"SB","") -> SB | S115: 9.9 | T115: 3.1 | U115: 2
A116: 111 | B116: 2024002 | D116: =IF(C116=2,VLOOKUP($B116,Competicoes!$A$2:$F$66,4,FALSE)+1,VLOOKUP($B116,Competicoes!$A$2:$F$66,4,FALSE)) -> 2019-11-23 | E116: =VLOOKUP($B116,Competicoes!$A$2:$F$66,6,FALSE) -> 2019-20 | F116: =VLOOKUP($B116,Competicoes!$A$2:$F$66,5,FALSE) -> Torneio de Preparação de Pista | G116: =VLOOKUP($B116,Competicoes!$A$2:$F$66,2,FALSE) -> Marinha Grande | H116: =LEFT(VLOOKUP($B116,Competicoes!$A$2:$F$66,3,FALSE),2) -> AL | I116: 60 | J116: =VLOOKUP($M116,'Atletas2019-20'!$A$3:$G$1358,7,FALSE) -> Ini | K116: =VLOOKUP($M116,'Atletas2019-20'!$A$3:$F$1358,5,FALSE) -> 2006 | L116: =VLOOKUP($M116,'Atletas2019-20'!$A$3:$F$1358,3,FALSE) -> F | M116: 147896 | N116: =VLOOKUP($M116,'Atletas2019-20'!$A$3:$F$1358,2,FALSE) -> Marta Ferreira | O116: =VLOOKUP($M116,'Atletas2019-20'!$A$3:$F$1358,6,FALSE) -> CAMG | P116: 10.01 | Q116: F60147896 | R116: =IF(COUNTIF($Q$6:Q116,Q116)=1,"SB","") -> SB | S116: 10.01 | T116: 3.1 | U116: 2
A117: 112 | B117: 2024002 | D117: =IF(C117=2,VLOOKUP($B117,Competicoes!$A$2:$F$66,4,FALSE)+1,VLOOKUP($B117,Competicoes!$A$2:$F$66,4,FALSE)) -> 2019-11-23 | E117: =VLOOKUP($B117,Competicoes!$A$2:$F$66,6,FALSE) -> 2019-20 | F117: =VLOOKUP($B117,Competicoes!$A$2:$F$66,5,FALSE) -> Torneio de Preparação de Pista | G117: =VLOOKUP($B117,Competicoes!$A$2:$F$66,2,FALSE) -> Marinha Grande | H117: =LEFT(VLOOKUP($B117,Competicoes!$A$2:$F$66,3,FALSE),2) -> AL | I117: 60 | J117: =VLOOKUP($M117,'Atletas2019-20'!$A$3:$G$1358,7,FALSE) -> Ini | K117: =VLOOKUP($M117,'Atletas2019-20'!$A$3:$F$1358,5,FALSE) -> 2005 | L117: =VLOOKUP($M117,'Atletas2019-20'!$A$3:$F$1358,3,FALSE) -> F | M117: 133534 | N117: =VLOOKUP($M117,'Atletas2019-20'!$A$3:$F$1358,2,FALSE) -> Mariana Angélico | O117: =VLOOKUP($M117,'Atletas2019-20'!$A$3:$F$1358,6,FALSE) -> CAMG | P117: 11.09 | Q117: F60133534 | R117: =IF(COUNTIF($Q$6:Q117,Q117)=1,"SB","") -> SB | S117: 11.09 | T117: 3.1 | U117: 2
A118: 113 | B118: 2024002 | D118: =IF(C118=2,VLOOKUP($B118,Competicoes!$A$2:$F$66,4,FALSE)+1,VLOOKUP($B118,Competicoes!$A$2:$F$66,4,FALSE)) -> 2019-11-23 | E118: =VLOOKUP($B118,Competicoes!$A$2:$F$66,6,FALSE) -> 2019-20 | F118: =VLOOKUP($B118,Competicoes!$A$2:$F$66,5,FALSE) -> Torneio de Preparação de Pista | G118: =VLOOKUP($B118,Competicoes!$A$2:$F$66,2,FALSE) -> Marinha Grande | H118: =LEFT(VLOOKUP($B118,Competicoes!$A$2:$F$66,3,FALSE),2) -> AL | I118: 60 | J118: =VLOOKUP($M118,'Atletas2019-20'!$A$3:$G$1358,7,FALSE) -> Ini | K118: =VLOOKUP($M118,'Atletas2019-20'!$A$3:$F$1358,5,FALSE) -> 2005 | L118: =VLOOKUP($M118,'Atletas2019-20'!$A$3:$F$1358,3,FALSE) -> F | M118: 156628 | N118: =VLOOKUP($M118,'Atletas2019-20'!$A$3:$F$1358,2,FALSE) -> Beatriz Castelhano | O118: =VLOOKUP($M118,'Atletas2019-20'!$A$3:$F$1358,6,FALSE) -> ACDRA | P118: 8.01 | Q118: F60156628 | R118: =IF(COUNTIF($Q$6:Q118,Q118)=1,"SB","") -> SB | S118: 8.01 | T118: 2.7 | U118: 2
A119: 114 | B119: 2024002 | D119: =IF(C119=2,VLOOKUP($B119,Competicoes!$A$2:$F$66,4,FALSE)+1,VLOOKUP($B119,Competicoes!$A$2:$F$66,4,FALSE)) -> 2019-11-23 | E119: =VLOOKUP($B119,Competicoes!$A$2:$F$66,6,FALSE) -> 2019-20 | F119: =VLOOKUP($B119,Competicoes!$A$2:$F$66,5,FALSE) -> Torneio de Preparação de Pista | G119: =VLOOKUP($B119,Competicoes!$A$2:$F$66,2,FALSE) -> Marinha Grande | H119: =LEFT(VLOOKUP($B119,Competicoes!$A$2:$F$66,3,FALSE),2) -> AL | I119: 60 | J119: =VLOOKUP($M119,'Atletas2019-20'!$A$3:$G$1358,7,FALSE) -> Ini | K119: =VLOOKUP($M119,'Atletas2019-20'!$A$3:$F$1358,5,FALSE) -> 2005 | L119: =VLOOKUP($M119,'Atletas2019-20'!$A$3:$F$1358,3,FALSE) -> F | M119: 125273 | N119: =VLOOKUP($M119,'Atletas2019-20'!$A$3:$F$1358,2,FALSE) -> Marta Vieira | O119: =VLOOKUP($M119,'Atletas2019-20'!$A$3:$F$1358,6,FALSE) -> GDP-L | P119: 9.11 | Q119: F60125273 | R119: =IF(COUNTIF($Q$6:Q119,Q119)=1,"SB","") -> SB | S119: 9.11 | T119: 2.7 | U119: 2
A120: 115 | B120: 2024002 | D120: =IF(C120=2,VLOOKUP($B120,Competicoes!$A$2:$F$66,4,FALSE)+1,VLOOKUP($B120,Competicoes!$A$2:$F$66,4,FALSE)) -> 2019-11-23 | E120: =VLOOKUP($B120,Competicoes!$A$2:$F$66,6,FALSE) -> 2019-20 | F120: =VLOOKUP($B120,Competicoes!$A$2:$F$66,5,FALSE) -> Torneio de Preparação de Pista | G120: =VLOOKUP($B120,Competicoes!$A$2:$F$66,2,FALSE) -> Marinha Grande | H120: =LEFT(VLOOKUP($B120,Competicoes!$A$2:$F$66,3,FALSE),2) -> AL | I120: 60 | J120: =VLOOKUP($M120,'Atletas2019-20'!$A$3:$G$1358,7,FALSE) -> Ini | K120: =VLOOKUP($M120,'Atletas2019-20'!$A$3:$F$1358,5,FALSE) -> 2005 | L120: =VLOOKUP($M120,'Atletas2019-20'!$A$3:$F$1358,3,FALSE) -> F | M120: 123593 | N120: =VLOOKUP($M120,'Atletas2019-20'!$A$3:$F$1358,2,FALSE) -> Elisângela Codinha | O120: =VLOOKUP($M120,'Atletas2019-20'!$A$3:$F$1358,6,FALSE) -> GDAA | P120: 9.21 | Q120: F60123593 | R120: =IF(COUNTIF($Q$6:Q120,Q120)=1,"SB","") -> SB | S120: 9.21 | T120: 2.7 | U120: 2
A121: 116 | B121: 2024002 | D121: =IF(C121=2,VLOOKUP($B121,Competicoes!$A$2:$F$66,4,FALSE)+1,VLOOKUP($B121,Competicoes!$A$2:$F$66,4,FALSE)) -> 2019-11-23 | E121: =VLOOKUP($B121,Competicoes!$A$2:$F$66,6,FALSE) -> 2019-20 | F121: =VLOOKUP($B121,Competicoes!$A$2:$F$66,5,FALSE) -> Torneio de Preparação de Pista | G121: =VLOOKUP($B121,Competicoes!$A$2:$F$66,2,FALSE) -> Marinha Grande | H121: =LEFT(VLOOKUP($B121,Competicoes!$A$2:$F$66,3,FALSE),2) -> AL | I121: 60 | J121: =VLOOKUP($M121,'Atletas2019-20'!$A$3:$G$1358,7,FALSE) -> Ini | K121: =VLOOKUP($M121,'Atletas2019-20'!$A$3:$F$1358,5,FALSE) -> 2005 | L121: =VLOOKUP($M121,'Atletas2019-20'!$A$3:$F$1358,3,FALSE) -> F | M121: 139371 | N121: =VLOOKUP($M121,'Atletas2019-20'!$A$3:$F$1358,2,FALSE) -> Anastacia Patraboy | O121: =VLOOKUP($M121,'Atletas2019-20'!$A$3:$F$1358,6,FALSE) -> JV | P121: 9.47 | Q121: F60139371 | R121: =IF(COUNTIF($Q$6:Q121,Q121)=1,"SB","") -> SB | S121: 9.47 | T121: 2.7 | U121: 2
A122: 117 | B122: 2024002 | D122: =IF(C122=2,VLOOKUP($B122,Competicoes!$A$2:$F$66,4,FALSE)+1,VLOOKUP($B122,Competicoes!$A$2:$F$66,4,FALSE)) -> 2019-11-23 | E122: =VLOOKUP($B122,Competicoes!$A$2:$F$66,6,FALSE) -> 2019-20 | F122: =VLOOKUP($B122,Competicoes!$A$2:$F$66,5,FALSE) -> Torneio de Preparação de Pista | G122: =VLOOKUP($B122,Competicoes!$A$2:$F$66,2,FALSE) -> Marinha Grande | H122: =LEFT(VLOOKUP($B122,Competicoes!$A$2:$F$66,3,FALSE),2) -> AL | I122: 60 | J122: =VLOOKUP($M122,'Atletas2019-20'!$A$3:$G$1358,7,FALSE) -> Ini | K122: =VLOOKUP($M122,'Atletas2019-20'!$A$3:$F$1358,5,FALSE) -> 2006 | L122: =VLOOKUP($M122,'Atletas2019-20'!$A$3:$F$1358,3,FALSE) -> F | M122: 152006 | N122: =VLOOKUP($M122,'Atletas2019-20'!$A$3:$F$1358,2,FALSE) -> Mara Estrela | O122: =VLOOKUP($M122,'Atletas2019-20'!$A$3:$F$1358,6,FALSE) -> JV | P122: 9.76 | Q122: F60152006 | R122: =IF(COUNTIF($Q$6:Q122,Q122)=1,"SB","") -> SB | S122: 9.76 | T122: 2.7 | U122: 2
A123: 118 | B123: 2024002 | D123: =IF(C123=2,VLOOKUP($B123,Competicoes!$A$2:$F$66,4,FALSE)+1,VLOOKUP($B123,Competicoes!$A$2:$F$66,4,FALSE)) -> 2019-11-23 | E123: =VLOOKUP($B123,Competicoes!$A$2:$F$66,6,FALSE) -> 2019-20 | F123: =VLOOKUP($B123,Competicoes!$A$2:$F$66,5,FALSE) -> Torneio de Preparação de Pista | G123: =VLOOKUP($B123,Competicoes!$A$2:$F$66,2,FALSE) -> Marinha Grande | H123: =LEFT(VLOOKUP($B123,Competicoes!$A$2:$F$66,3,FALSE),2) -> AL | I123: 60 | J123: =VLOOKUP($M123,'Atletas2019-20'!$A$3:$G$1358,7,FALSE) -> Ini | K123: =VLOOKUP($M123,'Atletas2019-20'!$A$3:$F$1358,5,FALSE) -> 2006 | L123: =VLOOKUP($M123,'Atletas2019-20'!$A$3:$F$1358,3,FALSE) -> F | M123: 128734 | N123: =VLOOKUP($M123,'Atletas2019-20'!$A$3:$F$1358,2,FALSE) -> Laura Mónico | O123: =VLOOKUP($M123,'Atletas2019-20'!$A$3:$F$1358,6,FALSE) -> JV | P123: 10 | Q123: F60128734 | R123: =IF(COUNTIF($Q$6:Q123,Q123)=1,"SB","") -> SB | S123: 10 | T123: 2.7 | U123: 2
A124: 119 | B124: 2024002 | D124: =IF(C124=2,VLOOKUP($B124,Competicoes!$A$2:$F$66,4,FALSE)+1,VLOOKUP($B124,Competicoes!$A$2:$F$66,4,FALSE)) -> 2019-11-23 | E124: =VLOOKUP($B124,Competicoes!$A$2:$F$66,6,FALSE) -> 2019-20 | F124: =VLOOKUP($B124,Competicoes!$A$2:$F$66,5,FALSE) -> Torneio de Preparação de Pista | G124: =VLOOKUP($B124,Competicoes!$A$2:$F$66,2,FALSE) -> Marinha Grande | H124: =LEFT(VLOOKUP($B124,Competicoes!$A$2:$F$66,3,FALSE),2) -> AL | I124: 60 | J124: =VLOOKUP($M124,'Atletas2019-20'!$A$3:$G$1358,7,FALSE) -> Ini | K124: =VLOOKUP($M124,'Atletas2019-20'!$A$3:$F$1358,5,FALSE) -> 2005 | L124: =VLOOKUP($M124,'Atletas2019-20'!$A$3:$F$1358,3,FALSE) -> F | M124: 152189 | N124: =VLOOKUP($M124,'Atletas2019-20'!$A$3:$F$1358,2,FALSE) -> Filipa Dinis | O124: =VLOOKUP($M124,'Atletas2019-20'!$A$3:$F$1358,6,FALSE) -> JV | P124: 8.89 | Q124: F60152189 | R124: =IF(COUNTIF($Q$6:Q124,Q124)=1,"SB","") -> SB | S124: 8.89 | T124: 2.4 | U124: 2
A125: 120 | B125: 2024002 | D125: =IF(C125=2,VLOOKUP($B125,Competicoes!$A$2:$F$66,4,FALSE)+1,VLOOKUP($B125,Competicoes!$A$2:$F$66,4,FALSE)) -> 2019-11-23 | E125: =VLOOKUP($B125,Competicoes!$A$2:$F$66,6,FALSE) -> 2019-20 | F125: =VLOOKUP($B125,Competicoes!$A$2:$F$66,5,FALSE) -> Torneio de Preparação de Pista | G125: =VLOOKUP($B125,Competicoes!$A$2:$F$66,2,FALSE) -> Marinha Grande | H125: =LEFT(VLOOKUP($B125,Competicoes!$A$2:$F$66,3,FALSE),2) -> AL | I125: 60 | J125: =VLOOKUP($M125,'Atletas2019-20'!$A$3:$G$1358,7,FALSE) -> Ini | K125: =VLOOKUP($M125,'Atletas2019-20'!$A$3:$F$1358,5,FALSE) -> 2005 | L125: =VLOOKUP($M125,'Atletas2019-20'!$A$3:$F$1358,3,FALSE) -> F | M125: 151467 | N125: =VLOOKUP($M125,'Atletas2019-20'!$A$3:$F$1358,2,FALSE) -> Bruna Silva | O125: =VLOOKUP($M125,'Atletas2019-20'!$A$3:$F$1358,6,FALSE) -> ACDRA | P125: 8.99 | Q125: F60151467 | R125: =IF(COUNTIF($Q$6:Q125,Q125)=1,"SB","") -> SB | S125: 8.99 | T125: 2.4 | U125: 2
A126: 121 | B126: 2024002 | D126: =IF(C126=2,VLOOKUP($B126,Competicoes!$A$2:$F$66,4,FALSE)+1,VLOOKUP($B126,Competicoes!$A$2:$F$66,4,FALSE)) -> 2019-11-23 | E126: =VLOOKUP($B126,Competicoes!$A$2:$F$66,6,FALSE) -> 2019-20 | F126: =VLOOKUP($B126,Competicoes!$A$2:$F$66,5,FALSE) -> Torneio de Preparação de Pista | G126: =VLOOKUP($B126,Competicoes!$A$2:$F$66,2,FALSE) -> Marinha Grande | H126: =LEFT(VLOOKUP($B126,Competicoes!$A$2:$F$66,3,FALSE),2) -> AL | I126: 60 | J126: =VLOOKUP($M126,'Atletas2019-20'!$A$3:$G$1358,7,FALSE) -> Ini | K126: =VLOOKUP($M126,'Atletas2019-20'!$A$3:$F$1358,5,FALSE) -> 2006 | L126: =VLOOKUP($M126,'Atletas2019-20'!$A$3:$F$1358,3,FALSE) -> F | M126: 139326 | N126: =VLOOKUP($M126,'Atletas2019-20'!$A$3:$F$1358,2,FALSE) -> Nadine Pires | O126: =VLOOKUP($M126,'Atletas2019-20'!$A$3:$F$1358,6,FALSE) -> JV | P126: 9.08 | Q126: F60139326 | R126: =IF(COUNTIF($Q$6:Q126,Q126)=1,"SB","") -> SB | S126: 9.08 | T126: 2.4 | U126: 2
A127: 122 | B127: 2024002 | D127: =IF(C127=2,VLOOKUP($B127,Competicoes!$A$2:$F$66,4,FALSE)+1,VLOOKUP($B127,Competicoes!$A$2:$F$66,4,FALSE)) -> 2019-11-23 | E127: =VLOOKUP($B127,Competicoes!$A$2:$F$66,6,FALSE) -> 2019-20 | F127: =VLOOKUP($B127,Competicoes!$A$2:$F$66,5,FALSE) -> Torneio de Preparação de Pista | G127: =VLOOKUP($B127,Competicoes!$A$2:$F$66,2,FALSE) -> Marinha Grande | H127: =LEFT(VLOOKUP($B127,Competicoes!$A$2:$F$66,3,FALSE),2) -> AL | I127: 60 | J127: =VLOOKUP($M127,'Atletas2019-20'!$A$3:$G$1358,7,FALSE) -> Ini | K127: =VLOOKUP($M127,'Atletas2019-20'!$A$3:$F$1358,5,FALSE) -> 2005 | L127: =VLOOKUP($M127,'Atletas2019-20'!$A$3:$F$1358,3,FALSE) -> F | M127: 140730 | N127: =VLOOKUP($M127,'Atletas2019-20'!$A$3:$F$1358,2,FALSE) -> Luana Figueira | O127: =VLOOKUP($M127,'Atletas2019-20'!$A$3:$F$1358,6,FALSE) -> JV | P127: 9.2 | Q127: F60140730 | R127: =IF(COUNTIF($Q$6:Q127,Q127)=1,"SB","") -> SB | S127: 9.2 | T127: 2.4 | U127: 2
A128: 123 | B128: 2024002 | D128: =IF(C128=2,VLOOKUP($B128,Competicoes!$A$2:$F$66,4,FALSE)+1,VLOOKUP($B128,Competicoes!$A$2:$F$66,4,FALSE)) -> 2019-11-23 | E128: =VLOOKUP($B128,Competicoes!$A$2:$F$66,6,FALSE) -> 2019-20 | F128: =VLOOKUP($B128,Competicoes!$A$2:$F$66,5,FALSE) -> Torneio de Preparação de Pista | G128: =VLOOKUP($B128,Competicoes!$A$2:$F$66,2,FALSE) -> Marinha Grande | H128: =LEFT(VLOOKUP($B128,Competicoes!$A$2:$F$66,3,FALSE),2) -> AL | I128: 60 | J128: =VLOOKUP($M128,'Atletas2019-20'!$A$3:$G$1358,7,FALSE) -> Ini | K128: =VLOOKUP($M128,'Atletas2019-20'!$A$3:$F$1358,5,FALSE) -> 2006 | L128: =VLOOKUP($M128,'Atletas2019-20'!$A$3:$F$1358,3,FALSE) -> F | M128: 136505 | N128: =VLOOKUP($M128,'Atletas2019-20'!$A$3:$F$1358,2,FALSE) -> Laura Baltazar | O128: =VLOOKUP($M128,'Atletas2019-20'!$A$3:$F$1358,6,FALSE) -> JV | P128: 9.26 | Q128: F60136505 | R128: =IF(COUNTIF($Q$6:Q128,Q128)=1,"SB","") -> SB | S128: 9.26 | T128: 2.4 | U128: 2
A129: 124 | B129: 2024002 | D129: =IF(C129=2,VLOOKUP($B129,Competicoes!$A$2:$F$66,4,FALSE)+1,VLOOKUP($B129,Competicoes!$A$2:$F$66,4,FALSE)) -> 2019-11-23 | E129: =VLOOKUP($B129,Competicoes!$A$2:$F$66,6,FALSE) -> 2019-20 | F129: =VLOOKUP($B129,Competicoes!$A$2:$F$66,5,FALSE) -> Torneio de Preparação de Pista | G129: =VLOOKUP($B129,Competicoes!$A$2:$F$66,2,FALSE) -> Marinha Grande | H129: =LEFT(VLOOKUP($B129,Competicoes!$A$2:$F$66,3,FALSE),2) -> AL | I129: 60 | J129: =VLOOKUP($M129,'Atletas2019-20'!$A$3:$G$1358,7,FALSE) -> Ini | K129: =VLOOKUP($M129,'Atletas2019-20'!$A$3:$F$1358,5,FALSE) -> 2006 | L129: =VLOOKUP($M129,'Atletas2019-20'!$A$3:$F$1358,3,FALSE) -> F | M129: 152732 | N129: =VLOOKUP($M129,'Atletas2019-20'!$A$3:$F$1358,2,FALSE) -> Vitoria Chornohor | O129: =VLOOKUP($M129,'Atletas2019-20'!$A$3:$F$1358,6,FALSE) -> NDAP | P129: 9.31 | Q129: F60152732 | R129: =IF(COUNTIF($Q$6:Q129,Q129)=1,"SB","") -> SB | S129: 9.31 | T129: 2.4 | U129: 2
A130: 125 | B130: 2024002 | D130: =IF(C130=2,VLOOKUP($B130,Competicoes!$A$2:$F$66,4,FALSE)+1,VLOOKUP($B130,Competicoes!$A$2:$F$66,4,FALSE)) -> 2019-11-23 | E130: =VLOOKUP($B130,Competicoes!$A$2:$F$66,6,FALSE) -> 2019-20 | F130: =VLOOKUP($B130,Competicoes!$A$2:$F$66,5,FALSE) -> Torneio de Preparação de Pista | G130: =VLOOKUP($B130,Competicoes!$A$2:$F$66,2,FALSE) -> Marinha Grande | H130: =LEFT(VLOOKUP($B130,Competicoes!$A$2:$F$66,3,FALSE),2) -> AL | I130: 60 | J130: =VLOOKUP($M130,'Atletas2019-20'!$A$3:$G$1358,7,FALSE) -> Ini | K130: =VLOOKUP($M130,'Atletas2019-20'!$A$3:$F$1358,5,FALSE) -> 2006 | L130: =VLOOKUP($M130,'Atletas2019-20'!$A$3:$F$1358,3,FALSE) -> F | M130: 155931 | N130: =VLOOKUP($M130,'Atletas2019-20'!$A$3:$F$1358,2,FALSE) -> Mariana Amado | O130: =VLOOKUP($M130,'Atletas2019-20'!$A$3:$F$1358,6,FALSE) -> GDP-L | P130: 9.52 | Q130: F60155931 | R130: =IF(COUNTIF($Q$6:Q130,Q130)=1,"SB","") -> SB | S130: 9.52 | T130: 2.4 | U130: 2
A131: 126 | B131: 2024002 | D131: =IF(C131=2,VLOOKUP($B131,Competicoes!$A$2:$F$66,4,FALSE)+1,VLOOKUP($B131,Competicoes!$A$2:$F$66,4,FALSE)) -> 2019-11-23 | E131: =VLOOKUP($B131,Competicoes!$A$2:$F$66,6,FALSE) -> 2019-20 | F131: =VLOOKUP($B131,Competicoes!$A$2:$F$66,5,FALSE) -> Torneio de Preparação de Pista | G131: =VLOOKUP($B131,Competicoes!$A$2:$F$66,2,FALSE) -> Marinha Grande | H131: =LEFT(VLOOKUP($B131,Competicoes!$A$2:$F$66,3,FALSE),2) -> AL | I131: 60 | J131: =VLOOKUP($M131,'Atletas2019-20'!$A$3:$G$1358,7,FALSE) -> Ini | K131: =VLOOKUP($M131,'Atletas2019-20'!$A$3:$F$1358,5,FALSE) -> 2006 | L131: =VLOOKUP($M131,'Atletas2019-20'!$A$3:$F$1358,3,FALSE) -> F | M131: 128680 | N131: =VLOOKUP($M131,'Atletas2019-20'!$A$3:$F$1358,2,FALSE) -> Sara Brites | O131: =VLOOKUP($M131,'Atletas2019-20'!$A$3:$F$1358,6,FALSE) -> JV | P131: 8.32 | Q131: F60128680 | R131: =IF(COUNTIF($Q$6:Q131,Q131)=1,"SB","") -> SB | S131: 8.32 | T131: 2.4 | U131: 2
A132: 127 | B132: 2024002 | D132: =IF(C132=2,VLOOKUP($B132,Competicoes!$A$2:$F$66,4,FALSE)+1,VLOOKUP($B132,Competicoes!$A$2:$F$66,4,FALSE)) -> 2019-11-23 | E132: =VLOOKUP($B132,Competicoes!$A$2:$F$66,6,FALSE) -> 2019-20 | F132: =VLOOKUP($B132,Competicoes!$A$2:$F$66,5,FALSE) -> Torneio de Preparação de Pista | G132: =VLOOKUP($B132,Competicoes!$A$2:$F$66,2,FALSE) -> Marinha Grande | H132: =LEFT(VLOOKUP($B132,Competicoes!$A$2:$F$66,3,FALSE),2) -> AL | I132: 60 | J132: =VLOOKUP($M132,'Atletas2019-20'!$A$3:$G$1358,7,FALSE) -> Ini | K132: =VLOOKUP($M132,'Atletas2019-20'!$A$3:$F$1358,5,FALSE) -> 2005 | L132: =VLOOKUP($M132,'Atletas2019-20'!$A$3:$F$1358,3,FALSE) -> F | M132: 149798 | N132: =VLOOKUP($M132,'Atletas2019-20'!$A$3:$F$1358,2,FALSE) -> Carolina Castro | O132: =VLOOKUP($M132,'Atletas2019-20'!$A$3:$F$1358,6,FALSE) -> JV | P132: 8.38 | Q132: F60149798 | R132: =IF(COUNTIF($Q$6:Q132,Q132)=1,"SB","") -> SB | S132: 8.38 | T132: 2.4 | U132: 2
A133: 128 | B133: 2024002 | D133: =IF(C133=2,VLOOKUP($B133,Competicoes!$A$2:$F$66,4,FALSE)+1,VLOOKUP($B133,Competicoes!$A$2:$F$66,4,FALSE)) -> 2019-11-23 | E133: =VLOOKUP($B133,Competicoes!$A$2:$F$66,6,FALSE) -> 2019-20 | F133: =VLOOKUP($B133,Competicoes!$A$2:$F$66,5,FALSE) -> Torneio de Preparação de Pista | G133: =VLOOKUP($B133,Competicoes!$A$2:$F$66,2,FALSE) -> Marinha Grande | H133: =LEFT(VLOOKUP($B133,Competicoes!$A$2:$F$66,3,FALSE),2) -> AL | I133: 60 | J133: =VLOOKUP($M133,'Atletas2019-20'!$A$3:$G$1358,7,FALSE) -> Ini | K133: =VLOOKUP($M133,'Atletas2019-20'!$A$3:$F$1358,5,FALSE) -> 2005 | L133: =VLOOKUP($M133,'Atletas2019-20'!$A$3:$F$1358,3,FALSE) -> F | M133: 138194 | N133: =VLOOKUP($M133,'Atletas2019-20'!$A$3:$F$1358,2,FALSE) -> Vera Goucha | O133: =VLOOKUP($M133,'Atletas2019-20'!$A$3:$F$1358,6,FALSE) -> JV | P133: 8.39 | Q133: =L133&I133&M133 -> F60138194 | R133: =IF(COUNTIF($Q$6:Q133,Q133)=1,"SB","") -> SB | S133: =SIGN(P133)*P133 -> 8.39 | T133: 2.4 | U133: 2
A134: 129 | B134: 2024002 | D134: =IF(C134=2,VLOOKUP($B134,Competicoes!$A$2:$F$66,4,FALSE)+1,VLOOKUP($B134,Competicoes!$A$2:$F$66,4,FALSE)) -> 2019-11-23 | E134: =VLOOKUP($B134,Competicoes!$A$2:$F$66,6,FALSE) -> 2019-20 | F134: =VLOOKUP($B134,Competicoes!$A$2:$F$66,5,FALSE) -> Torneio de Preparação de Pista | G134: =VLOOKUP($B134,Competicoes!$A$2:$F$66,2,FALSE) -> Marinha Grande | H134: =LEFT(VLOOKUP($B134,Competicoes!$A$2:$F$66,3,FALSE),2) -> AL | I134: 60 | J134: =VLOOKUP($M134,'Atletas2019-20'!$A$3:$G$1358,7,FALSE) -> Ini | K134: =VLOOKUP($M134,'Atletas2019-20'!$A$3:$F$1358,5,FALSE) -> 2005 | L134: =VLOOKUP($M134,'Atletas2019-20'!$A$3:$F$1358,3,FALSE) -> F | M134: 139241 | N134: =VLOOKUP($M134,'Atletas2019-20'!$A$3:$F$1358,2,FALSE) -> Catarina Silva | O134: =VLOOKUP($M134,'Atletas2019-20'!$A$3:$F$1358,6,FALSE) -> JV | P134: 8.73 | Q134: F60139241 | R134: =IF(COUNTIF($Q$6:Q134,Q134)=1,"SB","") -> SB | S134: 8.73 | T134: 2.4 | U134: 2
A135: 130 | B135: 2024002 | D135: =IF(C135=2,VLOOKUP($B135,Competicoes!$A$2:$F$66,4,FALSE)+1,VLOOKUP($B135,Competicoes!$A$2:$F$66,4,FALSE)) -> 2019-11-23 | E135: =VLOOKUP($B135,Competicoes!$A$2:$F$66,6,FALSE) -> 2019-20 | F135: =VLOOKUP($B135,Competicoes!$A$2:$F$66,5,FALSE) -> Torneio de Preparação de Pista | G135: =VLOOKUP($B135,Competicoes!$A$2:$F$66,2,FALSE) -> Marinha Grande | H135: =LEFT(VLOOKUP($B135,Competicoes!$A$2:$F$66,3,FALSE),2) -> AL | I135: 60 | J135: =VLOOKUP($M135,'Atletas2019-20'!$A$3:$G$1358,7,FALSE) -> Ini | K135: =VLOOKUP($M135,'Atletas2019-20'!$A$3:$F$1358,5,FALSE) -> 2005 | L135: =VLOOKUP($M135,'Atletas2019-20'!$A$3:$F$1358,3,FALSE) -> F | M135: 135202 | N135: =VLOOKUP($M135,'Atletas2019-20'!$A$3:$F$1358,2,FALSE) -> Margarida Santos | O135: =VLOOKUP($M135,'Atletas2019-20'!$A$3:$F$1358,6,FALSE) -> JV | P135: 8.82 | Q135: F60135202 | R135: =IF(COUNTIF($Q$6:Q135,Q135)=1,"SB","") -> SB | S135: 8.82 | T135: 2.4 | U135: 2
A136: 131 | B136: 2024002 | D136: =IF(C136=2,VLOOKUP($B136,Competicoes!$A$2:$F$66,4,FALSE)+1,VLOOKUP($B136,Competicoes!$A$2:$F$66,4,FALSE)) -> 2019-11-23 | E136: =VLOOKUP($B136,Competicoes!$A$2:$F$66,6,FALSE) -> 2019-20 | F136: =VLOOKUP($B136,Competicoes!$A$2:$F$66,5,FALSE) -> Torneio de Preparação de Pista | G136: =VLOOKUP($B136,Competicoes!$A$2:$F$66,2,FALSE) -> Marinha Grande | H136: =LEFT(VLOOKUP($B136,Competicoes!$A$2:$F$66,3,FALSE),2) -> AL | I136: 60 | J136: =VLOOKUP($M136,'Atletas2019-20'!$A$3:$G$1358,7,FALSE) -> Ini | K136: =VLOOKUP($M136,'Atletas2019-20'!$A$3:$F$1358,5,FALSE) -> 2006 | L136: =VLOOKUP($M136,'Atletas2019-20'!$A$3:$F$1358,3,FALSE) -> F | M136: 140622 | N136: =VLOOKUP($M136,'Atletas2019-20'!$A$3:$F$1358,2,FALSE) -> Carolina Marques | O136: =VLOOKUP($M136,'Atletas2019-20'!$A$3:$F$1358,6,FALSE) -> JV | P136: 8.89 | Q136: F60140622 | R136: =IF(COUNTIF($Q$6:Q136,Q136)=1,"SB","") -> SB | S136: 8.89 | T136: 2.4 | U136: 2
A137: 132 | B137: 2024002 | D137: =IF(C137=2,VLOOKUP($B137,Competicoes!$A$2:$F$66,4,FALSE)+1,VLOOKUP($B137,Competicoes!$A$2:$F$66,4,FALSE)) -> 2019-11-23 | E137: =VLOOKUP($B137,Competicoes!$A$2:$F$66,6,FALSE) -> 2019-20 | F137: =VLOOKUP($B137,Competicoes!$A$2:$F$66,5,FALSE) -> Torneio de Preparação de Pista | G137: =VLOOKUP($B137,Competicoes!$A$2:$F$66,2,FALSE) -> Marinha Grande | H137: =LEFT(VLOOKUP($B137,Competicoes!$A$2:$F$66,3,FALSE),2) -> AL | I137: 60 | J137: =VLOOKUP($M137,'Atletas2019-20'!$A$3:$G$1358,7,FALSE) -> Ini | K137: =VLOOKUP($M137,'Atletas2019-20'!$A$3:$F$1358,5,FALSE) -> 2005 | L137: =VLOOKUP($M137,'Atletas2019-20'!$A$3:$F$1358,3,FALSE) -> F | M137: 153443 | N137: =VLOOKUP($M137,'Atletas2019-20'!$A$3:$F$1358,2,FALSE) -> Constança Anunciação | O137: =VLOOKUP($M137,'Atletas2019-20'!$A$3:$F$1358,6,FALSE) -> ACB-L | P137: 9.03 | Q137: F60153443 | R137: =IF(COUNTIF($Q$6:Q137,Q137)=1,"SB","") -> SB | S137: 9.03 | T137: 2.4 | U137: 2
A138: 133 | B138: 2024002 | D138: =IF(C138=2,VLOOKUP($B138,Competicoes!$A$2:$F$66,4,FALSE)+1,VLOOKUP($B138,Competicoes!$A$2:$F$66,4,FALSE)) -> 2019-11-23 | E138: =VLOOKUP($B138,Competicoes!$A$2:$F$66,6,FALSE) -> 2019-20 | F138: =VLOOKUP($B138,Competicoes!$A$2:$F$66,5,FALSE) -> Torneio de Preparação de Pista | G138: =VLOOKUP($B138,Competicoes!$A$2:$F$66,2,FALSE) -> Marinha Grande | H138: =LEFT(VLOOKUP($B138,Competicoes!$A$2:$F$66,3,FALSE),2) -> AL | I138: PESO3 | J138: =VLOOKUP($M138,'Atletas2019-20'!$A$3:$G$1358,7,FALSE) -> Inf | K138: =VLOOKUP($M138,'Atletas2019-20'!$A$3:$F$1358,5,FALSE) -> 2008 | L138: =VLOOKUP($M138,'Atletas2019-20'!$A$3:$F$1358,3,FALSE) -> M | M138: 156636 | N138: =VLOOKUP($M138,'Atletas2019-20'!$A$3:$F$1358,2,FALSE) -> Rafael Morgado | O138: =VLOOKUP($M138,'Atletas2019-20'!$A$3:$F$1358,6,FALSE) -> JV | P138: -6 | Q138: MPESO3156636 | R138: =IF(COUNTIF($Q$6:Q138,Q138)=1,"SB","") -> SB | S138: 6 | U138: 2
A139: 134 | B139: 2024002 | D139: =IF(C139=2,VLOOKUP($B139,Competicoes!$A$2:$F$66,4,FALSE)+1,VLOOKUP($B139,Competicoes!$A$2:$F$66,4,FALSE)) -> 2019-11-23 | E139: =VLOOKUP($B139,Competicoes!$A$2:$F$66,6,FALSE) -> 2019-20 | F139: =VLOOKUP($B139,Competicoes!$A$2:$F$66,5,FALSE) -> Torneio de Preparação de Pista | G139: =VLOOKUP($B139,Competicoes!$A$2:$F$66,2,FALSE) -> Marinha Grande | H139: =LEFT(VLOOKUP($B139,Competicoes!$A$2:$F$66,3,FALSE),2) -> AL | I139: PESO3 | J139: =VLOOKUP($M139,'Atletas2019-20'!$A$3:$G$1358,7,FALSE) -> Inf | K139: =VLOOKUP($M139,'Atletas2019-20'!$A$3:$F$1358,5,FALSE) -> 2007 | L139: =VLOOKUP($M139,'Atletas2019-20'!$A$3:$F$1358,3,FALSE) -> M | M139: 158058 | N139: =VLOOKUP($M139,'Atletas2019-20'!$A$3:$F$1358,2,FALSE) -> João Mota | O139: =VLOOKUP($M139,'Atletas2019-20'!$A$3:$F$1358,6,FALSE) -> JV | P139: -6.35 | Q139: MPESO3158058 | R139: =IF(COUNTIF($Q$6:Q139,Q139)=1,"SB","") -> SB | S139: 6.35 | U139: 2
A140: 135 | B140: 2024002 | D140: =IF(C140=2,VLOOKUP($B140,Competicoes!$A$2:$F$66,4,FALSE)+1,VLOOKUP($B140,Competicoes!$A$2:$F$66,4,FALSE)) -> 2019-11-23 | E140: =VLOOKUP($B140,Competicoes!$A$2:$F$66,6,FALSE) -> 2019-20 | F140: =VLOOKUP($B140,Competicoes!$A$2:$F$66,5,FALSE) -> Torneio de Preparação de Pista | G140: =VLOOKUP($B140,Competicoes!$A$2:$F$66,2,FALSE) -> Marinha Grande | H140: =LEFT(VLOOKUP($B140,Competicoes!$A$2:$F$66,3,FALSE),2) -> AL | I140: PESO3 | J140: =VLOOKUP($M140,'Atletas2019-20'!$A$3:$G$1358,7,FALSE) -> Inf | K140: =VLOOKUP($M140,'Atletas2019-20'!$A$3:$F$1358,5,FALSE) -> 2008 | L140: =VLOOKUP($M140,'Atletas2019-20'!$A$3:$F$1358,3,FALSE) -> M | M140: 158608 | N140: =VLOOKUP($M140,'Atletas2019-20'!$A$3:$F$1358,2,FALSE) -> Diogo Gonçalves | O140: =VLOOKUP($M140,'Atletas2019-20'!$A$3:$F$1358,6,FALSE) -> NDAP | P140: -5.17 | Q140: MPESO3158608 | R140: =IF(COUNTIF($Q$6:Q140,Q140)=1,"SB","") -> SB | S140: 5.17 | U140: 2
A141: 136 | B141: 2024002 | D141: =IF(C141=2,VLOOKUP($B141,Competicoes!$A$2:$F$66,4,FALSE)+1,VLOOKUP($B141,Competicoes!$A$2:$F$66,4,FALSE)) -> 2019-11-23 | E141: =VLOOKUP($B141,Competicoes!$A$2:$F$66,6,FALSE) -> 2019-20 | F141: =VLOOKUP($B141,Competicoes!$A$2:$F$66,5,FALSE) -> Torneio de Preparação de Pista | G141: =VLOOKUP($B141,Competicoes!$A$2:$F$66,2,FALSE) -> Marinha Grande | H141: =LEFT(VLOOKUP($B141,Competicoes!$A$2:$F$66,3,FALSE),2) -> AL | I141: PESO3 | J141: =VLOOKUP($M141,'Atletas2019-20'!$A$3:$G$1358,7,FALSE) -> Inf | K141: =VLOOKUP($M141,'Atletas2019-20'!$A$3:$F$1358,5,FALSE) -> 2007 | L141: =VLOOKUP($M141,'Atletas2019-20'!$A$3:$F$1358,3,FALSE) -> M | M141: 130762 | N141: =VLOOKUP($M141,'Atletas2019-20'!$A$3:$F$1358,2,FALSE) -> Alexandre Rosário | O141: =VLOOKUP($M141,'Atletas2019-20'!$A$3:$F$1358,6,FALSE) -> ACB-L | P141: -7.86 | Q141: MPESO3130762 | R141: =IF(COUNTIF($Q$6:Q141,Q141)=1,"SB","") -> SB | S141: 7.86 | U141: 2
A142: 137 | B142: 2024002 | D142: =IF(C142=2,VLOOKUP($B142,Competicoes!$A$2:$F$66,4,FALSE)+1,VLOOKUP($B142,Competicoes!$A$2:$F$66,4,FALSE)) -> 2019-11-23 | E142: =VLOOKUP($B142,Competicoes!$A$2:$F$66,6,FALSE) -> 2019-20 | F142: =VLOOKUP($B142,Competicoes!$A$2:$F$66,5,FALSE) -> Torneio de Preparação de Pista | G142: =VLOOKUP($B142,Competicoes!$A$2:$F$66,2,FALSE) -> Marinha Grande | H142: =LEFT(VLOOKUP($B142,Competicoes!$A$2:$F$66,3,FALSE),2) -> AL | I142: PESO3 | J142: =VLOOKUP($M142,'Atletas2019-20'!$A$3:$G$1358,7,FALSE) -> Inf | K142: =VLOOKUP($M142,'Atletas2019-20'!$A$3:$F$1358,5,FALSE) -> 2007 | L142: =VLOOKUP($M142,'Atletas2019-20'!$A$3:$F$1358,3,FALSE) -> M | M142: 146127 | N142: =VLOOKUP($M142,'Atletas2019-20'!$A$3:$F$1358,2,FALSE) -> João Crespo | O142: =VLOOKUP($M142,'Atletas2019-20'!$A$3:$F$1358,6,FALSE) -> JV | P142: 0 | Q142: MPESO3146127 | R142: =IF(COUNTIF($Q$6:Q142,Q142)=1,"SB","") -> SB | S142: 0 | U142: 0
A143: 138 | B143: 2024002 | D143: =IF(C143=2,VLOOKUP($B143,Competicoes!$A$2:$F$66,4,FALSE)+1,VLOOKUP($B143,Competicoes!$A$2:$F$66,4,FALSE)) -> 2019-11-23 | E143: =VLOOKUP($B143,Competicoes!$A$2:$F$66,6,FALSE) -> 2019-20 | F143: =VLOOKUP($B143,Competicoes!$A$2:$F$66,5,FALSE) -> Torneio de Preparação de Pista | G143: =VLOOKUP($B143,Competicoes!$A$2:$F$66,2,FALSE) -> Marinha Grande | H143: =LEFT(VLOOKUP($B143,Competicoes!$A$2:$F$66,3,FALSE),2) -> AL | I143: PESO3 | J143: =VLOOKUP($M143,'Atletas2019-20'!$A$3:$G$1358,7,FALSE) -> Inf | K143: =VLOOKUP($M143,'Atletas2019-20'!$A$3:$F$1358,5,FALSE) -> 2007 | L143: =VLOOKUP($M143,'Atletas2019-20'!$A$3:$F$1358,3,FALSE) -> M | M143: 132214 | N143: =VLOOKUP($M143,'Atletas2019-20'!$A$3:$F$1358,2,FALSE) -> Tomás Monteiro | O143: =VLOOKUP($M143,'Atletas2019-20'!$A$3:$F$1358,6,FALSE) -> JV | P143: -6.34 | Q143: MPESO3132214 | R143: =IF(COUNTIF($Q$6:Q143,Q143)=1,"SB","") -> SB | S143: 6.34 | U143: 2
A144: 139 | B144: 2024002 | D144: =IF(C144=2,VLOOKUP($B144,Competicoes!$A$2:$F$66,4,FALSE)+1,VLOOKUP($B144,Competicoes!$A$2:$F$66,4,FALSE)) -> 2019-11-23 | E144: =VLOOKUP($B144,Competicoes!$A$2:$F$66,6,FALSE) -> 2019-20 | F144: =VLOOKUP($B144,Competicoes!$A$2:$F$66,5,FALSE) -> Torneio de Preparação de Pista | G144: =VLOOKUP($B144,Competicoes!$A$2:$F$66,2,FALSE) -> Marinha Grande | H144: =LEFT(VLOOKUP($B144,Competicoes!$A$2:$F$66,3,FALSE),2) -> AL | I144: PESO3 | J144: =VLOOKUP($M144,'Atletas2019-20'!$A$3:$G$1358,7,FALSE) -> Inf | K144: =VLOOKUP($M144,'Atletas2019-20'!$A$3:$F$1358,5,FALSE) -> 2008 | L144: =VLOOKUP($M144,'Atletas2019-20'!$A$3:$F$1358,3,FALSE) -> M | M144: 134347 | N144: =VLOOKUP($M144,'Atletas2019-20'!$A$3:$F$1358,2,FALSE) -> Jaime Rolla | O144: =VLOOKUP($M144,'Atletas2019-20'!$A$3:$F$1358,6,FALSE) -> JV | P144: -4.16 | Q144: MPESO3134347 | R144: =IF(COUNTIF($Q$6:Q144,Q144)=1,"SB","") -> SB | S144: 4.16 | U144: 2
A145: 140 | B145: 2024002 | D145: =IF(C145=2,VLOOKUP($B145,Competicoes!$A$2:$F$66,4,FALSE)+1,VLOOKUP($B145,Competicoes!$A$2:$F$66,4,FALSE)) -> 2019-11-23 | E145: =VLOOKUP($B145,Competicoes!$A$2:$F$66,6,FALSE) -> 2019-20 | F145: =VLOOKUP($B145,Competicoes!$A$2:$F$66,5,FALSE) -> Torneio de Preparação de Pista | G145: =VLOOKUP($B145,Competicoes!$A$2:$F$66,2,FALSE) -> Marinha Grande | H145: =LEFT(VLOOKUP($B145,Competicoes!$A$2:$F$66,3,FALSE),2) -> AL | I145: PESO3 | J145: =VLOOKUP($M145,'Atletas2019-20'!$A$3:$G$1358,7,FALSE) -> Inf | K145: =VLOOKUP($M145,'Atletas2019-20'!$A$3:$F$1358,5,FALSE) -> 2008 | L145: =VLOOKUP($M145,'Atletas2019-20'!$A$3:$F$1358,3,FALSE) -> M | M145: 153294 | N145: =VLOOKUP($M145,'Atletas2019-20'!$A$3:$F$1358,2,FALSE) -> António Vasconcelos | O145: =VLOOKUP($M145,'Atletas2019-20'!$A$3:$F$1358,6,FALSE) -> JV | P145: -3.99 | Q145: MPESO3153294 | R145: =IF(COUNTIF($Q$6:Q145,Q145)=1,"SB","") -> SB | S145: 3.99 | U145: 2
A146: 141 | B146: 2024002 | D146: =IF(C146=2,VLOOKUP($B146,Competicoes!$A$2:$F$66,4,FALSE)+1,VLOOKUP($B146,Competicoes!$A$2:$F$66,4,FALSE)) -> 2019-11-23 | E146: =VLOOKUP($B146,Competicoes!$A$2:$F$66,6,FALSE) -> 2019-20 | F146: =VLOOKUP($B146,Competicoes!$A$2:$F$66,5,FALSE) -> Torneio de Preparação de Pista | G146: =VLOOKUP($B146,Competicoes!$A$2:$F$66,2,FALSE) -> Marinha Grande | H146: =LEFT(VLOOKUP($B146,Competicoes!$A$2:$F$66,3,FALSE),2) -> AL | I146: PESO3 | J146: =VLOOKUP($M146,'Atletas2019-20'!$A$3:$G$1358,7,FALSE) -> Inf | K146: =VLOOKUP($M146,'Atletas2019-20'!$A$3:$F$1358,5,FALSE) -> 2007 | L146: =VLOOKUP($M146,'Atletas2019-20'!$A$3:$F$1358,3,FALSE) -> M | M146: 159169 | N146: =VLOOKUP($M146,'Atletas2019-20'!$A$3:$F$1358,2,FALSE) -> João Salgueiro | O146: =VLOOKUP($M146,'Atletas2019-20'!$A$3:$F$1358,6,FALSE) -> CAMG | P146: -5.16 | Q146: MPESO3159169 | R146: =IF(COUNTIF($Q$6:Q146,Q146)=1,"SB","") -> SB | S146: 5.16 | U146: 2
A147: 142 | B147: 2024002 | D147: =IF(C147=2,VLOOKUP($B147,Competicoes!$A$2:$F$66,4,FALSE)+1,VLOOKUP($B147,Competicoes!$A$2:$F$66,4,FALSE)) -> 2019-11-23 | E147: =VLOOKUP($B147,Competicoes!$A$2:$F$66,6,FALSE) -> 2019-20 | F147: =VLOOKUP($B147,Competicoes!$A$2:$F$66,5,FALSE) -> Torneio de Preparação de Pista | G147: =VLOOKUP($B147,Competicoes!$A$2:$F$66,2,FALSE) -> Marinha Grande | H147: =LEFT(VLOOKUP($B147,Competicoes!$A$2:$F$66,3,FALSE),2) -> AL | I147: PESO3 | J147: =VLOOKUP($M147,'Atletas2019-20'!$A$3:$G$1358,7,FALSE) -> Inf | K147: =VLOOKUP($M147,'Atletas2019-20'!$A$3:$F$1358,5,FALSE) -> 2008 | L147: =VLOOKUP($M147,'Atletas2019-20'!$A$3:$F$1358,3,FALSE) -> M | M147: 149976 | N147: =VLOOKUP($M147,'Atletas2019-20'!$A$3:$F$1358,2,FALSE) -> Rodrigo Martins | O147: =VLOOKUP($M147,'Atletas2019-20'!$A$3:$F$1358,6,FALSE) -> ACDRA | P147: -4.96 | Q147: MPESO3149976 | R147: =IF(COUNTIF($Q$6:Q147,Q147)=1,"SB","") -> SB | S147: 4.96 | U147: 2
A148: 143 | B148: 2024002 | D148: =IF(C148=2,VLOOKUP($B148,Competicoes!$A$2:$F$66,4,FALSE)+1,VLOOKUP($B148,Competicoes!$A$2:$F$66,4,FALSE)) -> 2019-11-23 | E148: =VLOOKUP($B148,Competicoes!$A$2:$F$66,6,FALSE) -> 2019-20 | F148: =VLOOKUP($B148,Competicoes!$A$2:$F$66,5,FALSE) -> Torneio de Preparação de Pista | G148: =VLOOKUP($B148,Competicoes!$A$2:$F$66,2,FALSE) -> Marinha Grande | H148: =LEFT(VLOOKUP($B148,Competicoes!$A$2:$F$66,3,FALSE),2) -> AL | I148: PESO3 | J148: =VLOOKUP($M148,'Atletas2019-20'!$A$3:$G$1358,7,FALSE) -> Inf | K148: =VLOOKUP($M148,'Atletas2019-20'!$A$3:$F$1358,5,FALSE) -> 2008 | L148: =VLOOKUP($M148,'Atletas2019-20'!$A$3:$F$1358,3,FALSE) -> M | M148: 146615 | N148: =VLOOKUP($M148,'Atletas2019-20'!$A$3:$F$1358,2,FALSE) -> Rodrigo Salgado | O148: =VLOOKUP($M148,'Atletas2019-20'!$A$3:$F$1358,6,FALSE) -> NDAP | P148: -4.15 | Q148: MPESO3146615 | R148: =IF(COUNTIF($Q$6:Q148,Q148)=1,"SB","") -> SB | S148: 4.15 | U148: 2
A149: 144 | B149: 2024002 | D149: =IF(C149=2,VLOOKUP($B149,Competicoes!$A$2:$F$66,4,FALSE)+1,VLOOKUP($B149,Competicoes!$A$2:$F$66,4,FALSE)) -> 2019-11-23 | E149: =VLOOKUP($B149,Competicoes!$A$2:$F$66,6,FALSE) -> 2019-20 | F149: =VLOOKUP($B149,Competicoes!$A$2:$F$66,5,FALSE) -> Torneio de Preparação de Pista | G149: =VLOOKUP($B149,Competicoes!$A$2:$F$66,2,FALSE) -> Marinha Grande | H149: =LEFT(VLOOKUP($B149,Competicoes!$A$2:$F$66,3,FALSE),2) -> AL | I149: PESO3 | J149: =VLOOKUP($M149,'Atletas2019-20'!$A$3:$G$1358,7,FALSE) -> Inf | K149: =VLOOKUP($M149,'Atletas2019-20'!$A$3:$F$1358,5,FALSE) -> 2007 | L149: =VLOOKUP($M149,'Atletas2019-20'!$A$3:$F$1358,3,FALSE) -> M | M149: 131383 | N149: =VLOOKUP($M149,'Atletas2019-20'!$A$3:$F$1358,2,FALSE) -> Gabriel Cunha | O149: =VLOOKUP($M149,'Atletas2019-20'!$A$3:$F$1358,6,FALSE) -> GDP-L | P149: -10.72 | Q149: MPESO3131383 | R149: =IF(COUNTIF($Q$6:Q149,Q149)=1,"SB","") -> SB | S149: 10.72 | U149: 2
A150: 145 | B150: 2024002 | D150: =IF(C150=2,VLOOKUP($B150,Competicoes!$A$2:$F$66,4,FALSE)+1,VLOOKUP($B150,Competicoes!$A$2:$F$66,4,FALSE)) -> 2019-11-23 | E150: =VLOOKUP($B150,Competicoes!$A$2:$F$66,6,FALSE) -> 2019-20 | F150: =VLOOKUP($B150,Competicoes!$A$2:$F$66,5,FALSE) -> Torneio de Preparação de Pista | G150: =VLOOKUP($B150,Competicoes!$A$2:$F$66,2,FALSE) -> Marinha Grande | H150: =LEFT(VLOOKUP($B150,Competicoes!$A$2:$F$66,3,FALSE),2) -> AL | I150: PESO3 | J150: =VLOOKUP($M150,'Atletas2019-20'!$A$3:$G$1358,7,FALSE) -> Inf | K150: =VLOOKUP($M150,'Atletas2019-20'!$A$3:$F$1358,5,FALSE) -> 2007 | L150: =VLOOKUP($M150,'Atletas2019-20'!$A$3:$F$1358,3,FALSE) -> M | M150: 156489 | N150: =VLOOKUP($M150,'Atletas2019-20'!$A$3:$F$1358,2,FALSE) -> Ricardo Santos | O150: =VLOOKUP($M150,'Atletas2019-20'!$A$3:$F$1358,6,FALSE) -> JV | P150: -6.55 | Q150: MPESO3156489 | R150: =IF(COUNTIF($Q$6:Q150,Q150)=1,"SB","") -> SB | S150: 6.55 | U150: 2
A151: 146 | B151: 2024002 | D151: =IF(C151=2,VLOOKUP($B151,Competicoes!$A$2:$F$66,4,FALSE)+1,VLOOKUP($B151,Competicoes!$A$2:$F$66,4,FALSE)) -> 2019-11-23 | E151: =VLOOKUP($B151,Competicoes!$A$2:$F$66,6,FALSE) -> 2019-20 | F151: =VLOOKUP($B151,Competicoes!$A$2:$F$66,5,FALSE) -> Torneio de Preparação de Pista | G151: =VLOOKUP($B151,Competicoes!$A$2:$F$66,2,FALSE) -> Marinha Grande | H151: =LEFT(VLOOKUP($B151,Competicoes!$A$2:$F$66,3,FALSE),2) -> AL | I151: PESO3 | J151: =VLOOKUP($M151,'Atletas2019-20'!$A$3:$G$1358,7,FALSE) -> Inf | K151: =VLOOKUP($M151,'Atletas2019-20'!$A$3:$F$1358,5,FALSE) -> 2008 | L151: =VLOOKUP($M151,'Atletas2019-20'!$A$3:$F$1358,3,FALSE) -> M | M151: 154148 | N151: =VLOOKUP($M151,'Atletas2019-20'!$A$3:$F$1358,2,FALSE) -> Leandro Duarte | O151: =VLOOKUP($M151,'Atletas2019-20'!$A$3:$F$1358,6,FALSE) -> JV | P151: -4.98 | Q151: MPESO3154148 | R151: =IF(COUNTIF($Q$6:Q151,Q151)=1,"SB","") -> SB | S151: 4.98 | U151: 2
A152: 147 | B152: 2024002 | D152: =IF(C152=2,VLOOKUP($B152,Competicoes!$A$2:$F$66,4,FALSE)+1,VLOOKUP($B152,Competicoes!$A$2:$F$66,4,FALSE)) -> 2019-11-23 | E152: =VLOOKUP($B152,Competicoes!$A$2:$F$66,6,FALSE) -> 2019-20 | F152: =VLOOKUP($B152,Competicoes!$A$2:$F$66,5,FALSE) -> Torneio de Preparação de Pista | G152: =VLOOKUP($B152,Competicoes!$A$2:$F$66,2,FALSE) -> Marinha Grande | H152: =LEFT(VLOOKUP($B152,Competicoes!$A$2:$F$66,3,FALSE),2) -> AL | I152: PESO3 | J152: =VLOOKUP($M152,'Atletas2019-20'!$A$3:$G$1358,7,FALSE) -> Inf | K152: =VLOOKUP($M152,'Atletas2019-20'!$A$3:$F$1358,5,FALSE) -> 2007 | L152: =VLOOKUP($M152,'Atletas2019-20'!$A$3:$F$1358,3,FALSE) -> M | M152: 146293 | N152: =VLOOKUP($M152,'Atletas2019-20'!$A$3:$F$1358,2,FALSE) -> Rodrigo Esteves | O152: =VLOOKUP($M152,'Atletas2019-20'!$A$3:$F$1358,6,FALSE) -> GDP-L | P152: -7.99 | Q152: MPESO3146293 | R152: =IF(COUNTIF($Q$6:Q152,Q152)=1,"SB","") -> SB | S152: 7.99 | U152: 2
A153: 148 | B153: 2024002 | D153: =IF(C153=2,VLOOKUP($B153,Competicoes!$A$2:$F$66,4,FALSE)+1,VLOOKUP($B153,Competicoes!$A$2:$F$66,4,FALSE)) -> 2019-11-23 | E153: =VLOOKUP($B153,Competicoes!$A$2:$F$66,6,FALSE) -> 2019-20 | F153: =VLOOKUP($B153,Competicoes!$A$2:$F$66,5,FALSE) -> Torneio de Preparação de Pista | G153: =VLOOKUP($B153,Competicoes!$A$2:$F$66,2,FALSE) -> Marinha Grande | H153: =LEFT(VLOOKUP($B153,Competicoes!$A$2:$F$66,3,FALSE),2) -> AL | I153: PESO3 | J153: =VLOOKUP($M153,'Atletas2019-20'!$A$3:$G$1358,7,FALSE) -> Inf | K153: =VLOOKUP($M153,'Atletas2019-20'!$A$3:$F$1358,5,FALSE) -> 2007 | L153: =VLOOKUP($M153,'Atletas2019-20'!$A$3:$F$1358,3,FALSE) -> M | M153: 159975 | N153: =VLOOKUP($M153,'Atletas2019-20'!$A$3:$F$1358,2,FALSE) -> André Figueiredo | O153: =VLOOKUP($M153,'Atletas2019-20'!$A$3:$F$1358,6,FALSE) -> CAMG | P153: -4.82 | Q153: MPESO3159975 | R153: =IF(COUNTIF($Q$6:Q153,Q153)=1,"SB","") -> SB | S153: 4.82 | U153: 2
A154: 149 | B154: 2024002 | D154: =IF(C154=2,VLOOKUP($B154,Competicoes!$A$2:$F$66,4,FALSE)+1,VLOOKUP($B154,Competicoes!$A$2:$F$66,4,FALSE)) -> 2019-11-23 | E154: =VLOOKUP($B154,Competicoes!$A$2:$F$66,6,FALSE) -> 2019-20 | F154: =VLOOKUP($B154,Competicoes!$A$2:$F$66,5,FALSE) -> Torneio de Preparação de Pista | G154: =VLOOKUP($B154,Competicoes!$A$2:$F$66,2,FALSE) -> Marinha Grande | H154: =LEFT(VLOOKUP($B154,Competicoes!$A$2:$F$66,3,FALSE),2) -> AL | I154: PESO3 | J154: =VLOOKUP($M154,'Atletas2019-20'!$A$3:$G$1358,7,FALSE) -> Inf | K154: =VLOOKUP($M154,'Atletas2019-20'!$A$3:$F$1358,5,FALSE) -> 2007 | L154: =VLOOKUP($M154,'Atletas2019-20'!$A$3:$F$1358,3,FALSE) -> M | M154: 159036 | N154: =VLOOKUP($M154,'Atletas2019-20'!$A$3:$F$1358,2,FALSE) -> Pedro Freire | O154: =VLOOKUP($M154,'Atletas2019-20'!$A$3:$F$1358,6,FALSE) -> CAMG | P154: -3.65 | Q154: MPESO3159036 | R154: =IF(COUNTIF($Q$6:Q154,Q154)=1,"SB","") -> SB | S154: 3.65 | U154: 2
A155: 150 | B155: 2024005 | D155: =IF(C155=2,VLOOKUP($B155,Competicoes!$A$2:$F$66,4,FALSE)+1,VLOOKUP($B155,Competicoes!$A$2:$F$66,4,FALSE)) -> 2019-12-14 | E155: =VLOOKUP($B155,Competicoes!$A$2:$F$66,6,FALSE) -> 2019-20 | F155: =VLOOKUP($B155,Competicoes!$A$2:$F$66,5,FALSE) -> Campeonato Distrital Provas Combinadas - PC + Provas Extras | G155: =VLOOKUP($B155,Competicoes!$A$2:$F$66,2,FALSE) -> Pombal | H155: =LEFT(VLOOKUP($B155,Competicoes!$A$2:$F$66,3,FALSE),2) -> PC | I155: 60 | J155: =VLOOKUP($M155,'Atletas2019-20'!$A$3:$G$1358,7,FALSE) -> S23 | K155: =VLOOKUP($M155,'Atletas2019-20'!$A$3:$F$1358,5,FALSE) -> 1998 | L155: =VLOOKUP($M155,'Atletas2019-20'!$A$3:$F$1358,3,FALSE) -> M | M155: 149406 | N155: =VLOOKUP($M155,'Atletas2019-20'!$A$3:$F$1358,2,FALSE) -> Adelino E. Santo | O155: =VLOOKUP($M155,'Atletas2019-20'!$A$3:$F$1358,6,FALSE) -> JV | P155: 7.55 | Q155: M60149406 | R155: =IF(COUNTIF($Q$6:Q155,Q155)=1,"SB","") -> SB | S155: 7.55 | U155: 2
A156: 151 | B156: 2024005 | D156: =IF(C156=2,VLOOKUP($B156,Competicoes!$A$2:$F$66,4,FALSE)+1,VLOOKUP($B156,Competicoes!$A$2:$F$66,4,FALSE)) -> 2019-12-14 | E156: =VLOOKUP($B156,Competicoes!$A$2:$F$66,6,FALSE) -> 2019-20 | F156: =VLOOKUP($B156,Competicoes!$A$2:$F$66,5,FALSE) -> Campeonato Distrital Provas Combinadas - PC + Provas Extras | G156: =VLOOKUP($B156,Competicoes!$A$2:$F$66,2,FALSE) -> Pombal | H156: =LEFT(VLOOKUP($B156,Competicoes!$A$2:$F$66,3,FALSE),2) -> PC | I156: COMPRIM | J156: =VLOOKUP($M156,'Atletas2019-20'!$A$3:$G$1358,7,FALSE) -> Juv | K156: =VLOOKUP($M156,'Atletas2019-20'!$A$3:$F$1358,5,FALSE) -> 2004 | L156: =VLOOKUP($M156,'Atletas2019-20'!$A$3:$F$1358,3,FALSE) -> M | M156: 124504 | N156: =VLOOKUP($M156,'Atletas2019-20'!$A$3:$F$1358,2,FALSE) -> Eduardo Oliveira | O156: =VLOOKUP($M156,'Atletas2019-20'!$A$3:$F$1358,6,FALSE) -> JV | P156: -6.36 | Q156: MCOMPRIM124504 | R156: =IF(COUNTIF($Q$6:Q156,Q156)=1,"SB","") -> SB | S156: 6.36 | U156: 2
A157: 152 | B157: 2024005 | D157: =IF(C157=2,VLOOKUP($B157,Competicoes!$A$2:$F$66,4,FALSE)+1,VLOOKUP($B157,Competicoes!$A$2:$F$66,4,FALSE)) -> 2019-12-14 | E157: =VLOOKUP($B157,Competicoes!$A$2:$F$66,6,FALSE) -> 2019-20 | F157: =VLOOKUP($B157,Competicoes!$A$2:$F$66,5,FALSE) -> Campeonato Distrital Provas Combinadas - PC + Provas Extras | G157: =VLOOKUP($B157,Competicoes!$A$2:$F$66,2,FALSE) -> Pombal | H157: =LEFT(VLOOKUP($B157,Competicoes!$A$2:$F$66,3,FALSE),2) -> PC | I157: COMPRIM | J157: =VLOOKUP($M157,'Atletas2019-20'!$A$3:$G$1358,7,FALSE) -> Juv | K157: =VLOOKUP($M157,'Atletas2019-20'!$A$3:$F$1358,5,FALSE) -> 2003 | L157: =VLOOKUP($M157,'Atletas2019-20'!$A$3:$F$1358,3,FALSE) -> M | M157: 138994 | N157: =VLOOKUP($M157,'Atletas2019-20'!$A$3:$F$1358,2,FALSE) -> André Petriv | O157: =VLOOKUP($M157,'Atletas2019-20'!$A$3:$F$1358,6,FALSE) -> JV | P157: -5.86 | Q157: MCOMPRIM138994 | R157: =IF(COUNTIF($Q$6:Q157,Q157)=1,"SB","") -> SB | S157: 5.86 | U157: 2
A158: 153 | B158: 2024005 | D158: =IF(C158=2,VLOOKUP($B158,Competicoes!$A$2:$F$66,4,FALSE)+1,VLOOKUP($B158,Competicoes!$A$2:$F$66,4,FALSE)) -> 2019-12-14 | E158: =VLOOKUP($B158,Competicoes!$A$2:$F$66,6,FALSE) -> 2019-20 | F158: =VLOOKUP($B158,Competicoes!$A$2:$F$66,5,FALSE) -> Campeonato Distrital Provas Combinadas - PC + Provas Extras | G158: =VLOOKUP($B158,Competicoes!$A$2:$F$66,2,FALSE) -> Pombal | H158: =LEFT(VLOOKUP($B158,Competicoes!$A$2:$F$66,3,FALSE),2) -> PC | I158: COMPRIM | J158: =VLOOKUP($M158,'Atletas2019-20'!$A$3:$G$1358,7,FALSE) -> Juv | K158: =VLOOKUP($M158,'Atletas2019-20'!$A$3:$F$1358,5,FALSE) -> 2003 | L158: =VLOOKUP($M158,'Atletas2019-20'!$A$3:$F$1358,3,FALSE) -> M | M158: 124609 | N158: =VLOOKUP($M158,'Atletas2019-20'!$A$3:$F$1358,2,FALSE) -> Francisco Silva | O158: =VLOOKUP($M158,'Atletas2019-20'!$A$3:$F$1358,6,FALSE) -> JV | P158: -5.85 | Q158: MCOMPRIM124609 | R158: =IF(COUNTIF($Q$6:Q158,Q158)=1,"SB","") -> SB | S158: 5.85 | U158: 2
A159: 154 | B159: 2024005 | D159: =IF(C159=2,VLOOKUP($B159,Competicoes!$A$2:$F$66,4,FALSE)+1,VLOOKUP($B159,Competicoes!$A$2:$F$66,4,FALSE)) -> 2019-12-14 | E159: =VLOOKUP($B159,Competicoes!$A$2:$F$66,6,FALSE) -> 2019-20 | F159: =VLOOKUP($B159,Competicoes!$A$2:$F$66,5,FALSE) -> Campeonato Distrital Provas Combinadas - PC + Provas Extras | G159: =VLOOKUP($B159,Competicoes!$A$2:$F$66,2,FALSE) -> Pombal | H159: =LEFT(VLOOKUP($B159,Competicoes!$A$2:$F$66,3,FALSE),2) -> PC | I159: COMPRIM | J159: =VLOOKUP($M159,'Atletas2019-20'!$A$3:$G$1358,7,FALSE) -> Juv | K159: =VLOOKUP($M159,'Atletas2019-20'!$A$3:$F$1358,5,FALSE) -> 2003 | L159: =VLOOKUP($M159,'Atletas2019-20'!$A$3:$F$1358,3,FALSE) -> M | M159: 126831 | N159: =VLOOKUP($M159,'Atletas2019-20'!$A$3:$F$1358,2,FALSE) -> Henrique Alípio | O159: =VLOOKUP($M159,'Atletas2019-20'!$A$3:$F$1358,6,FALSE) -> JV | P159: -5.75 | Q159: MCOMPRIM126831 | R159: =IF(COUNTIF($Q$6:Q159,Q159)=1,"SB","") -> SB | S159: 5.75 | U159: 2
A160: 155 | B160: 2024005 | D160: =IF(C160=2,VLOOKUP($B160,Competicoes!$A$2:$F$66,4,FALSE)+1,VLOOKUP($B160,Competicoes!$A$2:$F$66,4,FALSE)) -> 2019-12-14 | E160: =VLOOKUP($B160,Competicoes!$A$2:$F$66,6,FALSE) -> 2019-20 | F160: =VLOOKUP($B160,Competicoes!$A$2:$F$66,5,FALSE) -> Campeonato Distrital Provas Combinadas - PC + Provas Extras | G160: =VLOOKUP($B160,Competicoes!$A$2:$F$66,2,FALSE) -> Pombal | H160: =LEFT(VLOOKUP($B160,Competicoes!$A$2:$F$66,3,FALSE),2) -> PC | I160: COMPRIM | J160: =VLOOKUP($M160,'Atletas2019-20'!$A$3:$G$1358,7,FALSE) -> Juv | K160: =VLOOKUP($M160,'Atletas2019-20'!$A$3:$F$1358,5,FALSE) -> 2004 | L160: =VLOOKUP($M160,'Atletas2019-20'!$A$3:$F$1358,3,FALSE) -> M | M160: 138579 | N160: =VLOOKUP($M160,'Atletas2019-20'!$A$3:$F$1358,2,FALSE) -> Yoelvis Companioni | O160: =VLOOKUP($M160,'Atletas2019-20'!$A$3:$F$1358,6,FALSE) -> JV | P160: -5.25 | Q160: MCOMPRIM138579 | R160: =IF(COUNTIF($Q$6:Q160,Q160)=1,"SB","") -> SB | S160: 5.25 | U160: 2
A161: 156 | B161: 2024005 | D161: =IF(C161=2,VLOOKUP($B161,Competicoes!$A$2:$F$66,4,FALSE)+1,VLOOKUP($B161,Competicoes!$A$2:$F$66,4,FALSE)) -> 2019-12-14 | E161: =VLOOKUP($B161,Competicoes!$A$2:$F$66,6,FALSE) -> 2019-20 | F161: =VLOOKUP($B161,Competicoes!$A$2:$F$66,5,FALSE) -> Campeonato Distrital Provas Combinadas - PC + Provas Extras | G161: =VLOOKUP($B161,Competicoes!$A$2:$F$66,2,FALSE) -> Pombal | H161: =LEFT(VLOOKUP($B161,Competicoes!$A$2:$F$66,3,FALSE),2) -> PC | I161: Hep-Juv | J161: =VLOOKUP($M161,'Atletas2019-20'!$A$3:$G$1358,7,FALSE) -> Juv | K161: =VLOOKUP($M161,'Atletas2019-20'!$A$3:$F$1358,5,FALSE) -> 2003 | L161: =VLOOKUP($M161,'Atletas2019-20'!$A$3:$F$1358,3,FALSE) -> M | M161: 124609 | N161: =VLOOKUP($M161,'Atletas2019-20'!$A$3:$F$1358,2,FALSE) -> Francisco Silva | O161: =VLOOKUP($M161,'Atletas2019-20'!$A$3:$F$1358,6,FALSE) -> JV | P161: -3900 | Q161: MHep-Juv124609 | R161: =IF(COUNTIF($Q$6:Q161,Q161)=1,"SB","") -> SB | S161: 3900 | U161: 0
A162: 157 | B162: 2024005 | D162: =IF(C162=2,VLOOKUP($B162,Competicoes!$A$2:$F$66,4,FALSE)+1,VLOOKUP($B162,Competicoes!$A$2:$F$66,4,FALSE)) -> 2019-12-14 | E162: =VLOOKUP($B162,Competicoes!$A$2:$F$66,6,FALSE) -> 2019-20 | F162: =VLOOKUP($B162,Competicoes!$A$2:$F$66,5,FALSE) -> Campeonato Distrital Provas Combinadas - PC + Provas Extras | G162: =VLOOKUP($B162,Competicoes!$A$2:$F$66,2,FALSE) -> Pombal | H162: =LEFT(VLOOKUP($B162,Competicoes!$A$2:$F$66,3,FALSE),2) -> PC | I162: Hep-Juv | J162: =VLOOKUP($M162,'Atletas2019-20'!$A$3:$G$1358,7,FALSE) -> Juv | K162: =VLOOKUP($M162,'Atletas2019-20'!$A$3:$F$1358,5,FALSE) -> 2004 | L162: =VLOOKUP($M162,'Atletas2019-20'!$A$3:$F$1358,3,FALSE) -> M | M162: 124504 | N162: =VLOOKUP($M162,'Atletas2019-20'!$A$3:$F$1358,2,FALSE) -> Eduardo Oliveira | O162: =VLOOKUP($M162,'Atletas2019-20'!$A$3:$F$1358,6,FALSE) -> JV | P162: -3843 | Q162: MHep-Juv124504 | R162: =IF(COUNTIF($Q$6:Q162,Q162)=1,"SB","") -> SB | S162: 3843 | U162: 0
A163: 158 | B163: 2024005 | D163: =IF(C163=2,VLOOKUP($B163,Competicoes!$A$2:$F$66,4,FALSE)+1,VLOOKUP($B163,Competicoes!$A$2:$F$66,4,FALSE)) -> 2019-12-14 | E163: =VLOOKUP($B163,Competicoes!$A$2:$F$66,6,FALSE) -> 2019-20 | F163: =VLOOKUP($B163,Competicoes!$A$2:$F$66,5,FALSE) -> Campeonato Distrital Provas Combinadas - PC + Provas Extras | G163: =VLOOKUP($B163,Competicoes!$A$2:$F$66,2,FALSE) -> Pombal | H163: =LEFT(VLOOKUP($B163,Competicoes!$A$2:$F$66,3,FALSE),2) -> PC | I163: Hep-Juv | J163: =VLOOKUP($M163,'Atletas2019-20'!$A$3:$G$1358,7,FALSE) -> Juv | K163: =VLOOKUP($M163,'Atletas2019-20'!$A$3:$F$1358,5,FALSE) -> 2003 | L163: =VLOOKUP($M163,'Atletas2019-20'!$A$3:$F$1358,3,FALSE) -> M | M163: 138994 | N163: =VLOOKUP($M163,'Atletas2019-20'!$A$3:$F$1358,2,FALSE) -> André Petriv | O163: =VLOOKUP($M163,'Atletas2019-20'!$A$3:$F$1358,6,FALSE) -> JV | P163: -3704 | Q163: MHep-Juv138994 | R163: =IF(COUNTIF($Q$6:Q163,Q163)=1,"SB","") -> SB | S163: 3704 | U163: 0
A164: 159 | B164: 2024005 | D164: =IF(C164=2,VLOOKUP($B164,Competicoes!$A$2:$F$66,4,FALSE)+1,VLOOKUP($B164,Competicoes!$A$2:$F$66,4,FALSE)) -> 2019-12-14 | E164: =VLOOKUP($B164,Competicoes!$A$2:$F$66,6,FALSE) -> 2019-20 | F164: =VLOOKUP($B164,Competicoes!$A$2:$F$66,5,FALSE) -> Campeonato Distrital Provas Combinadas - PC + Provas Extras | G164: =VLOOKUP($B164,Competicoes!$A$2:$F$66,2,FALSE) -> Pombal | H164: =LEFT(VLOOKUP($B164,Competicoes!$A$2:$F$66,3,FALSE),2) -> PC | I164: Hep-Juv | J164: =VLOOKUP($M164,'Atletas2019-20'!$A$3:$G$1358,7,FALSE) -> Juv | K164: =VLOOKUP($M164,'Atletas2019-20'!$A$3:$F$1358,5,FALSE) -> 2004 | L164: =VLOOKUP($M164,'Atletas2019-20'!$A$3:$F$1358,3,FALSE) -> M | M164: 138579 | N164: =VLOOKUP($M164,'Atletas2019-20'!$A$3:$F$1358,2,FALSE) -> Yoelvis Companioni | O164: =VLOOKUP($M164,'Atletas2019-20'!$A$3:$F$1358,6,FALSE) -> JV | P164: -3562 | Q164: MHep-Juv138579 | R164: =IF(COUNTIF($Q$6:Q164,Q164)=1,"SB","") -> SB | S164: 3562 | U164: 0
A165: 160 | B165: 2024005 | D165: =IF(C165=2,VLOOKUP($B165,Competicoes!$A$2:$F$66,4,FALSE)+1,VLOOKUP($B165,Competicoes!$A$2:$F$66,4,FALSE)) -> 2019-12-14 | E165: =VLOOKUP($B165,Competicoes!$A$2:$F$66,6,FALSE) -> 2019-20 | F165: =VLOOKUP($B165,Competicoes!$A$2:$F$66,5,FALSE) -> Campeonato Distrital Provas Combinadas - PC + Provas Extras | G165: =VLOOKUP($B165,Competicoes!$A$2:$F$66,2,FALSE) -> Pombal | H165: =LEFT(VLOOKUP($B165,Competicoes!$A$2:$F$66,3,FALSE),2) -> PC | I165: COMPRIM | J165: =VLOOKUP($M165,'Atletas2019-20'!$A$3:$G$1358,7,FALSE) -> Juv | K165: =VLOOKUP($M165,'Atletas2019-20'!$A$3:$F$1358,5,FALSE) -> 2003 | L165: =VLOOKUP($M165,'Atletas2019-20'!$A$3:$F$1358,3,FALSE) -> M | M165: 141513 | N165: =VLOOKUP($M165,'Atletas2019-20'!$A$3:$F$1358,2,FALSE) -> Rodrigo Marto | O165: =VLOOKUP($M165,'Atletas2019-20'!$A$3:$F$1358,6,FALSE) -> GDP-L | P165: -4.67 | Q165: MCOMPRIM141513 | R165: =IF(COUNTIF($Q$6:Q165,Q165)=1,"SB","") -> SB | S165: 4.67 | U165: 2
A166: 161 | B166: 2024005 | D166: =IF(C166=2,VLOOKUP($B166,Competicoes!$A$2:$F$66,4,FALSE)+1,VLOOKUP($B166,Competicoes!$A$2:$F$66,4,FALSE)) -> 2019-12-14 | E166: =VLOOKUP($B166,Competicoes!$A$2:$F$66,6,FALSE) -> 2019-20 | F166: =VLOOKUP($B166,Competicoes!$A$2:$F$66,5,FALSE) -> Campeonato Distrital Provas Combinadas - PC + Provas Extras | G166: =VLOOKUP($B166,Competicoes!$A$2:$F$66,2,FALSE) -> Pombal | H166: =LEFT(VLOOKUP($B166,Competicoes!$A$2:$F$66,3,FALSE),2) -> PC | I166: QUADR | J166: =VLOOKUP($M166,'Atletas2019-20'!$A$3:$G$1358,7,FALSE) -> Inf | K166: =VLOOKUP($M166,'Atletas2019-20'!$A$3:$F$1358,5,FALSE) -> 2008 | L166: =VLOOKUP($M166,'Atletas2019-20'!$A$3:$F$1358,3,FALSE) -> F | M166: 146884 | N166: =VLOOKUP($M166,'Atletas2019-20'!$A$3:$F$1358,2,FALSE) -> Leonor Henriques | O166: =VLOOKUP($M166,'Atletas2019-20'!$A$3:$F$1358,6,FALSE) -> JV | P166: -10.06 | Q166: FQUADR146884 | R166: =IF(COUNTIF($Q$6:Q166,Q166)=1,"SB","") -> SB | S166: 10.06 | U166: 2
A167: 162 | B167: 2024005 | D167: =IF(C167=2,VLOOKUP($B167,Competicoes!$A$2:$F$66,4,FALSE)+1,VLOOKUP($B167,Competicoes!$A$2:$F$66,4,FALSE)) -> 2019-12-14 | E167: =VLOOKUP($B167,Competicoes!$A$2:$F$66,6,FALSE) -> 2019-20 | F167: =VLOOKUP($B167,Competicoes!$A$2:$F$66,5,FALSE) -> Campeonato Distrital Provas Combinadas - PC + Provas Extras | G167: =VLOOKUP($B167,Competicoes!$A$2:$F$66,2,FALSE) -> Pombal | H167: =LEFT(VLOOKUP($B167,Competicoes!$A$2:$F$66,3,FALSE),2) -> PC | I167: QUADR | J167: =VLOOKUP($M167,'Atletas2019-20'!$A$3:$G$1358,7,FALSE) -> Inf | K167: =VLOOKUP($M167,'Atletas2019-20'!$A$3:$F$1358,5,FALSE) -> 2008 | L167: =VLOOKUP($M167,'Atletas2019-20'!$A$3:$F$1358,3,FALSE) -> F | M167: 134251 | N167: =VLOOKUP($M167,'Atletas2019-20'!$A$3:$F$1358,2,FALSE) -> Constança Abreu | O167: =VLOOKUP($M167,'Atletas2019-20'!$A$3:$F$1358,6,FALSE) -> AAADP | P167: -10.02 | Q167: FQUADR134251 | R167: =IF(COUNTIF($Q$6:Q167,Q167)=1,"SB","") -> SB | S167: 10.02 | U167: 2
A168: 163 | B168: 2024005 | D168: =IF(C168=2,VLOOKUP($B168,Competicoes!$A$2:$F$66,4,FALSE)+1,VLOOKUP($B168,Competicoes!$A$2:$F$66,4,FALSE)) -> 2019-12-14 | E168: =VLOOKUP($B168,Competicoes!$A$2:$F$66,6,FALSE) -> 2019-20 | F168: =VLOOKUP($B168,Competicoes!$A$2:$F$66,5,FALSE) -> Campeonato Distrital Provas Combinadas - PC + Provas Extras | G168: =VLOOKUP($B168,Competicoes!$A$2:$F$66,2,FALSE) -> Pombal | H168: =LEFT(VLOOKUP($B168,Competicoes!$A$2:$F$66,3,FALSE),2) -> PC | I168: QUADR | J168: =VLOOKUP($M168,'Atletas2019-20'!$A$3:$G$1358,7,FALSE) -> Inf | K168: =VLOOKUP($M168,'Atletas2019-20'!$A$3:$F$1358,5,FALSE) -> 2008 | L168: =VLOOKUP($M168,'Atletas2019-20'!$A$3:$F$1358,3,FALSE) -> F | M168: 153645 | N168: =VLOOKUP($M168,'Atletas2019-20'!$A$3:$F$1358,2,FALSE) -> Benedita Matias | O168: =VLOOKUP($M168,'Atletas2019-20'!$A$3:$F$1358,6,FALSE) -> JV | P168: -10.01 | Q168: FQUADR153645 | R168: =IF(COUNTIF($Q$6:Q168,Q168)=1,"SB","") -> SB | S168: 10.01 | U168: 2
A169: 164 | B169: 2024005 | D169: =IF(C169=2,VLOOKUP($B169,Competicoes!$A$2:$F$66,4,FALSE)+1,VLOOKUP($B169,Competicoes!$A$2:$F$66,4,FALSE)) -> 2019-12-14 | E169: =VLOOKUP($B169,Competicoes!$A$2:$F$66,6,FALSE) -> 2019-20 | F169: =VLOOKUP($B169,Competicoes!$A$2:$F$66,5,FALSE) -> Campeonato Distrital Provas Combinadas - PC + Provas Extras | G169: =VLOOKUP($B169,Competicoes!$A$2:$F$66,2,FALSE) -> Pombal | H169: =LEFT(VLOOKUP($B169,Competicoes!$A$2:$F$66,3,FALSE),2) -> PC | I169: QUADR | J169: =VLOOKUP($M169,'Atletas2019-20'!$A$3:$G$1358,7,FALSE) -> Inf | K169: =VLOOKUP($M169,'Atletas2019-20'!$A$3:$F$1358,5,FALSE) -> 2007 | L169: =VLOOKUP($M169,'Atletas2019-20'!$A$3:$F$1358,3,FALSE) -> F | M169: 152270 | N169: =VLOOKUP($M169,'Atletas2019-20'!$A$3:$F$1358,2,FALSE) -> Filipa Moita | O169: =VLOOKUP($M169,'Atletas2019-20'!$A$3:$F$1358,6,FALSE) -> JV | P169: -9.72 | Q169: FQUADR152270 | R169: =IF(COUNTIF($Q$6:Q169,Q169)=1,"SB","") -> SB | S169: 9.72 | U169: 2
A170: 165 | B170: 2024005 | D170: =IF(C170=2,VLOOKUP($B170,Competicoes!$A$2:$F$66,4,FALSE)+1,VLOOKUP($B170,Competicoes!$A$2:$F$66,4,FALSE)) -> 2019-12-14 | E170: =VLOOKUP($B170,Competicoes!$A$2:$F$66,6,FALSE) -> 2019-20 | F170: =VLOOKUP($B170,Competicoes!$A$2:$F$66,5,FALSE) -> Campeonato Distrital Provas Combinadas - PC + Provas Extras | G170: =VLOOKUP($B170,Competicoes!$A$2:$F$66,2,FALSE) -> Pombal | H170: =LEFT(VLOOKUP($B170,Competicoes!$A$2:$F$66,3,FALSE),2) -> PC | I170: 150 | J170: =VLOOKUP($M170,'Atletas2019-20'!$A$3:$G$1358,7,FALSE) -> Inf | K170: =VLOOKUP($M170,'Atletas2019-20'!$A$3:$F$1358,5,FALSE) -> 2008 | L170: =VLOOKUP($M170,'Atletas2019-20'!$A$3:$F$1358,3,FALSE) -> F | M170: 152007 | N170: =VLOOKUP($M170,'Atletas2019-20'!$A$3:$F$1358,2,FALSE) -> Marta Feliciano | O170: =VLOOKUP($M170,'Atletas2019-20'!$A$3:$F$1358,6,FALSE) -> JV | P170: 22.4 | Q170: F150152007 | R170: =IF(COUNTIF($Q$6:Q170,Q170)=1,"SB","") -> SB | S170: 22.4 | U170: 2
A171: 166 | B171: 2024005 | D171: =IF(C171=2,VLOOKUP($B171,Competicoes!$A$2:$F$66,4,FALSE)+1,VLOOKUP($B171,Competicoes!$A$2:$F$66,4,FALSE)) -> 2019-12-14 | E171: =VLOOKUP($B171,Competicoes!$A$2:$F$66,6,FALSE) -> 2019-20 | F171: =VLOOKUP($B171,Competicoes!$A$2:$F$66,5,FALSE) -> Campeonato Distrital Provas Combinadas - PC + Provas Extras | G171: =VLOOKUP($B171,Competicoes!$A$2:$F$66,2,FALSE) -> Pombal | H171: =LEFT(VLOOKUP($B171,Competicoes!$A$2:$F$66,3,FALSE),2) -> PC | I171: 150 | J171: =VLOOKUP($M171,'Atletas2019-20'!$A$3:$G$1358,7,FALSE) -> Inf | K171: =VLOOKUP($M171,'Atletas2019-20'!$A$3:$F$1358,5,FALSE) -> 2008 | L171: =VLOOKUP($M171,'Atletas2019-20'!$A$3:$F$1358,3,FALSE) -> F | M171: 154801 | N171: =VLOOKUP($M171,'Atletas2019-20'!$A$3:$F$1358,2,FALSE) -> Daniela Pedro | O171: =VLOOKUP($M171,'Atletas2019-20'!$A$3:$F$1358,6,FALSE) -> JV | P171: 23.85 | Q171: F150154801 | R171: =IF(COUNTIF($Q$6:Q171,Q171)=1,"SB","") -> SB | S171: 23.85 | U171: 2
A172: 167 | B172: 2024002 | D172: =IF(C172=2,VLOOKUP($B172,Competicoes!$A$2:$F$66,4,FALSE)+1,VLOOKUP($B172,Competicoes!$A$2:$F$66,4,FALSE)) -> 2019-11-23 | E172: =VLOOKUP($B172,Competicoes!$A$2:$F$66,6,FALSE) -> 2019-20 | F172: =VLOOKUP($B172,Competicoes!$A$2:$F$66,5,FALSE) -> Torneio de Preparação de Pista | G172: =VLOOKUP($B172,Competicoes!$A$2:$F$66,2,FALSE) -> Marinha Grande | H172: =LEFT(VLOOKUP($B172,Competicoes!$A$2:$F$66,3,FALSE),2) -> AL | I172: PESO3 | J172: =VLOOKUP($M172,'Atletas2019-20'!$A$3:$G$1358,7,FALSE) -> Inf | K172: =VLOOKUP($M172,'Atletas2019-20'!$A$3:$F$1358,5,FALSE) -> 2007 | L172: =VLOOKUP($M172,'Atletas2019-20'!$A$3:$F$1358,3,FALSE) -> M | M172: 157973 | N172: =VLOOKUP($M172,'Atletas2019-20'!$A$3:$F$1358,2,FALSE) -> Duarte Rosado | O172: =VLOOKUP($M172,'Atletas2019-20'!$A$3:$F$1358,6,FALSE) -> CAMG | P172: -6.97 | Q172: MPESO3157973 | R172: =IF(COUNTIF($Q$6:Q172,Q172)=1,"SB","") -> SB | S172: 6.97 | U172: 2
A173: 168 | B173: 2024002 | D173: =IF(C173=2,VLOOKUP($B173,Competicoes!$A$2:$F$66,4,FALSE)+1,VLOOKUP($B173,Competicoes!$A$2:$F$66,4,FALSE)) -> 2019-11-23 | E173: =VLOOKUP($B173,Competicoes!$A$2:$F$66,6,FALSE) -> 2019-20 | F173: =VLOOKUP($B173,Competicoes!$A$2:$F$66,5,FALSE) -> Torneio de Preparação de Pista | G173: =VLOOKUP($B173,Competicoes!$A$2:$F$66,2,FALSE) -> Marinha Grande | H173: =LEFT(VLOOKUP($B173,Competicoes!$A$2:$F$66,3,FALSE),2) -> AL | I173: PESO3 | J173: =VLOOKUP($M173,'Atletas2019-20'!$A$3:$G$1358,7,FALSE) -> Inf | K173: =VLOOKUP($M173,'Atletas2019-20'!$A$3:$F$1358,5,FALSE) -> 2008 | L173: =VLOOKUP($M173,'Atletas2019-20'!$A$3:$F$1358,3,FALSE) -> M | M173: 158060 | N173: =VLOOKUP($M173,'Atletas2019-20'!$A$3:$F$1358,2,FALSE) -> João Fernandes | O173: =VLOOKUP($M173,'Atletas2019-20'!$A$3:$F$1358,6,FALSE) -> JV | P173: -4.75 | Q173: MPESO3158060 | R173: =IF(COUNTIF($Q$6:Q173,Q173)=1,"SB","") -> SB | S173: 4.75 | U173: 2
A174: 169 | B174: 2024002 | D174: =IF(C174=2,VLOOKUP($B174,Competicoes!$A$2:$F$66,4,FALSE)+1,VLOOKUP($B174,Competicoes!$A$2:$F$66,4,FALSE)) -> 2019-11-23 | E174: =VLOOKUP($B174,Competicoes!$A$2:$F$66,6,FALSE) -> 2019-20 | F174: =VLOOKUP($B174,Competicoes!$A$2:$F$66,5,FALSE) -> Torneio de Preparação de Pista | G174: =VLOOKUP($B174,Competicoes!$A$2:$F$66,2,FALSE) -> Marinha Grande | H174: =LEFT(VLOOKUP($B174,Competicoes!$A$2:$F$66,3,FALSE),2) -> AL | I174: PESO3 | J174: =VLOOKUP($M174,'Atletas2019-20'!$A$3:$G$1358,7,FALSE) -> Inf | K174: =VLOOKUP($M174,'Atletas2019-20'!$A$3:$F$1358,5,FALSE) -> 2007 | L174: =VLOOKUP($M174,'Atletas2019-20'!$A$3:$F$1358,3,FALSE) -> M | M174: 150874 | N174: =VLOOKUP($M174,'Atletas2019-20'!$A$3:$F$1358,2,FALSE) -> Denis Hrabar | O174: =VLOOKUP($M174,'Atletas2019-20'!$A$3:$F$1358,6,FALSE) -> JV | P174: -8.7 | Q174: MPESO3150874 | R174: =IF(COUNTIF($Q$6:Q174,Q174)=1,"SB","") -> SB | S174: 8.7 | U174: 2
A175: 170 | B175: 2024002 | D175: =IF(C175=2,VLOOKUP($B175,Competicoes!$A$2:$F$66,4,FALSE)+1,VLOOKUP($B175,Competicoes!$A$2:$F$66,4,FALSE)) -> 2019-11-23 | E175: =VLOOKUP($B175,Competicoes!$A$2:$F$66,6,FALSE) -> 2019-20 | F175: =VLOOKUP($B175,Competicoes!$A$2:$F$66,5,FALSE) -> Torneio de Preparação de Pista | G175: =VLOOKUP($B175,Competicoes!$A$2:$F$66,2,FALSE) -> Marinha Grande | H175: =LEFT(VLOOKUP($B175,Competicoes!$A$2:$F$66,3,FALSE),2) -> AL | I175: PESO3 | J175: =VLOOKUP($M175,'Atletas2019-20'!$A$3:$G$1358,7,FALSE) -> Inf | K175: =VLOOKUP($M175,'Atletas2019-20'!$A$3:$F$1358,5,FALSE) -> 2007 | L175: =VLOOKUP($M175,'Atletas2019-20'!$A$3:$F$1358,3,FALSE) -> M | M175: 152793 | N175: =VLOOKUP($M175,'Atletas2019-20'!$A$3:$F$1358,2,FALSE) -> Rúben Nogueia | O175: =VLOOKUP($M175,'Atletas2019-20'!$A$3:$F$1358,6,FALSE) -> NDAP | P175: -6.37 | Q175: MPESO3152793 | R175: =IF(COUNTIF($Q$6:Q175,Q175)=1,"SB","") -> SB | S175: 6.37 | U175: 2
A176: 171 | B176: 2024002 | D176: =IF(C176=2,VLOOKUP($B176,Competicoes!$A$2:$F$66,4,FALSE)+1,VLOOKUP($B176,Competicoes!$A$2:$F$66,4,FALSE)) -> 2019-11-23 | E176: =VLOOKUP($B176,Competicoes!$A$2:$F$66,6,FALSE) -> 2019-20 | F176: =VLOOKUP($B176,Competicoes!$A$2:$F$66,5,FALSE) -> Torneio de Preparação de Pista | G176: =VLOOKUP($B176,Competicoes!$A$2:$F$66,2,FALSE) -> Marinha Grande | H176: =LEFT(VLOOKUP($B176,Competicoes!$A$2:$F$66,3,FALSE),2) -> AL | I176: PESO3 | J176: =VLOOKUP($M176,'Atletas2019-20'!$A$3:$G$1358,7,FALSE) -> Inf | K176: =VLOOKUP($M176,'Atletas2019-20'!$A$3:$F$1358,5,FALSE) -> 2007 | L176: =VLOOKUP($M176,'Atletas2019-20'!$A$3:$F$1358,3,FALSE) -> M | M176: 157928 | N176: =VLOOKUP($M176,'Atletas2019-20'!$A$3:$F$1358,2,FALSE) -> Guilherme Franco | O176: =VLOOKUP($M176,'Atletas2019-20'!$A$3:$F$1358,6,FALSE) -> CAMG | P176: -4.45 | Q176: MPESO3157928 | R176: =IF(COUNTIF($Q$6:Q176,Q176)=1,"SB","") -> SB | S176: 4.45 | U176: 2
A177: 172 | B177: 2024002 | D177: =IF(C177=2,VLOOKUP($B177,Competicoes!$A$2:$F$66,4,FALSE)+1,VLOOKUP($B177,Competicoes!$A$2:$F$66,4,FALSE)) -> 2019-11-23 | E177: =VLOOKUP($B177,Competicoes!$A$2:$F$66,6,FALSE) -> 2019-20 | F177: =VLOOKUP($B177,Competicoes!$A$2:$F$66,5,FALSE) -> Torneio de Preparação de Pista | G177: =VLOOKUP($B177,Competicoes!$A$2:$F$66,2,FALSE) -> Marinha Grande | H177: =LEFT(VLOOKUP($B177,Competicoes!$A$2:$F$66,3,FALSE),2) -> AL | I177: PESO3 | J177: =VLOOKUP($M177,'Atletas2019-20'!$A$3:$G$1358,7,FALSE) -> Inf | K177: =VLOOKUP($M177,'Atletas2019-20'!$A$3:$F$1358,5,FALSE) -> 2008 | L177: =VLOOKUP($M177,'Atletas2019-20'!$A$3:$F$1358,3,FALSE) -> M | M177: 127833 | N177: =VLOOKUP($M177,'Atletas2019-20'!$A$3:$F$1358,2,FALSE) -> Pedro Almeida | O177: =VLOOKUP($M177,'Atletas2019-20'!$A$3:$F$1358,6,FALSE) -> JV | P177: -4.65 | Q177: MPESO3127833 | R177: =IF(COUNTIF($Q$6:Q177,Q177)=1,"SB","") -> SB | S177: 4.65 | U177: 2
A178: 173 | B178: 2024002 | D178: =IF(C178=2,VLOOKUP($B178,Competicoes!$A$2:$F$66,4,FALSE)+1,VLOOKUP($B178,Competicoes!$A$2:$F$66,4,FALSE)) -> 2019-11-23 | E178: =VLOOKUP($B178,Competicoes!$A$2:$F$66,6,FALSE) -> 2019-20 | F178: =VLOOKUP($B178,Competicoes!$A$2:$F$66,5,FALSE) -> Torneio de Preparação de Pista | G178: =VLOOKUP($B178,Competicoes!$A$2:$F$66,2,FALSE) -> Marinha Grande | H178: =LEFT(VLOOKUP($B178,Competicoes!$A$2:$F$66,3,FALSE),2) -> AL | I178: 60B2076 | J178: =VLOOKUP($M178,'Atletas2019-20'!$A$3:$G$1358,7,FALSE) -> Inf | K178: =VLOOKUP($M178,'Atletas2019-20'!$A$3:$F$1358,5,FALSE) -> 2007 | L178: =VLOOKUP($M178,'Atletas2019-20'!$A$3:$F$1358,3,FALSE) -> M | M178: 158058 | N178: =VLOOKUP($M178,'Atletas2019-20'!$A$3:$F$1358,2,FALSE) -> João Mota | O178: =VLOOKUP($M178,'Atletas2019-20'!$A$3:$F$1358,6,FALSE) -> JV | P178: 12.63 | Q178: M60B2076158058 | R178: =IF(COUNTIF($Q$6:Q178,Q178)=1,"SB","") -> SB | S178: 12.63 | T178: 0.4 | U178: 2
A179: 174 | B179: 2024002 | D179: =IF(C179=2,VLOOKUP($B179,Competicoes!$A$2:$F$66,4,FALSE)+1,VLOOKUP($B179,Competicoes!$A$2:$F$66,4,FALSE)) -> 2019-11-23 | E179: =VLOOKUP($B179,Competicoes!$A$2:$F$66,6,FALSE) -> 2019-20 | F179: =VLOOKUP($B179,Competicoes!$A$2:$F$66,5,FALSE) -> Torneio de Preparação de Pista | G179: =VLOOKUP($B179,Competicoes!$A$2:$F$66,2,FALSE) -> Marinha Grande | H179: =LEFT(VLOOKUP($B179,Competicoes!$A$2:$F$66,3,FALSE),2) -> AL | I179: 60B2076 | J179: =VLOOKUP($M179,'Atletas2019-20'!$A$3:$G$1358,7,FALSE) -> Inf | K179: =VLOOKUP($M179,'Atletas2019-20'!$A$3:$F$1358,5,FALSE) -> 2007 | L179: =VLOOKUP($M179,'Atletas2019-20'!$A$3:$F$1358,3,FALSE) -> M | M179: 159852 | N179: =VLOOKUP($M179,'Atletas2019-20'!$A$3:$F$1358,2,FALSE) -> Dinis Gameiro | O179: =VLOOKUP($M179,'Atletas2019-20'!$A$3:$F$1358,6,FALSE) -> NDAP | P179: 12.83 | Q179: M60B2076159852 | R179: =IF(COUNTIF($Q$6:Q179,Q179)=1,"SB","") -> SB | S179: 12.83 | T179: 0.4 | U179: 2
A180: 175 | B180: 2024002 | D180: =IF(C180=2,VLOOKUP($B180,Competicoes!$A$2:$F$66,4,FALSE)+1,VLOOKUP($B180,Competicoes!$A$2:$F$66,4,FALSE)) -> 2019-11-23 | E180: =VLOOKUP($B180,Competicoes!$A$2:$F$66,6,FALSE) -> 2019-20 | F180: =VLOOKUP($B180,Competicoes!$A$2:$F$66,5,FALSE) -> Torneio de Preparação de Pista | G180: =VLOOKUP($B180,Competicoes!$A$2:$F$66,2,FALSE) -> Marinha Grande | H180: =LEFT(VLOOKUP($B180,Competicoes!$A$2:$F$66,3,FALSE),2) -> AL | I180: 60B2076 | J180: =VLOOKUP($M180,'Atletas2019-20'!$A$3:$G$1358,7,FALSE) -> Inf | K180: =VLOOKUP($M180,'Atletas2019-20'!$A$3:$F$1358,5,FALSE) -> 2008 | L180: =VLOOKUP($M180,'Atletas2019-20'!$A$3:$F$1358,3,FALSE) -> M | M180: 134347 | N180: =VLOOKUP($M180,'Atletas2019-20'!$A$3:$F$1358,2,FALSE) -> Jaime Rolla | O180: =VLOOKUP($M180,'Atletas2019-20'!$A$3:$F$1358,6,FALSE) -> JV | P180: 13.66 | Q180: M60B2076134347 | R180: =IF(COUNTIF($Q$6:Q180,Q180)=1,"SB","") -> SB | S180: 13.66 | T180: 0.4 | U180: 2
A181: 176 | B181: 2024002 | D181: =IF(C181=2,VLOOKUP($B181,Competicoes!$A$2:$F$66,4,FALSE)+1,VLOOKUP($B181,Competicoes!$A$2:$F$66,4,FALSE)) -> 2019-11-23 | E181: =VLOOKUP($B181,Competicoes!$A$2:$F$66,6,FALSE) -> 2019-20 | F181: =VLOOKUP($B181,Competicoes!$A$2:$F$66,5,FALSE) -> Torneio de Preparação de Pista | G181: =VLOOKUP($B181,Competicoes!$A$2:$F$66,2,FALSE) -> Marinha Grande | H181: =LEFT(VLOOKUP($B181,Competicoes!$A$2:$F$66,3,FALSE),2) -> AL | I181: 60B2076 | J181: =VLOOKUP($M181,'Atletas2019-20'!$A$3:$G$1358,7,FALSE) -> Inf | K181: =VLOOKUP($M181,'Atletas2019-20'!$A$3:$F$1358,5,FALSE) -> 2007 | L181: =VLOOKUP($M181,'Atletas2019-20'!$A$3:$F$1358,3,FALSE) -> M | M181: 159347 | N181: =VLOOKUP($M181,'Atletas2019-20'!$A$3:$F$1358,2,FALSE) -> Afonso Rodrigues | O181: =VLOOKUP($M181,'Atletas2019-20'!$A$3:$F$1358,6,FALSE) -> NDAP | P181: 13.79 | Q181: M60B2076159347 | R181: =IF(COUNTIF($Q$6:Q181,Q181)=1,"SB","") -> SB | S181: 13.79 | T181: 0.4 | U181: 2
A182: 177 | B182: 2024002 | D182: =IF(C182=2,VLOOKUP($B182,Competicoes!$A$2:$F$66,4,FALSE)+1,VLOOKUP($B182,Competicoes!$A$2:$F$66,4,FALSE)) -> 2019-11-23 | E182: =VLOOKUP($B182,Competicoes!$A$2:$F$66,6,FALSE) -> 2019-20 | F182: =VLOOKUP($B182,Competicoes!$A$2:$F$66,5,FALSE) -> Torneio de Preparação de Pista | G182: =VLOOKUP($B182,Competicoes!$A$2:$F$66,2,FALSE) -> Marinha Grande | H182: =LEFT(VLOOKUP($B182,Competicoes!$A$2:$F$66,3,FALSE),2) -> AL | I182: 60B2076 | J182: =VLOOKUP($M182,'Atletas2019-20'!$A$3:$G$1358,7,FALSE) -> Inf | K182: =VLOOKUP($M182,'Atletas2019-20'!$A$3:$F$1358,5,FALSE) -> 2008 | L182: =VLOOKUP($M182,'Atletas2019-20'!$A$3:$F$1358,3,FALSE) -> M | M182: 127833 | N182: =VLOOKUP($M182,'Atletas2019-20'!$A$3:$F$1358,2,FALSE) -> Pedro Almeida | O182: =VLOOKUP($M182,'Atletas2019-20'!$A$3:$F$1358,6,FALSE) -> JV | P182: 13.84 | Q182: M60B2076127833 | R182: =IF(COUNTIF($Q$6:Q182,Q182)=1,"SB","") -> SB | S182: 13.84 | T182: 0.4 | U182: 2
A183: 178 | B183: 2024002 | D183: =IF(C183=2,VLOOKUP($B183,Competicoes!$A$2:$F$66,4,FALSE)+1,VLOOKUP($B183,Competicoes!$A$2:$F$66,4,FALSE)) -> 2019-11-23 | E183: =VLOOKUP($B183,Competicoes!$A$2:$F$66,6,FALSE) -> 2019-20 | F183: =VLOOKUP($B183,Competicoes!$A$2:$F$66,5,FALSE) -> Torneio de Preparação de Pista | G183: =VLOOKUP($B183,Competicoes!$A$2:$F$66,2,FALSE) -> Marinha Grande | H183: =LEFT(VLOOKUP($B183,Competicoes!$A$2:$F$66,3,FALSE),2) -> AL | I183: 60B2076 | J183: =VLOOKUP($M183,'Atletas2019-20'!$A$3:$G$1358,7,FALSE) -> Inf | K183: =VLOOKUP($M183,'Atletas2019-20'!$A$3:$F$1358,5,FALSE) -> 2007 | L183: =VLOOKUP($M183,'Atletas2019-20'!$A$3:$F$1358,3,FALSE) -> M | M183: 131383 | N183: =VLOOKUP($M183,'Atletas2019-20'!$A$3:$F$1358,2,FALSE) -> Gabriel Cunha | O183: =VLOOKUP($M183,'Atletas2019-20'!$A$3:$F$1358,6,FALSE) -> GDP-L | P183: 9.67 | Q183: M60B2076131383 | R183: =IF(COUNTIF($Q$6:Q183,Q183)=1,"SB","") -> SB | S183: 9.67 | T183: 0 | U183: 2
A184: 179 | B184: 2024002 | D184: =IF(C184=2,VLOOKUP($B184,Competicoes!$A$2:$F$66,4,FALSE)+1,VLOOKUP($B184,Competicoes!$A$2:$F$66,4,FALSE)) -> 2019-11-23 | E184: =VLOOKUP($B184,Competicoes!$A$2:$F$66,6,FALSE) -> 2019-20 | F184: =VLOOKUP($B184,Competicoes!$A$2:$F$66,5,FALSE) -> Torneio de Preparação de Pista | G184: =VLOOKUP($B184,Competicoes!$A$2:$F$66,2,FALSE) -> Marinha Grande | H184: =LEFT(VLOOKUP($B184,Competicoes!$A$2:$F$66,3,FALSE),2) -> AL | I184: 60B2076 | J184: =VLOOKUP($M184,'Atletas2019-20'!$A$3:$G$1358,7,FALSE) -> Inf | K184: =VLOOKUP($M184,'Atletas2019-20'!$A$3:$F$1358,5,FALSE) -> 2007 | L184: =VLOOKUP($M184,'Atletas2019-20'!$A$3:$F$1358,3,FALSE) -> M | M184: 150874 | N184: =VLOOKUP($M184,'Atletas2019-20'!$A$3:$F$1358,2,FALSE) -> Denis Hrabar | O184: =VLOOKUP($M184,'Atletas2019-20'!$A$3:$F$1358,6,FALSE) -> JV | P184: 11.37 | Q184: M60B2076150874 | R184: =IF(COUNTIF($Q$6:Q184,Q184)=1,"SB","") -> SB | S184: 11.37 | T184: 0 | U184: 2
A185: 180 | B185: 2024002 | D185: =IF(C185=2,VLOOKUP($B185,Competicoes!$A$2:$F$66,4,FALSE)+1,VLOOKUP($B185,Competicoes!$A$2:$F$66,4,FALSE)) -> 2019-11-23 | E185: =VLOOKUP($B185,Competicoes!$A$2:$F$66,6,FALSE) -> 2019-20 | F185: =VLOOKUP($B185,Competicoes!$A$2:$F$66,5,FALSE) -> Torneio de Preparação de Pista | G185: =VLOOKUP($B185,Competicoes!$A$2:$F$66,2,FALSE) -> Marinha Grande | H185: =LEFT(VLOOKUP($B185,Competicoes!$A$2:$F$66,3,FALSE),2) -> AL | I185: 60B2076 | J185: =VLOOKUP($M185,'Atletas2019-20'!$A$3:$G$1358,7,FALSE) -> Inf | K185: =VLOOKUP($M185,'Atletas2019-20'!$A$3:$F$1358,5,FALSE) -> 2007 | L185: =VLOOKUP($M185,'Atletas2019-20'!$A$3:$F$1358,3,FALSE) -> M | M185: 152961 | N185: =VLOOKUP($M185,'Atletas2019-20'!$A$3:$F$1358,2,FALSE) -> Francisco Mota | O185: =VLOOKUP($M185,'Atletas2019-20'!$A$3:$F$1358,6,FALSE) -> NDAP | P185: 12.62 | Q185: M60B2076152961 | R185: =IF(COUNTIF($Q$6:Q185,Q185)=1,"SB","") -> SB | S185: 12.62 | T185: 0 | U185: 2
A186: 181 | B186: 2024002 | D186: =IF(C186=2,VLOOKUP($B186,Competicoes!$A$2:$F$66,4,FALSE)+1,VLOOKUP($B186,Competicoes!$A$2:$F$66,4,FALSE)) -> 2019-11-23 | E186: =VLOOKUP($B186,Competicoes!$A$2:$F$66,6,FALSE) -> 2019-20 | F186: =VLOOKUP($B186,Competicoes!$A$2:$F$66,5,FALSE) -> Torneio de Preparação de Pista | G186: =VLOOKUP($B186,Competicoes!$A$2:$F$66,2,FALSE) -> Marinha Grande | H186: =LEFT(VLOOKUP($B186,Competicoes!$A$2:$F$66,3,FALSE),2) -> AL | I186: 60B2076 | J186: =VLOOKUP($M186,'Atletas2019-20'!$A$3:$G$1358,7,FALSE) -> Inf | K186: =VLOOKUP($M186,'Atletas2019-20'!$A$3:$F$1358,5,FALSE) -> 2007 | L186: =VLOOKUP($M186,'Atletas2019-20'!$A$3:$F$1358,3,FALSE) -> M | M186: 132214 | N186: =VLOOKUP($M186,'Atletas2019-20'!$A$3:$F$1358,2,FALSE) -> Tomás Monteiro | O186: =VLOOKUP($M186,'Atletas2019-20'!$A$3:$F$1358,6,FALSE) -> JV | P186: 12.64 | Q186: M60B2076132214 | R186: =IF(COUNTIF($Q$6:Q186,Q186)=1,"SB","") -> SB | S186: 12.64 | T186: 0 | U186: 2
A187: 182 | B187: 2024002 | D187: =IF(C187=2,VLOOKUP($B187,Competicoes!$A$2:$F$66,4,FALSE)+1,VLOOKUP($B187,Competicoes!$A$2:$F$66,4,FALSE)) -> 2019-11-23 | E187: =VLOOKUP($B187,Competicoes!$A$2:$F$66,6,FALSE) -> 2019-20 | F187: =VLOOKUP($B187,Competicoes!$A$2:$F$66,5,FALSE) -> Torneio de Preparação de Pista | G187: =VLOOKUP($B187,Competicoes!$A$2:$F$66,2,FALSE) -> Marinha Grande | H187: =LEFT(VLOOKUP($B187,Competicoes!$A$2:$F$66,3,FALSE),2) -> AL | I187: 60B2076 | J187: =VLOOKUP($M187,'Atletas2019-20'!$A$3:$G$1358,7,FALSE) -> Inf | K187: =VLOOKUP($M187,'Atletas2019-20'!$A$3:$F$1358,5,FALSE) -> 2008 | L187: =VLOOKUP($M187,'Atletas2019-20'!$A$3:$F$1358,3,FALSE) -> F | M187: 152007 | N187: =VLOOKUP($M187,'Atletas2019-20'!$A$3:$F$1358,2,FALSE) -> Marta Feliciano | O187: =VLOOKUP($M187,'Atletas2019-20'!$A$3:$F$1358,6,FALSE) -> JV | P187: 13.21 | Q187: F60B2076152007 | R187: =IF(COUNTIF($Q$6:Q187,Q187)=1,"SB","") -> SB | S187: 13.21 | T187: 0 | U187: 2
A188: 183 | B188: 2024002 | D188: =IF(C188=2,VLOOKUP($B188,Competicoes!$A$2:$F$66,4,FALSE)+1,VLOOKUP($B188,Competicoes!$A$2:$F$66,4,FALSE)) -> 2019-11-23 | E188: =VLOOKUP($B188,Competicoes!$A$2:$F$66,6,FALSE) -> 2019-20 | F188: =VLOOKUP($B188,Competicoes!$A$2:$F$66,5,FALSE) -> Torneio de Preparação de Pista | G188: =VLOOKUP($B188,Competicoes!$A$2:$F$66,2,FALSE) -> Marinha Grande | H188: =LEFT(VLOOKUP($B188,Competicoes!$A$2:$F$66,3,FALSE),2) -> AL | I188: 60B2076 | J188: =VLOOKUP($M188,'Atletas2019-20'!$A$3:$G$1358,7,FALSE) -> Inf | K188: =VLOOKUP($M188,'Atletas2019-20'!$A$3:$F$1358,5,FALSE) -> 2008 | L188: =VLOOKUP($M188,'Atletas2019-20'!$A$3:$F$1358,3,FALSE) -> F | M188: 154801 | N188: =VLOOKUP($M188,'Atletas2019-20'!$A$3:$F$1358,2,FALSE) -> Daniela Pedro | O188: =VLOOKUP($M188,'Atletas2019-20'!$A$3:$F$1358,6,FALSE) -> JV | P188: 13.59 | Q188: F60B2076154801 | R188: =IF(COUNTIF($Q$6:Q188,Q188)=1,"SB","") -> SB | S188: 13.59 | T188: 0 | U188: 2
A189: 184 | B189: 2024002 | D189: =IF(C189=2,VLOOKUP($B189,Competicoes!$A$2:$F$66,4,FALSE)+1,VLOOKUP($B189,Competicoes!$A$2:$F$66,4,FALSE)) -> 2019-11-23 | E189: =VLOOKUP($B189,Competicoes!$A$2:$F$66,6,FALSE) -> 2019-20 | F189: =VLOOKUP($B189,Competicoes!$A$2:$F$66,5,FALSE) -> Torneio de Preparação de Pista | G189: =VLOOKUP($B189,Competicoes!$A$2:$F$66,2,FALSE) -> Marinha Grande | H189: =LEFT(VLOOKUP($B189,Competicoes!$A$2:$F$66,3,FALSE),2) -> AL | I189: 60B2076 | J189: =VLOOKUP($M189,'Atletas2019-20'!$A$3:$G$1358,7,FALSE) -> Inf | K189: =VLOOKUP($M189,'Atletas2019-20'!$A$3:$F$1358,5,FALSE) -> 2008 | L189: =VLOOKUP($M189,'Atletas2019-20'!$A$3:$F$1358,3,FALSE) -> F | M189: 146884 | N189: =VLOOKUP($M189,'Atletas2019-20'!$A$3:$F$1358,2,FALSE) -> Leonor Henriques | O189: =VLOOKUP($M189,'Atletas2019-20'!$A$3:$F$1358,6,FALSE) -> JV | P189: 13.6 | Q189: F60B2076146884 | R189: =IF(COUNTIF($Q$6:Q189,Q189)=1,"SB","") -> SB | S189: 13.6 | T189: 0 | U189: 2
A190: 185 | B190: 2024002 | D190: =IF(C190=2,VLOOKUP($B190,Competicoes!$A$2:$F$66,4,FALSE)+1,VLOOKUP($B190,Competicoes!$A$2:$F$66,4,FALSE)) -> 2019-11-23 | E190: =VLOOKUP($B190,Competicoes!$A$2:$F$66,6,FALSE) -> 2019-20 | F190: =VLOOKUP($B190,Competicoes!$A$2:$F$66,5,FALSE) -> Torneio de Preparação de Pista | G190: =VLOOKUP($B190,Competicoes!$A$2:$F$66,2,FALSE) -> Marinha Grande | H190: =LEFT(VLOOKUP($B190,Competicoes!$A$2:$F$66,3,FALSE),2) -> AL | I190: 60B2076 | J190: =VLOOKUP($M190,'Atletas2019-20'!$A$3:$G$1358,7,FALSE) -> Inf | K190: =VLOOKUP($M190,'Atletas2019-20'!$A$3:$F$1358,5,FALSE) -> 2008 | L190: =VLOOKUP($M190,'Atletas2019-20'!$A$3:$F$1358,3,FALSE) -> F | M190: 141300 | N190: =VLOOKUP($M190,'Atletas2019-20'!$A$3:$F$1358,2,FALSE) -> Miriam Machado | O190: =VLOOKUP($M190,'Atletas2019-20'!$A$3:$F$1358,6,FALSE) -> JV | P190: 13.81 | Q190: F60B2076141300 | R190: =IF(COUNTIF($Q$6:Q190,Q190)=1,"SB","") -> SB | S190: 13.81 | T190: 0 | U190: 2
A191: 186 | B191: 2024002 | D191: =IF(C191=2,VLOOKUP($B191,Competicoes!$A$2:$F$66,4,FALSE)+1,VLOOKUP($B191,Competicoes!$A$2:$F$66,4,FALSE)) -> 2019-11-23 | E191: =VLOOKUP($B191,Competicoes!$A$2:$F$66,6,FALSE) -> 2019-20 | F191: =VLOOKUP($B191,Competicoes!$A$2:$F$66,5,FALSE) -> Torneio de Preparação de Pista | G191: =VLOOKUP($B191,Competicoes!$A$2:$F$66,2,FALSE) -> Marinha Grande | H191: =LEFT(VLOOKUP($B191,Competicoes!$A$2:$F$66,3,FALSE),2) -> AL | I191: 60B2076 | J191: =VLOOKUP($M191,'Atletas2019-20'!$A$3:$G$1358,7,FALSE) -> Inf | K191: =VLOOKUP($M191,'Atletas2019-20'!$A$3:$F$1358,5,FALSE) -> 2008 | L191: =VLOOKUP($M191,'Atletas2019-20'!$A$3:$F$1358,3,FALSE) -> F | M191: 138537 | N191: =VLOOKUP($M191,'Atletas2019-20'!$A$3:$F$1358,2,FALSE) -> Joana Seixas | O191: =VLOOKUP($M191,'Atletas2019-20'!$A$3:$F$1358,6,FALSE) -> JV | P191: 14.34 | Q191: F60B2076138537 | R191: =IF(COUNTIF($Q$6:Q191,Q191)=1,"SB","") -> SB | S191: 14.34 | T191: 0 | U191: 2
A192: 187 | B192: 2024002 | D192: =IF(C192=2,VLOOKUP($B192,Competicoes!$A$2:$F$66,4,FALSE)+1,VLOOKUP($B192,Competicoes!$A$2:$F$66,4,FALSE)) -> 2019-11-23 | E192: =VLOOKUP($B192,Competicoes!$A$2:$F$66,6,FALSE) -> 2019-20 | F192: =VLOOKUP($B192,Competicoes!$A$2:$F$66,5,FALSE) -> Torneio de Preparação de Pista | G192: =VLOOKUP($B192,Competicoes!$A$2:$F$66,2,FALSE) -> Marinha Grande | H192: =LEFT(VLOOKUP($B192,Competicoes!$A$2:$F$66,3,FALSE),2) -> AL | I192: 60B2076 | J192: =VLOOKUP($M192,'Atletas2019-20'!$A$3:$G$1358,7,FALSE) -> Inf | K192: =VLOOKUP($M192,'Atletas2019-20'!$A$3:$F$1358,5,FALSE) -> 2007 | L192: =VLOOKUP($M192,'Atletas2019-20'!$A$3:$F$1358,3,FALSE) -> F | M192: 156617 | N192: =VLOOKUP($M192,'Atletas2019-20'!$A$3:$F$1358,2,FALSE) -> Sofia Santos | O192: =VLOOKUP($M192,'Atletas2019-20'!$A$3:$F$1358,6,FALSE) -> JV | P192: 12.44 | Q192: F60B2076156617 | R192: =IF(COUNTIF($Q$6:Q192,Q192)=1,"SB","") -> SB | S192: 12.44 | T192: 2.3 | U192: 2
A193: 188 | B193: 2024002 | D193: =IF(C193=2,VLOOKUP($B193,Competicoes!$A$2:$F$66,4,FALSE)+1,VLOOKUP($B193,Competicoes!$A$2:$F$66,4,FALSE)) -> 2019-11-23 | E193: =VLOOKUP($B193,Competicoes!$A$2:$F$66,6,FALSE) -> 2019-20 | F193: =VLOOKUP($B193,Competicoes!$A$2:$F$66,5,FALSE) -> Torneio de Preparação de Pista | G193: =VLOOKUP($B193,Competicoes!$A$2:$F$66,2,FALSE) -> Marinha Grande | H193: =LEFT(VLOOKUP($B193,Competicoes!$A$2:$F$66,3,FALSE),2) -> AL | I193: 60B2076 | J193: =VLOOKUP($M193,'Atletas2019-20'!$A$3:$G$1358,7,FALSE) -> Inf | K193: =VLOOKUP($M193,'Atletas2019-20'!$A$3:$F$1358,5,FALSE) -> 2008 | L193: =VLOOKUP($M193,'Atletas2019-20'!$A$3:$F$1358,3,FALSE) -> F | M193: 153645 | N193: =VLOOKUP($M193,'Atletas2019-20'!$A$3:$F$1358,2,FALSE) -> Benedita Matias | O193: =VLOOKUP($M193,'Atletas2019-20'!$A$3:$F$1358,6,FALSE) -> JV | P193: 12.81 | Q193: F60B2076153645 | R193: =IF(COUNTIF($Q$6:Q193,Q193)=1,"SB","") -> SB | S193: 12.81 | T193: 2.3 | U193: 2
A194: 189 | B194: 2024002 | D194: =IF(C194=2,VLOOKUP($B194,Competicoes!$A$2:$F$66,4,FALSE)+1,VLOOKUP($B194,Competicoes!$A$2:$F$66,4,FALSE)) -> 2019-11-23 | E194: =VLOOKUP($B194,Competicoes!$A$2:$F$66,6,FALSE) -> 2019-20 | F194: =VLOOKUP($B194,Competicoes!$A$2:$F$66,5,FALSE) -> Torneio de Preparação de Pista | G194: =VLOOKUP($B194,Competicoes!$A$2:$F$66,2,FALSE) -> Marinha Grande | H194: =LEFT(VLOOKUP($B194,Competicoes!$A$2:$F$66,3,FALSE),2) -> AL | I194: 60B2076 | J194: =VLOOKUP($M194,'Atletas2019-20'!$A$3:$G$1358,7,FALSE) -> Inf | K194: =VLOOKUP($M194,'Atletas2019-20'!$A$3:$F$1358,5,FALSE) -> 2007 | L194: =VLOOKUP($M194,'Atletas2019-20'!$A$3:$F$1358,3,FALSE) -> F | M194: 139372 | N194: =VLOOKUP($M194,'Atletas2019-20'!$A$3:$F$1358,2,FALSE) -> Camila Patraboy | O194: =VLOOKUP($M194,'Atletas2019-20'!$A$3:$F$1358,6,FALSE) -> JV | P194: 13.81 | Q194: F60B2076139372 | R194: =IF(COUNTIF($Q$6:Q194,Q194)=1,"SB","") -> SB | S194: 13.81 | T194: 2.3 | U194: 2
A195: 190 | B195: 2024002 | D195: =IF(C195=2,VLOOKUP($B195,Competicoes!$A$2:$F$66,4,FALSE)+1,VLOOKUP($B195,Competicoes!$A$2:$F$66,4,FALSE)) -> 2019-11-23 | E195: =VLOOKUP($B195,Competicoes!$A$2:$F$66,6,FALSE) -> 2019-20 | F195: =VLOOKUP($B195,Competicoes!$A$2:$F$66,5,FALSE) -> Torneio de Preparação de Pista | G195: =VLOOKUP($B195,Competicoes!$A$2:$F$66,2,FALSE) -> Marinha Grande | H195: =LEFT(VLOOKUP($B195,Competicoes!$A$2:$F$66,3,FALSE),2) -> AL | I195: 60B2076 | J195: =VLOOKUP($M195,'Atletas2019-20'!$A$3:$G$1358,7,FALSE) -> Inf | K195: =VLOOKUP($M195,'Atletas2019-20'!$A$3:$F$1358,5,FALSE) -> 2007 | L195: =VLOOKUP($M195,'Atletas2019-20'!$A$3:$F$1358,3,FALSE) -> F | M195: 156759 | N195: =VLOOKUP($M195,'Atletas2019-20'!$A$3:$F$1358,2,FALSE) -> Carolina Ferreira | O195: =VLOOKUP($M195,'Atletas2019-20'!$A$3:$F$1358,6,FALSE) -> JV | P195: 14.33 | Q195: F60B2076156759 | R195: =IF(COUNTIF($Q$6:Q195,Q195)=1,"SB","") -> SB | S195: 14.33 | T195: 2.3 | U195: 2
A196: 191 | B196: 2024002 | D196: =IF(C196=2,VLOOKUP($B196,Competicoes!$A$2:$F$66,4,FALSE)+1,VLOOKUP($B196,Competicoes!$A$2:$F$66,4,FALSE)) -> 2019-11-23 | E196: =VLOOKUP($B196,Competicoes!$A$2:$F$66,6,FALSE) -> 2019-20 | F196: =VLOOKUP($B196,Competicoes!$A$2:$F$66,5,FALSE) -> Torneio de Preparação de Pista | G196: =VLOOKUP($B196,Competicoes!$A$2:$F$66,2,FALSE) -> Marinha Grande | H196: =LEFT(VLOOKUP($B196,Competicoes!$A$2:$F$66,3,FALSE),2) -> AL | I196: 60B2076 | J196: =VLOOKUP($M196,'Atletas2019-20'!$A$3:$G$1358,7,FALSE) -> Inf | K196: =VLOOKUP($M196,'Atletas2019-20'!$A$3:$F$1358,5,FALSE) -> 2007 | L196: =VLOOKUP($M196,'Atletas2019-20'!$A$3:$F$1358,3,FALSE) -> F | M196: 158375 | N196: =VLOOKUP($M196,'Atletas2019-20'!$A$3:$F$1358,2,FALSE) -> Mariana Custódio | O196: =VLOOKUP($M196,'Atletas2019-20'!$A$3:$F$1358,6,FALSE) -> GDP-L | P196: 14.46 | Q196: =L196&I196&M196 -> F60B2076158375 | R196: =IF(COUNTIF($Q$6:Q196,Q196)=1,"SB","") -> SB | S196: =SIGN(P196)*P196 -> 14.46 | T196: 2.3 | U196: 2
A197: 192 | B197: 2024002 | D197: =IF(C197=2,VLOOKUP($B197,Competicoes!$A$2:$F$66,4,FALSE)+1,VLOOKUP($B197,Competicoes!$A$2:$F$66,4,FALSE)) -> 2019-11-23 | E197: =VLOOKUP($B197,Competicoes!$A$2:$F$66,6,FALSE) -> 2019-20 | F197: =VLOOKUP($B197,Competicoes!$A$2:$F$66,5,FALSE) -> Torneio de Preparação de Pista | G197: =VLOOKUP($B197,Competicoes!$A$2:$F$66,2,FALSE) -> Marinha Grande | H197: =LEFT(VLOOKUP($B197,Competicoes!$A$2:$F$66,3,FALSE),2) -> AL | I197: 60B2076 | J197: =VLOOKUP($M197,'Atletas2019-20'!$A$3:$G$1358,7,FALSE) -> Inf | K197: =VLOOKUP($M197,'Atletas2019-20'!$A$3:$F$1358,5,FALSE) -> 2007 | L197: =VLOOKUP($M197,'Atletas2019-20'!$A$3:$F$1358,3,FALSE) -> F | M197: 146231 | N197: =VLOOKUP($M197,'Atletas2019-20'!$A$3:$F$1358,2,FALSE) -> Helena Alípio | O197: =VLOOKUP($M197,'Atletas2019-20'!$A$3:$F$1358,6,FALSE) -> JV | P197: 14.47 | Q197: F60B2076146231 | R197: =IF(COUNTIF($Q$6:Q197,Q197)=1,"SB","") -> SB | S197: 14.47 | T197: 2.3 | U197: 2
A198: 193 | B198: 2024002 | D198: =IF(C198=2,VLOOKUP($B198,Competicoes!$A$2:$F$66,4,FALSE)+1,VLOOKUP($B198,Competicoes!$A$2:$F$66,4,FALSE)) -> 2019-11-23 | E198: =VLOOKUP($B198,Competicoes!$A$2:$F$66,6,FALSE) -> 2019-20 | F198: =VLOOKUP($B198,Competicoes!$A$2:$F$66,5,FALSE) -> Torneio de Preparação de Pista | G198: =VLOOKUP($B198,Competicoes!$A$2:$F$66,2,FALSE) -> Marinha Grande | H198: =LEFT(VLOOKUP($B198,Competicoes!$A$2:$F$66,3,FALSE),2) -> AL | I198: 60B2076 | J198: =VLOOKUP($M198,'Atletas2019-20'!$A$3:$G$1358,7,FALSE) -> Inf | K198: =VLOOKUP($M198,'Atletas2019-20'!$A$3:$F$1358,5,FALSE) -> 2007 | L198: =VLOOKUP($M198,'Atletas2019-20'!$A$3:$F$1358,3,FALSE) -> F | M198: 146424 | N198: =VLOOKUP($M198,'Atletas2019-20'!$A$3:$F$1358,2,FALSE) -> Carina Marto | O198: =VLOOKUP($M198,'Atletas2019-20'!$A$3:$F$1358,6,FALSE) -> GDP-L | P198: 11.51 | Q198: F60B2076146424 | R198: =IF(COUNTIF($Q$6:Q198,Q198)=1,"SB","") -> SB | S198: 11.51 | T198: 1.9 | U198: 2
A199: 194 | B199: 2024002 | D199: =IF(C199=2,VLOOKUP($B199,Competicoes!$A$2:$F$66,4,FALSE)+1,VLOOKUP($B199,Competicoes!$A$2:$F$66,4,FALSE)) -> 2019-11-23 | E199: =VLOOKUP($B199,Competicoes!$A$2:$F$66,6,FALSE) -> 2019-20 | F199: =VLOOKUP($B199,Competicoes!$A$2:$F$66,5,FALSE) -> Torneio de Preparação de Pista | G199: =VLOOKUP($B199,Competicoes!$A$2:$F$66,2,FALSE) -> Marinha Grande | H199: =LEFT(VLOOKUP($B199,Competicoes!$A$2:$F$66,3,FALSE),2) -> AL | I199: 60B2076 | J199: =VLOOKUP($M199,'Atletas2019-20'!$A$3:$G$1358,7,FALSE) -> Inf | K199: =VLOOKUP($M199,'Atletas2019-20'!$A$3:$F$1358,5,FALSE) -> 2007 | L199: =VLOOKUP($M199,'Atletas2019-20'!$A$3:$F$1358,3,FALSE) -> F | M199: 143868 | N199: =VLOOKUP($M199,'Atletas2019-20'!$A$3:$F$1358,2,FALSE) -> Marta Carriço | O199: =VLOOKUP($M199,'Atletas2019-20'!$A$3:$F$1358,6,FALSE) -> ACDRA | P199: 12.46 | Q199: F60B2076143868 | R199: =IF(COUNTIF($Q$6:Q199,Q199)=1,"SB","") -> SB | S199: 12.46 | T199: 1.9 | U199: 2
A200: 195 | B200: 2024002 | D200: =IF(C200=2,VLOOKUP($B200,Competicoes!$A$2:$F$66,4,FALSE)+1,VLOOKUP($B200,Competicoes!$A$2:$F$66,4,FALSE)) -> 2019-11-23 | E200: =VLOOKUP($B200,Competicoes!$A$2:$F$66,6,FALSE) -> 2019-20 | F200: =VLOOKUP($B200,Competicoes!$A$2:$F$66,5,FALSE) -> Torneio de Preparação de Pista | G200: =VLOOKUP($B200,Competicoes!$A$2:$F$66,2,FALSE) -> Marinha Grande | H200: =LEFT(VLOOKUP($B200,Competicoes!$A$2:$F$66,3,FALSE),2) -> AL | I200: 60B2076 | J200: =VLOOKUP($M200,'Atletas2019-20'!$A$3:$G$1358,7,FALSE) -> Inf | K200: =VLOOKUP($M200,'Atletas2019-20'!$A$3:$F$1358,5,FALSE) -> 2007 | L200: =VLOOKUP($M200,'Atletas2019-20'!$A$3:$F$1358,3,FALSE) -> F | M200: 150751 | N200: =VLOOKUP($M200,'Atletas2019-20'!$A$3:$F$1358,2,FALSE) -> Carolina D Santos | O200: =VLOOKUP($M200,'Atletas2019-20'!$A$3:$F$1358,6,FALSE) -> CAMG | P200: 12.79 | Q200: F60B2076150751 | R200: =IF(COUNTIF($Q$6:Q200,Q200)=1,"SB","") -> SB | S200: 12.79 | T200: 1.9 | U200: 2
A201: 196 | B201: 2024002 | D201: =IF(C201=2,VLOOKUP($B201,Competicoes!$A$2:$F$66,4,FALSE)+1,VLOOKUP($B201,Competicoes!$A$2:$F$66,4,FALSE)) -> 2019-11-23 | E201: =VLOOKUP($B201,Competicoes!$A$2:$F$66,6,FALSE) -> 2019-20 | F201: =VLOOKUP($B201,Competicoes!$A$2:$F$66,5,FALSE) -> Torneio de Preparação de Pista | G201: =VLOOKUP($B201,Competicoes!$A$2:$F$66,2,FALSE) -> Marinha Grande | H201: =LEFT(VLOOKUP($B201,Competicoes!$A$2:$F$66,3,FALSE),2) -> AL | I201: 60B2076 | J201: =VLOOKUP($M201,'Atletas2019-20'!$A$3:$G$1358,7,FALSE) -> Inf | K201: =VLOOKUP($M201,'Atletas2019-20'!$A$3:$F$1358,5,FALSE) -> 2007 | L201: =VLOOKUP($M201,'Atletas2019-20'!$A$3:$F$1358,3,FALSE) -> F | M201: 150633 | N201: =VLOOKUP($M201,'Atletas2019-20'!$A$3:$F$1358,2,FALSE) -> Matilde Soares | O201: =VLOOKUP($M201,'Atletas2019-20'!$A$3:$F$1358,6,FALSE) -> CAMG | P201: 13.05 | Q201: F60B2076150633 | R201: =IF(COUNTIF($Q$6:Q201,Q201)=1,"SB","") -> SB | S201: 13.05 | T201: 1.9 | U201: 2
A202: 197 | B202: 2024002 | D202: =IF(C202=2,VLOOKUP($B202,Competicoes!$A$2:$F$66,4,FALSE)+1,VLOOKUP($B202,Competicoes!$A$2:$F$66,4,FALSE)) -> 2019-11-23 | E202: =VLOOKUP($B202,Competicoes!$A$2:$F$66,6,FALSE) -> 2019-20 | F202: =VLOOKUP($B202,Competicoes!$A$2:$F$66,5,FALSE) -> Torneio de Preparação de Pista | G202: =VLOOKUP($B202,Competicoes!$A$2:$F$66,2,FALSE) -> Marinha Grande | H202: =LEFT(VLOOKUP($B202,Competicoes!$A$2:$F$66,3,FALSE),2) -> AL | I202: 60B2076 | J202: =VLOOKUP($M202,'Atletas2019-20'!$A$3:$G$1358,7,FALSE) -> Inf | K202: =VLOOKUP($M202,'Atletas2019-20'!$A$3:$F$1358,5,FALSE) -> 2007 | L202: =VLOOKUP($M202,'Atletas2019-20'!$A$3:$F$1358,3,FALSE) -> F | M202: 154189 | N202: =VLOOKUP($M202,'Atletas2019-20'!$A$3:$F$1358,2,FALSE) -> Lisandra Santos | O202: =VLOOKUP($M202,'Atletas2019-20'!$A$3:$F$1358,6,FALSE) -> NDAP | P202: 14.35 | Q202: F60B2076154189 | R202: =IF(COUNTIF($Q$6:Q202,Q202)=1,"SB","") -> SB | S202: 14.35 | T202: 1.9 | U202: 2
A203: 198 | B203: 2024002 | D203: =IF(C203=2,VLOOKUP($B203,Competicoes!$A$2:$F$66,4,FALSE)+1,VLOOKUP($B203,Competicoes!$A$2:$F$66,4,FALSE)) -> 2019-11-23 | E203: =VLOOKUP($B203,Competicoes!$A$2:$F$66,6,FALSE) -> 2019-20 | F203: =VLOOKUP($B203,Competicoes!$A$2:$F$66,5,FALSE) -> Torneio de Preparação de Pista | G203: =VLOOKUP($B203,Competicoes!$A$2:$F$66,2,FALSE) -> Marinha Grande | H203: =LEFT(VLOOKUP($B203,Competicoes!$A$2:$F$66,3,FALSE),2) -> AL | I203: 60B2076 | J203: =VLOOKUP($M203,'Atletas2019-20'!$A$3:$G$1358,7,FALSE) -> Inf | K203: =VLOOKUP($M203,'Atletas2019-20'!$A$3:$F$1358,5,FALSE) -> 2007 | L203: =VLOOKUP($M203,'Atletas2019-20'!$A$3:$F$1358,3,FALSE) -> F | M203: 156296 | N203: =VLOOKUP($M203,'Atletas2019-20'!$A$3:$F$1358,2,FALSE) -> Bruna Soares | O203: =VLOOKUP($M203,'Atletas2019-20'!$A$3:$F$1358,6,FALSE) -> CAMG | P203: 14.39 | Q203: F60B2076156296 | R203: =IF(COUNTIF($Q$6:Q203,Q203)=1,"SB","") -> SB | S203: 14.39 | T203: 1.9 | U203: 2
A204: 199 | B204: 2024002 | D204: =IF(C204=2,VLOOKUP($B204,Competicoes!$A$2:$F$66,4,FALSE)+1,VLOOKUP($B204,Competicoes!$A$2:$F$66,4,FALSE)) -> 2019-11-23 | E204: =VLOOKUP($B204,Competicoes!$A$2:$F$66,6,FALSE) -> 2019-20 | F204: =VLOOKUP($B204,Competicoes!$A$2:$F$66,5,FALSE) -> Torneio de Preparação de Pista | G204: =VLOOKUP($B204,Competicoes!$A$2:$F$66,2,FALSE) -> Marinha Grande | H204: =LEFT(VLOOKUP($B204,Competicoes!$A$2:$F$66,3,FALSE),2) -> AL | I204: 60B2076 | J204: =VLOOKUP($M204,'Atletas2019-20'!$A$3:$G$1358,7,FALSE) -> Inf | K204: =VLOOKUP($M204,'Atletas2019-20'!$A$3:$F$1358,5,FALSE) -> 2007 | L204: =VLOOKUP($M204,'Atletas2019-20'!$A$3:$F$1358,3,FALSE) -> F | M204: 135898 | N204: =VLOOKUP($M204,'Atletas2019-20'!$A$3:$F$1358,2,FALSE) -> Ana Mata | O204: =VLOOKUP($M204,'Atletas2019-20'!$A$3:$F$1358,6,FALSE) -> CAMG | P204: 15.79 | Q204: F60B2076135898 | R204: =IF(COUNTIF($Q$6:Q204,Q204)=1,"SB","") -> SB | S204: 15.79 | T204: 1.9 | U204: 2
... 2951 more rows

Sheet Atletas2019-20 (hidden)
A1: 2010-2020
A2: LicFPA | B2: Atleta | C2: Genero | D2: Escalão | E2: Nasc | F2: Clube | G2: EscalãoNome | H2: Trein Ger | I2: Trein Tec | J2: Dorsal
A3: 123167 | B3: António Reis | C3: M | D3: 9 | E3: 1975 | F3: CAB-L | G3: =VLOOKUP($D3,Escaloes!$A$2:$B$24,2,FALSE) -> Vet | J3: 759
A4: 123173 | B4: Ana Paula Santos | C4: F | D4: 9 | E4: 1962 | F4: CCRDB | G4: =VLOOKUP($D4,Escaloes!$A$2:$B$24,2,FALSE) -> Vet | J4: 1082
A5: 123183 | B5: André Oliveira | C5: M | D5: 7 | E5: 2000 | F5: JV | G5: =VLOOKUP($D5,Escaloes!$A$2:$B$24,2,FALSE) -> S23 | J5: 7
A6: 123188 | B6: Miguel Saraiva | C6: M | D6: 9 | E6: 1968 | F6: CAB-L | G6: =VLOOKUP($D6,Escaloes!$A$2:$B$24,2,FALSE) -> Vet | J6: 771
A7: 123203 | B7: Nuno Marques | C7: M | D7: 9 | E7: 1983 | F7: NDAP | G7: =VLOOKUP($D7,Escaloes!$A$2:$B$24,2,FALSE) -> Vet | J7: 460
A8: 123247 | B8: Salete Tavares | C8: F | D8: 9 | E8: 1972 | F8: CAB-L | G8: =VLOOKUP($D8,Escaloes!$A$2:$B$24,2,FALSE) -> Vet | J8: 776
A9: 123257 | B9: Amável Luz | C9: M | D9: 9 | E9: 1961 | F9: IND-L | G9: =VLOOKUP($D9,Escaloes!$A$2:$B$24,2,FALSE) -> Vet | J9: 1099
A10: 123270 | B10: Ricardo Oliveira | C10: M | D10: 9 | E10: 1975 | F10: CRA-L | G10: =VLOOKUP($D10,Escaloes!$A$2:$B$24,2,FALSE) -> Vet | J10: 814
A11: 123279 | B11: Eugénio Mendes | C11: M | D11: 9 | E11: 1961 | F11: ACV | G11: =VLOOKUP($D11,Escaloes!$A$2:$B$24,2,FALSE) -> Vet | J11: 684
A12: 123292 | B12: Daniel Santiago | C12: M | D12: 8 | E12: 1996 | F12: JV | G12: =VLOOKUP($D12,Escaloes!$A$2:$B$24,2,FALSE) -> Sen | J12: 31
A13: 123295 | B13: Victor Teixeira | C13: M | D13: 9 | E13: 1962 | F13: CRA-L | G13: =VLOOKUP($D13,Escaloes!$A$2:$B$24,2,FALSE) -> Vet | J13: 815
A14: 123300 | B14: Andreia Grácio | C14: F | D14: 8 | E14: 1996 | F14: JV | G14: =VLOOKUP($D14,Escaloes!$A$2:$B$24,2,FALSE) -> Sen | J14: 174
A15: 123344 | B15: José Alves | C15: M | D15: 9 | E15: 1965 | F15: ADRM | G15: =VLOOKUP($D15,Escaloes!$A$2:$B$24,2,FALSE) -> Vet | J15: 705
A16: 123395 | B16: Ricardo Henriques | C16: M | D16: 9 | E16: 1984 | F16: CRA-L | G16: =VLOOKUP($D16,Escaloes!$A$2:$B$24,2,FALSE) -> Vet | J16: 813
A17: 123413 | B17: Pedro Ferreira | C17: M | D17: 9 | E17: 1974 | F17: ACV | G17: =VLOOKUP($D17,Escaloes!$A$2:$B$24,2,FALSE) -> Vet | J17: 696
A18: 123432 | B18: João Pereira | C18: M | D18: 8 | E18: 1993 | F18: CAMG | G18: =VLOOKUP($D18,Escaloes!$A$2:$B$24,2,FALSE) -> Sen | J18: 385
A19: 123447 | B19: Jorge Marcelino | C19: M | D19: 9 | E19: 1973 | F19: IDV | G19: =VLOOKUP($D19,Escaloes!$A$2:$B$24,2,FALSE) -> Vet | J19: 962
A20: 123456 | B20: Eduarda Silva | C20: F | D20: 4 | E20: 2005 | F20: JV | G20: =VLOOKUP($D20,Escaloes!$A$2:$B$24,2,FALSE) -> Ini | J20: 46
A21: 123495 | B21: Rodrigo Agostinho | C21: M | D21: 6 | E21: 2001 | F21: CAMG | G21: =VLOOKUP($D21,Escaloes!$A$2:$B$24,2,FALSE) -> Jun | J21: 1252
A22: 123503 | B22: Flávia Costa | C22: F | D22: 8 | E22: 1994 | F22: JV | G22: =VLOOKUP($D22,Escaloes!$A$2:$B$24,2,FALSE) -> Sen | J22: 53
A23: 123576 | B23: Ana Reis | C23: F | D23: 5 | E23: 2004 | F23: JV | G23: =VLOOKUP($D23,Escaloes!$A$2:$B$24,2,FALSE) -> Juv | J23: 5
A24: 123593 | B24: Elisângela Codinha | C24: F | D24: 4 | E24: 2005 | F24: GDAA | G24: =VLOOKUP($D24,Escaloes!$A$2:$B$24,2,FALSE) -> Ini | J24: 595
A25: 123712 | B25: Rui Roberto | C25: M | D25: 9 | E25: 1968 | F25: CAB-L | G25: =VLOOKUP($D25,Escaloes!$A$2:$B$24,2,FALSE) -> Vet | J25: 1080
A26: 123757 | B26: Diogo Oliveira | C26: M | D26: 8 | E26: 1990 | F26: LMA-L | G26: =VLOOKUP($D26,Escaloes!$A$2:$B$24,2,FALSE) -> Sen | J26: 1069
A27: 123803 | B27: Dulcínea Silva | C27: F | D27: 9 | E27: 1972 | F27: GAC-L | G27: =VLOOKUP($D27,Escaloes!$A$2:$B$24,2,FALSE) -> Vet | J27: 841
A28: 123823 | B28: Licínio Silva | C28: M | D28: 8 | E28: 1992 | F28: GAUB | G28: =VLOOKUP($D28,Escaloes!$A$2:$B$24,2,FALSE) -> Sen | J28: 1175
A29: 123826 | B29: Daniela Paço | C29: F | D29: 8 | E29: 1996 | F29: JV | G29: =VLOOKUP($D29,Escaloes!$A$2:$B$24,2,FALSE) -> Sen | J29: 32
A30: 123844 | B30: Tiago Pires | C30: M | D30: 7 | E30: 1998 | F30: JV | G30: =VLOOKUP($D30,Escaloes!$A$2:$B$24,2,FALSE) -> S23 | J30: 153
A31: 123850 | B31: Virgílio Bastos | C31: M | D31: 9 | E31: 1978 | F31: CRA-L | G31: =VLOOKUP($D31,Escaloes!$A$2:$B$24,2,FALSE) -> Vet | J31: 816
A32: 123874 | B32: Bruna Silva | C32: F | D32: 8 | E32: 1994 | F32: JV | G32: =VLOOKUP($D32,Escaloes!$A$2:$B$24,2,FALSE) -> Sen | J32: 239
A33: 123956 | B33: Denise Pereira | C33: F | D33: 9 | E33: 1983 | F33: IND-L | G33: =VLOOKUP($D33,Escaloes!$A$2:$B$24,2,FALSE) -> Vet | J33: 1231
A34: 124108 | B34: Inês Carreira | C34: F | D34: 7 | E34: 2000 | F34: JV | G34: =VLOOKUP($D34,Escaloes!$A$2:$B$24,2,FALSE) -> S23 | J34: 67
A35: 124113 | B35: Hélder Santos | C35: M | D35: 8 | E35: 1996 | F35: LMA-L | G35: =VLOOKUP($D35,Escaloes!$A$2:$B$24,2,FALSE) -> Sen | J35: 1009
A36: 124138 | B36: Sílvia Coelho | C36: F | D36: 9 | E36: 1966 | F36: CAB-L | G36: =VLOOKUP($D36,Escaloes!$A$2:$B$24,2,FALSE) -> Vet | J36: 1282
A37: 124159 | B37: Rafael Correia | C37: M | D37: 8 | E37: 1993 | F37: JV | G37: =VLOOKUP($D37,Escaloes!$A$2:$B$24,2,FALSE) -> Sen | J37: 220
A38: 124190 | B38: Carmen Silva | C38: F | D38: 9 | E38: 1971 | F38: CAB-L | G38: =VLOOKUP($D38,Escaloes!$A$2:$B$24,2,FALSE) -> Vet | J38: 762
A39: 124226 | B39: Diogo Meneses | C39: M | D39: 6 | E39: 2002 | F39: JV | G39: =VLOOKUP($D39,Escaloes!$A$2:$B$24,2,FALSE) -> Jun | J39: 41
A40: 124237 | B40: Daniel Jaulino | C40: M | D40: 9 | E40: 1965 | F40: GAUB | G40: =VLOOKUP($D40,Escaloes!$A$2:$B$24,2,FALSE) -> Vet | J40: 874
A41: 124278 | B41: João Próspero | C41: M | D41: 9 | E41: 1952 | F41: CRA-L | G41: =VLOOKUP($D41,Escaloes!$A$2:$B$24,2,FALSE) -> Vet | J41: 810
A42: 124281 | B42: João Gomes | C42: M | D42: 9 | E42: 1962 | F42: CRA-L | G42: =VLOOKUP($D42,Escaloes!$A$2:$B$24,2,FALSE) -> Vet | J42: 809
A43: 124327 | B43: José Raimundo | C43: M | D43: 9 | E43: 1962 | F43: CRA-L | G43: =VLOOKUP($D43,Escaloes!$A$2:$B$24,2,FALSE) -> Vet | J43: 811
A44: 124371 | B44: Kristina Saltanovic | C44: F | D44: 9 | E44: 1975 | F44: JV | G44: =VLOOKUP($D44,Escaloes!$A$2:$B$24,2,FALSE) -> Vet | J44: 92
A45: 124422 | B45: Eduardo Cardeira | C45: M | D45: 9 | E45: 1982 | F45: CRA-L | G45: =VLOOKUP($D45,Escaloes!$A$2:$B$24,2,FALSE) -> Vet | J45: 1077
A46: 124425 | B46: Martim Costa | C46: M | D46: 5 | E46: 2003 | F46: AAADP | G46: =VLOOKUP($D46,Escaloes!$A$2:$B$24,2,FALSE) -> Juv | J46: 495
A47: 124427 | B47: Sara Brito | C47: F | D47: 9 | E47: 1970 | F47: CAB-L | G47: =VLOOKUP($D47,Escaloes!$A$2:$B$24,2,FALSE) -> Vet | J47: 777
A48: 124452 | B48: Nélson Ferreira | C48: M | D48: 9 | E48: 1979 | F48: ACV | G48: =VLOOKUP($D48,Escaloes!$A$2:$B$24,2,FALSE) -> Vet | J48: 694
A49: 124455 | B49: Nataniel Lopes | C49: M | D49: 9 | E49: 1981 | F49: JV | G49: =VLOOKUP($D49,Escaloes!$A$2:$B$24,2,FALSE) -> Vet | J49: 126
A50: 124504 | B50: Eduardo Oliveira | C50: M | D50: 5 | E50: 2004 | F50: JV | G50: =VLOOKUP($D50,Escaloes!$A$2:$B$24,2,FALSE) -> Juv | J50: 48
A51: 124592 | B51: Paulo Cruz | C51: M | D51: 9 | E51: 1970 | F51: ACV | G51: =VLOOKUP($D51,Escaloes!$A$2:$B$24,2,FALSE) -> Vet | J51: 695
A52: 124609 | B52: Francisco Silva | C52: M | D52: 5 | E52: 2003 | F52: JV | G52: =VLOOKUP($D52,Escaloes!$A$2:$B$24,2,FALSE) -> Juv | J52: 58
A53: 124673 | B53: Deonilde Costa | C53: F | D53: 9 | E53: 1974 | F53: ACV | G53: =VLOOKUP($D53,Escaloes!$A$2:$B$24,2,FALSE) -> Vet | J53: 681
A54: 124699 | B54: Samuel Reis | C54: M | D54: 8 | E54: 1992 | F54: ACSM-L | G54: =VLOOKUP($D54,Escaloes!$A$2:$B$24,2,FALSE) -> Sen | J54: 674
A55: 124706 | B55: Benvinda Santos | C55: F | D55: 8 | E55: 1994 | F55: JV | G55: =VLOOKUP($D55,Escaloes!$A$2:$B$24,2,FALSE) -> Sen | J55: 16
A56: 124720 | B56: Tiago Freire | C56: M | D56: 8 | E56: 1994 | F56: JV | G56: =VLOOKUP($D56,Escaloes!$A$2:$B$24,2,FALSE) -> Sen | J56: 149
A57: 124731 | B57: Érica Mendes | C57: F | D57: 6 | E57: 2002 | F57: JV | G57: =VLOOKUP($D57,Escaloes!$A$2:$B$24,2,FALSE) -> Jun | J57: 49
A58: 124739 | B58: Pedro Santos | C58: M | D58: 8 | E58: 1986 | F58: JV | G58: =VLOOKUP($D58,Escaloes!$A$2:$B$24,2,FALSE) -> Sen | J58: 131
A59: 124742 | B59: Camila Carreira | C59: F | D59: 6 | E59: 2002 | F59: JV | G59: =VLOOKUP($D59,Escaloes!$A$2:$B$24,2,FALSE) -> Jun | J59: 19
A60: 124778 | B60: Joana Gameiro | C60: F | D60: 5 | E60: 2004 | F60: JV | G60: =VLOOKUP($D60,Escaloes!$A$2:$B$24,2,FALSE) -> Juv | J60: 75
A61: 124790 | B61: Leonel Rodrigues | C61: M | D61: 9 | E61: 1954 | F61: CDM-L | G61: =VLOOKUP($D61,Escaloes!$A$2:$B$24,2,FALSE) -> Vet | J61: 1050
A62: 124866 | B62: João Silva | C62: M | D62: 5 | E62: 2004 | F62: JV | G62: =VLOOKUP($D62,Escaloes!$A$2:$B$24,2,FALSE) -> Juv | J62: 88
A63: 124875 | B63: Carlos Carmino | C63: M | D63: 9 | E63: 1957 | F63: LMA-L | G63: =VLOOKUP($D63,Escaloes!$A$2:$B$24,2,FALSE) -> Vet | J63: 1267
A64: 125000 | B64: Pedro Fernandes | C64: M | D64: 6 | E64: 2002 | F64: CAMG | G64: =VLOOKUP($D64,Escaloes!$A$2:$B$24,2,FALSE) -> Jun | J64: 389
A65: 125092 | B65: Diogo Camacho | C65: M | D65: 5 | E65: 2004 | F65: JV | G65: =VLOOKUP($D65,Escaloes!$A$2:$B$24,2,FALSE) -> Juv | J65: 40
A66: 125145 | B66: Duarte Eusébio | C66: M | D66: 8 | E66: 1997 | F66: JV | G66: =VLOOKUP($D66,Escaloes!$A$2:$B$24,2,FALSE) -> Sen | J66: 44
A67: 125146 | B67: Inês Santos | C67: F | D67: 8 | E67: 1996 | F67: AAADP | G67: =VLOOKUP($D67,Escaloes!$A$2:$B$24,2,FALSE) -> Sen | J67: 481
A68: 125167 | B68: Oleks Lyashchenko | C68: M | D68: 8 | E68: 1997 | F68: JV | G68: =VLOOKUP($D68,Escaloes!$A$2:$B$24,2,FALSE) -> Sen | J68: 128
A69: 125177 | B69: Pedro Rodriges | C69: M | D69: 9 | E69: 1971 | F69: CAB-L | G69: =VLOOKUP($D69,Escaloes!$A$2:$B$24,2,FALSE) -> Vet | J69: 774
A70: 125230 | B70: Carolina André | C70: F | D70: 5 | E70: 2004 | F70: CAMG | G70: =VLOOKUP($D70,Escaloes!$A$2:$B$24,2,FALSE) -> Juv | J70: 338
A71: 125245 | B71: Miguel Ângelo Silva | C71: M | D71: 9 | E71: 1968 | F71: CANAZ | G71: =VLOOKUP($D71,Escaloes!$A$2:$B$24,2,FALSE) -> Vet | J71: 1263
A72: 125259 | B72: Nuno Gonçalves | C72: M | D72: 9 | E72: 1977 | F72: IND-L | G72: =VLOOKUP($D72,Escaloes!$A$2:$B$24,2,FALSE) -> Vet | J72: 1254
A73: 125266 | B73: Liliana Neves | C73: F | D73: 9 | E73: 1981 | F73: ACV | G73: =VLOOKUP($D73,Escaloes!$A$2:$B$24,2,FALSE) -> Vet | J73: 691
A74: 125272 | B74: Ana Moreira | C74: F | D74: 4 | E74: 2005 | F74: GDP-L | G74: =VLOOKUP($D74,Escaloes!$A$2:$B$24,2,FALSE) -> Ini | J74: 253
A75: 125273 | B75: Marta Vieira | C75: F | D75: 4 | E75: 2005 | F75: GDP-L | G75: =VLOOKUP($D75,Escaloes!$A$2:$B$24,2,FALSE) -> Ini | J75: 275
A76: 125277 | B76: Tomás Matos | C76: M | D76: 4 | E76: 2005 | F76: GDP-L | G76: =VLOOKUP($D76,Escaloes!$A$2:$B$24,2,FALSE) -> Ini | J76: 283
A77: 125283 | B77: João Cordeiro | C77: M | D77: 8 | E77: 1996 | F77: GDP-L | G77: =VLOOKUP($D77,Escaloes!$A$2:$B$24,2,FALSE) -> Sen | J77: 271
A78: 125318 | B78: Amilcar Brito | C78: M | D78: 9 | E78: 1984 | F78: IDV | G78: =VLOOKUP($D78,Escaloes!$A$2:$B$24,2,FALSE) -> Vet | J78: 941
A79: 125350 | B79: Mafalda Pires | C79: F | D79: 6 | E79: 2002 | F79: JV | G79: =VLOOKUP($D79,Escaloes!$A$2:$B$24,2,FALSE) -> Jun | J79: 106
A80: 125443 | B80: Tânia Alves | C80: F | D80: 8 | E80: 1991 | F80: CAMG | G80: =VLOOKUP($D80,Escaloes!$A$2:$B$24,2,FALSE) -> Sen | J80: 378
A81: 125465 | B81: Acácio Campos | C81: M | D81: 9 | E81: 1958 | F81: IDV | G81: =VLOOKUP($D81,Escaloes!$A$2:$B$24,2,FALSE) -> Vet | J81: 937
A82: 125468 | B82: Juliana Pereira | C82: F | D82: 8 | E82: 1995 | F82: JV | G82: =VLOOKUP($D82,Escaloes!$A$2:$B$24,2,FALSE) -> Sen | J82: 91
A83: 125502 | B83: Rui Cabeças | C83: M | D83: 9 | E83: 1972 | F83: IDV | G83: =VLOOKUP($D83,Escaloes!$A$2:$B$24,2,FALSE) -> Vet | J83: 974
A84: 125520 | B84: Blandina Lourenço | C84: F | D84: 9 | E84: 1979 | F84: ACV | G84: =VLOOKUP($D84,Escaloes!$A$2:$B$24,2,FALSE) -> Vet | J84: 678
A85: 125577 | B85: Alfredo Santos | C85: M | D85: 9 | E85: 1955 | F85: ACV | G85: =VLOOKUP($D85,Escaloes!$A$2:$B$24,2,FALSE) -> Vet | J85: 676
A86: 125642 | B86: Daria Melnyk | C86: F | D86: 7 | E86: 2000 | F86: JV | G86: =VLOOKUP($D86,Escaloes!$A$2:$B$24,2,FALSE) -> S23 | J86: 34
A87: 125642 | B87: Daria Melnyk | C87: F | D87: 7 | E87: 2000 | F87: JV | G87: =VLOOKUP($D87,Escaloes!$A$2:$B$24,2,FALSE) -> S23 | J87: 34
A88: 125652 | B88: Germano Capela | C88: M | D88: 9 | E88: 1967 | F88: CAB-L | G88: =VLOOKUP($D88,Escaloes!$A$2:$B$24,2,FALSE) -> Vet | J88: 767
A89: 125668 | B89: Mariana Ferreira | C89: F | D89: 5 | E89: 2003 | F89: JV | G89: =VLOOKUP($D89,Escaloes!$A$2:$B$24,2,FALSE) -> Juv | J89: 115
A90: 125701 | B90: Tiago Rosa | C90: M | D90: 5 | E90: 2003 | F90: JV | G90: =VLOOKUP($D90,Escaloes!$A$2:$B$24,2,FALSE) -> Juv | J90: 154
A91: 125732 | B91: Margarida Fonseca | C91: F | D91: 6 | E91: 2002 | F91: JV | G91: =VLOOKUP($D91,Escaloes!$A$2:$B$24,2,FALSE) -> Jun | J91: 111
A92: 125767 | B92: João Mota | C92: M | D92: 7 | E92: 1998 | F92: JV | G92: =VLOOKUP($D92,Escaloes!$A$2:$B$24,2,FALSE) -> S23 | J92: 85
A93: 125776 | B93: João Fonseca | C93: M | D93: 8 | E93: 1996 | F93: JV | G93: =VLOOKUP($D93,Escaloes!$A$2:$B$24,2,FALSE) -> Sen | J93: 82
A94: 125797 | B94: João Pinto | C94: M | D94: 8 | E94: 1997 | F94: JV | G94: =VLOOKUP($D94,Escaloes!$A$2:$B$24,2,FALSE) -> Sen | J94: 86
A95: 125800 | B95: José Carreira | C95: M | D95: 9 | E95: 1946 | F95: CVLIS | G95: =VLOOKUP($D95,Escaloes!$A$2:$B$24,2,FALSE) -> Vet | J95: 824
A96: 125815 | B96: Tomás Bonita | C96: M | D96: 4 | E96: 2005 | F96: JV | G96: =VLOOKUP($D96,Escaloes!$A$2:$B$24,2,FALSE) -> Ini | J96: 188
A97: 125831 | B97: Aquilino Ferreira | C97: M | D97: 9 | E97: 1958 | F97: ACV | G97: =VLOOKUP($D97,Escaloes!$A$2:$B$24,2,FALSE) -> Vet | J97: 677
A98: 125838 | B98: Bernardo Pacheco | C98: M | D98: 5 | E98: 2004 | F98: JV | G98: =VLOOKUP($D98,Escaloes!$A$2:$B$24,2,FALSE) -> Juv | J98: 17
A99: 125873 | B99: Luis Almeida | C99: M | D99: 9 | E99: 1974 | F99: CSPPVI | G99: =VLOOKUP($D99,Escaloes!$A$2:$B$24,2,FALSE) -> Vet | J99: 1054
A100: 125896 | B100: Patrícia Carreira | C100: F | D100: 8 | E100: 1991 | F100: GAUB | G100: =VLOOKUP($D100,Escaloes!$A$2:$B$24,2,FALSE) -> Sen | J100: 904
A101: 125906 | B101: José Gonçalves | C101: M | D101: 9 | E101: 1967 | F101: GAUB | G101: =VLOOKUP($D101,Escaloes!$A$2:$B$24,2,FALSE) -> Vet | J101: 892
A102: 125984 | B102: Manuel Carreira | C102: M | D102: 9 | E102: 1958 | F102: CVLIS | G102: =VLOOKUP($D102,Escaloes!$A$2:$B$24,2,FALSE) -> Vet | J102: 829
A103: 125986 | B103: Raquel Lourenço | C103: F | D103: 8 | E103: 1996 | F103: JV | G103: =VLOOKUP($D103,Escaloes!$A$2:$B$24,2,FALSE) -> Sen | J103: 136
A104: 126015 | B104: Diamantino Lopes | C104: M | D104: 9 | E104: 1968 | F104: GAC-L | G104: =VLOOKUP($D104,Escaloes!$A$2:$B$24,2,FALSE) -> Vet | J104: 838
A105: 126019 | B105: António Miranda | C105: M | D105: 9 | E105: 1947 | F105: CAOB | G105: =VLOOKUP($D105,Escaloes!$A$2:$B$24,2,FALSE) -> Vet | J105: 431
A106: 126021 | B106: Guilherme Pereira | C106: M | D106: 5 | E106: 2003 | F106: JV | G106: =VLOOKUP($D106,Escaloes!$A$2:$B$24,2,FALSE) -> Juv | J106: 62
A107: 126045 | B107: Luís Guarda | C107: M | D107: 9 | E107: 1964 | F107: GAC-L | G107: =VLOOKUP($D107,Escaloes!$A$2:$B$24,2,FALSE) -> Vet | J107: 852
A108: 126061 | B108: Tiago Silva | C108: M | D108: 5 | E108: 2004 | F108: GAC-L | G108: =VLOOKUP($D108,Escaloes!$A$2:$B$24,2,FALSE) -> Juv | J108: 862
A109: 126065 | B109: Nuno Casalinho | C109: M | D109: 9 | E109: 1979 | F109: GAC-L | G109: =VLOOKUP($D109,Escaloes!$A$2:$B$24,2,FALSE) -> Vet | J109: 854
A110: 126070 | B110: Cristóvão Gomes | C110: M | D110: 9 | E110: 1981 | F110: CVLIS | G110: =VLOOKUP($D110,Escaloes!$A$2:$B$24,2,FALSE) -> Vet | J110: 1055
A111: 126100 | B111: Micael Rodrigues | C111: M | D111: 8 | E111: 1993 | F111: GAUB | G111: =VLOOKUP($D111,Escaloes!$A$2:$B$24,2,FALSE) -> Sen | J111: 1176
A112: 126149 | B112: Octávio Mariano | C112: M | D112: 9 | E112: 1971 | F112: CCRDB | G112: =VLOOKUP($D112,Escaloes!$A$2:$B$24,2,FALSE) -> Vet | J112: 1089
A113: 126151 | B113: Luís Gomes | C113: M | D113: 9 | E113: 1981 | F113: GAC-L | G113: =VLOOKUP($D113,Escaloes!$A$2:$B$24,2,FALSE) -> Vet | J113: 851
A114: 126176 | B114: José Rato | C114: M | D114: 9 | E114: 1958 | F114: CCRDB | G114: =VLOOKUP($D114,Escaloes!$A$2:$B$24,2,FALSE) -> Vet | J114: 1086
A115: 126196 | B115: António Francisco | C115: M | D115: 9 | E115: 1964 | F115: GAC-L | G115: =VLOOKUP($D115,Escaloes!$A$2:$B$24,2,FALSE) -> Vet | J115: 837
A116: 126218 | B116: Aníbal Silva | C116: M | D116: 9 | E116: 1963 | F116: CCRDB | G116: =VLOOKUP($D116,Escaloes!$A$2:$B$24,2,FALSE) -> Vet | J116: 1183
A117: 126222 | B117: Juliana Brites | C117: F | D117: 7 | E117: 2000 | F117: JV | G117: =VLOOKUP($D117,Escaloes!$A$2:$B$24,2,FALSE) -> S23 | J117: 90
A118: 126230 | B118: Telmo Pedroso | C118: M | D118: 9 | E118: 1973 | F118: CCRDB | G118: =VLOOKUP($D118,Escaloes!$A$2:$B$24,2,FALSE) -> Vet | J118: 1092
A119: 126238 | B119: Carlos Duarte | C119: M | D119: 9 | E119: 1965 | F119: CCRDB | G119: =VLOOKUP($D119,Escaloes!$A$2:$B$24,2,FALSE) -> Vet | J119: 1184
A120: 126244 | B120: Rui Pereira | C120: M | D120: 9 | E120: 1957 | F120: IND-L | G120: =VLOOKUP($D120,Escaloes!$A$2:$B$24,2,FALSE) -> Vet | J120: 997
A121: 126245 | B121: José Martins | C121: M | D121: 9 | E121: 1965 | F121: CVLIS | G121: =VLOOKUP($D121,Escaloes!$A$2:$B$24,2,FALSE) -> Vet | J121: 827
A122: 126251 | B122: Luis Conceição | C122: M | D122: 9 | E122: 1960 | F122: CCRDB | G122: =VLOOKUP($D122,Escaloes!$A$2:$B$24,2,FALSE) -> Vet | J122: 1087
A123: 126276 | B123: Bernardo Coelho | C123: M | D123: 5 | E123: 2003 | F123: GAUB | G123: =VLOOKUP($D123,Escaloes!$A$2:$B$24,2,FALSE) -> Juv | J123: 871
A124: 126283 | B124: Anabela Fernandes | C124: F | D124: 9 | E124: 1970 | F124: GAUB | G124: =VLOOKUP($D124,Escaloes!$A$2:$B$24,2,FALSE) -> Vet | J124: 866
A125: 126347 | B125: Diogo Duarte | C125: M | D125: 8 | E125: 1988 | F125: CCRDB | G125: =VLOOKUP($D125,Escaloes!$A$2:$B$24,2,FALSE) -> Sen | J125: 1084
A126: 126360 | B126: André Veloso | C126: M | D126: 9 | E126: 1978 | F126: CPRAB | G126: =VLOOKUP($D126,Escaloes!$A$2:$B$24,2,FALSE) -> Vet | J126: 636
A127: 126431 | B127: Carlos Soares | C127: M | D127: 9 | E127: 1968 | F127: CCRDB | G127: =VLOOKUP($D127,Escaloes!$A$2:$B$24,2,FALSE) -> Vet | J127: 1185
A128: 126452 | B128: Mariana Vidinha | C128: F | D128: 5 | E128: 2004 | F128: JV | G128: =VLOOKUP($D128,Escaloes!$A$2:$B$24,2,FALSE) -> Juv | J128: 116
A129: 126459 | B129: Rui Duarte | C129: M | D129: 9 | E129: 1983 | F129: ACV | G129: =VLOOKUP($D129,Escaloes!$A$2:$B$24,2,FALSE) -> Vet | J129: 697
A130: 126562 | B130: Rui Lucas | C130: M | D130: 8 | E130: 1989 | F130: ACB-L | G130: =VLOOKUP($D130,Escaloes!$A$2:$B$24,2,FALSE) -> Sen | J130: 536
A131: 126574 | B131: Rui Prazeres | C131: M | D131: 9 | E131: 1978 | F131: ACSM-L | G131: =VLOOKUP($D131,Escaloes!$A$2:$B$24,2,FALSE) -> Vet | J131: 673
A132: 126591 | B132: Miguel Neves Matias | C132: M | D132: 9 | E132: 1974 | F132: CSCRFC | G132: =VLOOKUP($D132,Escaloes!$A$2:$B$24,2,FALSE) -> Vet | J132: 1276
A133: 126595 | B133: Gustavo Gomes | C133: M | D133: 5 | E133: 2003 | F133: CAMG | G133: =VLOOKUP($D133,Escaloes!$A$2:$B$24,2,FALSE) -> Juv | J133: 350
A134: 126632 | B134: Nuno Santos | C134: M | D134: 9 | E134: 1977 | F134: CSCRFC | G134: =VLOOKUP($D134,Escaloes!$A$2:$B$24,2,FALSE) -> Vet | J134: 1098
A135: 126647 | B135: Nuno Vitorino | C135: M | D135: 8 | E135: 1986 | F135: ADRM | G135: =VLOOKUP($D135,Escaloes!$A$2:$B$24,2,FALSE) -> Sen | J135: 709
A136: 126648 | B136: Luís Quinta-nova | C136: M | D136: 9 | E136: 1966 | F136: GCA | G136: =VLOOKUP($D136,Escaloes!$A$2:$B$24,2,FALSE) -> Vet | J136: 922
A137: 126683 | B137: Fábio Durão | C137: M | D137: 8 | E137: 1988 | F137: GAC-L | G137: =VLOOKUP($D137,Escaloes!$A$2:$B$24,2,FALSE) -> Sen | J137: 842
A138: 126699 | B138: Rodrigo Ferreira | C138: M | D138: 7 | E138: 2000 | F138: GAUB | G138: =VLOOKUP($D138,Escaloes!$A$2:$B$24,2,FALSE) -> S23 | J138: 908
A139: 126712 | B139: Hélder Pinto | C139: M | D139: 9 | E139: 1976 | F139: CCRDB | G139: =VLOOKUP($D139,Escaloes!$A$2:$B$24,2,FALSE) -> Vet | J139: 1085
A140: 126723 | B140: José Figueira | C140: M | D140: 9 | E140: 1969 | F140: CVLIS | G140: =VLOOKUP($D140,Escaloes!$A$2:$B$24,2,FALSE) -> Vet | J140: 826
A141: 126744 | B141: Nuno Lorvão | C141: M | D141: 9 | E141: 1970 | F141: CCRDB | G141: =VLOOKUP($D141,Escaloes!$A$2:$B$24,2,FALSE) -> Vet | J141: 1088
A142: 126788 | B142: Rafael Lopes | C142: M | D142: 7 | E142: 2000 | F142: JV | G142: =VLOOKUP($D142,Escaloes!$A$2:$B$24,2,FALSE) -> S23 | J142: 132
A143: 126831 | B143: Henrique Alípio | C143: M | D143: 5 | E143: 2003 | F143: JV | G143: =VLOOKUP($D143,Escaloes!$A$2:$B$24,2,FALSE) -> Juv | J143: 64
A144: 126832 | B144: José Carreira | C144: M | D144: 3 | E144: 2008 | F144: GAUB | G144: =VLOOKUP($D144,Escaloes!$A$2:$B$24,2,FALSE) -> Inf | J144: 891
A145: 126849 | B145: Beatriz Castanheira | C145: F | D145: 5 | E145: 2004 | F145: GDAA | G145: =VLOOKUP($D145,Escaloes!$A$2:$B$24,2,FALSE) -> Juv | J145: 592
A146: 126862 | B146: André Pimenta | C146: M | D146: 6 | E146: 2001 | F146: JV | G146: =VLOOKUP($D146,Escaloes!$A$2:$B$24,2,FALSE) -> Jun | J146: 9
A147: 126865 | B147: Diana Almeida | C147: F | D147: 6 | E147: 2002 | F147: GDP-L | G147: =VLOOKUP($D147,Escaloes!$A$2:$B$24,2,FALSE) -> Jun | J147: 261
A148: 126967 | B148: Vítor Dinis | C148: M | D148: 9 | E148: 1972 | F148: IDV | G148: =VLOOKUP($D148,Escaloes!$A$2:$B$24,2,FALSE) -> Vet | J148: 982
A149: 127000 | B149: Miguel Costa | C149: M | D149: 6 | E149: 2001 | F149: JV | G149: =VLOOKUP($D149,Escaloes!$A$2:$B$24,2,FALSE) -> Jun | J149: 121
A150: 127034 | B150: Carlos Alves | C150: M | D150: 8 | E150: 1997 | F150: ACV | G150: =VLOOKUP($D150,Escaloes!$A$2:$B$24,2,FALSE) -> Sen | J150: 680
A151: 127061 | B151: Sergiy Chonka | C151: M | D151: 9 | E151: 1973 | F151: ACV | G151: =VLOOKUP($D151,Escaloes!$A$2:$B$24,2,FALSE) -> Vet | J151: 699
A152: 127111 | B152: João Santos | C152: M | D152: 9 | E152: 1971 | F152: GCA | G152: =VLOOKUP($D152,Escaloes!$A$2:$B$24,2,FALSE) -> Vet | J152: 921
A153: 127122 | B153: Joana Alberto | C153: F | D153: 7 | E153: 1998 | F153: GAUB | G153: =VLOOKUP($D153,Escaloes!$A$2:$B$24,2,FALSE) -> S23 | J153: 1174
A154: 127142 | B154: Diana Carreira | C154: F | D154: 8 | E154: 1988 | F154: ADRM | G154: =VLOOKUP($D154,Escaloes!$A$2:$B$24,2,FALSE) -> Sen | J154: 702
A155: 127144 | B155: Rute Mota | C155: F | D155: 7 | E155: 1999 | F155: GAUB | G155: =VLOOKUP($D155,Escaloes!$A$2:$B$24,2,FALSE) -> S23 | J155: 911
A156: 127183 | B156: Diana Morgado | C156: F | D156: 8 | E156: 1989 | F156: CAMG | G156: =VLOOKUP($D156,Escaloes!$A$2:$B$24,2,FALSE) -> Sen | J156: 345
A157: 127276 | B157: Duarte Neves | C157: M | D157: 5 | E157: 2004 | F157: GAUB | G157: =VLOOKUP($D157,Escaloes!$A$2:$B$24,2,FALSE) -> Juv | J157: 878
A158: 127290 | B158: Sofia Mota | C158: F | D158: 4 | E158: 2006 | F158: GAUB | G158: =VLOOKUP($D158,Escaloes!$A$2:$B$24,2,FALSE) -> Ini | J158: 915
A159: 127366 | B159: Dario Cabete | C159: M | D159: 9 | E159: 1973 | F159: CCRDB | G159: =VLOOKUP($D159,Escaloes!$A$2:$B$24,2,FALSE) -> Vet | J159: 1186
A160: 127373 | B160: Nuno Cordeiro | C160: M | D160: 4 | E160: 2006 | F160: JV | G160: =VLOOKUP($D160,Escaloes!$A$2:$B$24,2,FALSE) -> Ini | J160: 127
A161: 127392 | B161: Sara Conceição | C161: F | D161: 4 | E161: 2006 | F161: CANAZ | G161: =VLOOKUP($D161,Escaloes!$A$2:$B$24,2,FALSE) -> Ini | J161: 1161
A162: 127428 | B162: Laura Ramos | C162: F | D162: 6 | E162: 2002 | F162: JV | G162: =VLOOKUP($D162,Escaloes!$A$2:$B$24,2,FALSE) -> Jun | J162: 98
A163: 127452 | B163: Sérgio Marcelino | C163: M | D163: 9 | E163: 1963 | F163: GAUB | G163: =VLOOKUP($D163,Escaloes!$A$2:$B$24,2,FALSE) -> Vet | J163: 913
A164: 127554 | B164: Cristóvão Jorge | C164: M | D164: 9 | E164: 1979 | F164: CAMG | G164: =VLOOKUP($D164,Escaloes!$A$2:$B$24,2,FALSE) -> Vet | J164: 342
A165: 127572 | B165: Marco Francisco | C165: M | D165: 9 | E165: 1983 | F165: ADRM | G165: =VLOOKUP($D165,Escaloes!$A$2:$B$24,2,FALSE) -> Vet | J165: 707
A166: 127574 | B166: Helder Pereira | C166: M | D166: 9 | E166: 1979 | F166: CANAZ | G166: =VLOOKUP($D166,Escaloes!$A$2:$B$24,2,FALSE) -> Vet | J166: 1274
A167: 127590 | B167: Luís Silva | C167: M | D167: 9 | E167: 1970 | F167: LMA-L | G167: =VLOOKUP($D167,Escaloes!$A$2:$B$24,2,FALSE) -> Vet | J167: 1011
A168: 127597 | B168: Carolina Caseiro | C168: F | D168: 5 | E168: 2004 | F168: JV | G168: =VLOOKUP($D168,Escaloes!$A$2:$B$24,2,FALSE) -> Juv | J168: 22
A169: 127632 | B169: Duarte Santos | C169: M | D169: 6 | E169: 2002 | F169: CAOB | G169: =VLOOKUP($D169,Escaloes!$A$2:$B$24,2,FALSE) -> Jun | J169: 434
A170: 127649 | B170: Carla Leite | C170: F | D170: 9 | E170: 1972 | F170: CSEM | G170: =VLOOKUP($D170,Escaloes!$A$2:$B$24,2,FALSE) -> Vet | J170: 1285
A171: 127660 | B171: Vasco Marques | C171: M | D171: 9 | E171: 1972 | F171: CVLIS | G171: =VLOOKUP($D171,Escaloes!$A$2:$B$24,2,FALSE) -> Vet | J171: 1200
A172: 127691 | B172: Daniel Lourenço | C172: M | D172: 9 | E172: 1974 | F172: CAB-L | G172: =VLOOKUP($D172,Escaloes!$A$2:$B$24,2,FALSE) -> Vet | J172: 764
A173: 127703 | B173: Ramiro Rodrigues | C173: M | D173: 9 | E173: 1957 | F173: GAUB | G173: =VLOOKUP($D173,Escaloes!$A$2:$B$24,2,FALSE) -> Vet | J173: 906
A174: 127704 | B174: Jorge Silva | C174: M | D174: 9 | E174: 1967 | F174: GAUB | G174: =VLOOKUP($D174,Escaloes!$A$2:$B$24,2,FALSE) -> Vet | J174: 890
A175: 127765 | B175: João Graça | C175: M | D175: 9 | E175: 1955 | F175: AMSGC | G175: =VLOOKUP($D175,Escaloes!$A$2:$B$24,2,FALSE) -> Vet | J175: 715
A176: 127782 | B176: Lucidio Dias | C176: M | D176: 9 | E176: 1957 | F176: AMSGC | G176: =VLOOKUP($D176,Escaloes!$A$2:$B$24,2,FALSE) -> Vet | J176: 718
A177: 127783 | B177: Nelson Marques | C177: M | D177: 9 | E177: 1977 | F177: AMSGC | G177: =VLOOKUP($D177,Escaloes!$A$2:$B$24,2,FALSE) -> Vet | J177: 722
A178: 127785 | B178: João Sintra | C178: M | D178: 9 | E178: 1958 | F178: AMSGC | G178: =VLOOKUP($D178,Escaloes!$A$2:$B$24,2,FALSE) -> Vet | J178: 716
A179: 127789 | B179: Joel Santos | C179: M | D179: 9 | E179: 1985 | F179: AMSGC | G179: =VLOOKUP($D179,Escaloes!$A$2:$B$24,2,FALSE) -> Vet | J179: 717
A180: 127790 | B180: Ricardo Nunes | C180: M | D180: 8 | E180: 1991 | F180: AMSGC | G180: =VLOOKUP($D180,Escaloes!$A$2:$B$24,2,FALSE) -> Sen | J180: 724
A181: 127833 | B181: Pedro Almeida | C181: M | D181: 3 | E181: 2008 | F181: JV | G181: =VLOOKUP($D181,Escaloes!$A$2:$B$24,2,FALSE) -> Inf | J181: 202
A182: 127938 | B182: Rita Andrade | C182: F | D182: 4 | E182: 2005 | F182: IND-L | G182: =VLOOKUP($D182,Escaloes!$A$2:$B$24,2,FALSE) -> Ini | J182: 995
A183: 128028 | B183: Alexandre Marques | C183: M | D183: 6 | E183: 2002 | F183: GAUB | G183: =VLOOKUP($D183,Escaloes!$A$2:$B$24,2,FALSE) -> Jun | J183: 865
A184: 128032 | B184: Andreia Pereira | C184: F | D184: 8 | E184: 1990 | F184: GRC | G184: =VLOOKUP($D184,Escaloes!$A$2:$B$24,2,FALSE) -> Sen | J184: 926
A185: 128045 | B185: M. João Bartolomeu | C185: F | D185: 5 | E185: 2004 | F185: ACB-L | G185: =VLOOKUP($D185,Escaloes!$A$2:$B$24,2,FALSE) -> Juv | J185: 559
A186: 128056 | B186: Carina Matias | C186: F | D186: 9 | E186: 1984 | F186: CAB-L | G186: =VLOOKUP($D186,Escaloes!$A$2:$B$24,2,FALSE) -> Vet | J186: 760
A187: 128065 | B187: Joana Carlos | C187: F | D187: 7 | E187: 1999 | F187: JV | G187: =VLOOKUP($D187,Escaloes!$A$2:$B$24,2,FALSE) -> S23 | J187: 73
A188: 128108 | B188: Tiago Gonçalves | C188: M | D188: 6 | E188: 2002 | F188: BA | G188: =VLOOKUP($D188,Escaloes!$A$2:$B$24,2,FALSE) -> Jun | J188: 414
A189: 128109 | B189: Filipa Gonçalves | C189: F | D189: 3 | E189: 2008 | F189: BA | G189: =VLOOKUP($D189,Escaloes!$A$2:$B$24,2,FALSE) -> Inf | J189: 402
A190: 128150 | B190: Hugo Barqueiro | C190: M | D190: 9 | E190: 1982 | F190: GAUB | G190: =VLOOKUP($D190,Escaloes!$A$2:$B$24,2,FALSE) -> Vet | J190: 883
A191: 128160 | B191: Tiago Guilherme | C191: M | D191: 7 | E191: 1999 | F191: JV | G191: =VLOOKUP($D191,Escaloes!$A$2:$B$24,2,FALSE) -> S23 | J191: 151
A192: 128202 | B192: Bruno Gaspar | C192: M | D192: 9 | E192: 1982 | F192: ACV | G192: =VLOOKUP($D192,Escaloes!$A$2:$B$24,2,FALSE) -> Vet | J192: 679
A193: 128223 | B193: Rafael Costa | C193: M | D193: 5 | E193: 2003 | F193: JV | G193: =VLOOKUP($D193,Escaloes!$A$2:$B$24,2,FALSE) -> Juv | J193: 177
A194: 128232 | B194: Otelo Pereira | C194: M | D194: 9 | E194: 1975 | F194: GAUB | G194: =VLOOKUP($D194,Escaloes!$A$2:$B$24,2,FALSE) -> Vet | J194: 903
A195: 128288 | B195: Lília Martins | C195: F | D195: 8 | E195: 1997 | F195: JV | G195: =VLOOKUP($D195,Escaloes!$A$2:$B$24,2,FALSE) -> Sen | J195: 101
A196: 128311 | B196: André Ramos | C196: M | D196: 8 | E196: 1986 | F196: CAB-L | G196: =VLOOKUP($D196,Escaloes!$A$2:$B$24,2,FALSE) -> Sen | J196: 757
A197: 128315 | B197: Márcio Alves | C197: M | D197: 6 | E197: 2001 | F197: CAMG | G197: =VLOOKUP($D197,Escaloes!$A$2:$B$24,2,FALSE) -> Jun | J197: 360
A198: 128353 | B198: Maria Esteves | C198: F | D198: 6 | E198: 2001 | F198: CAMG | G198: =VLOOKUP($D198,Escaloes!$A$2:$B$24,2,FALSE) -> Jun | J198: 361
A199: 128408 | B199: Mónica Rosa | C199: F | D199: 9 | E199: 1978 | F199: CAMR | G199: =VLOOKUP($D199,Escaloes!$A$2:$B$24,2,FALSE) -> Vet | J199: 796
A200: 128412 | B200: Hugo Duarte | C200: M | D200: 9 | E200: 1984 | F200: GAC-L | G200: =VLOOKUP($D200,Escaloes!$A$2:$B$24,2,FALSE) -> Vet | J200: 846
... 1096 more rows

Sheet Competicoes (hidden)
A1: Codigo | B1: Local | C1: Tipo | D1: Data | E1: Designacao | F1: Época
A2: 2003003 | B2: Pombal | C2: PC-Pista Coberta | D2: 2020-01-11 | E2: Campeonato Nacional de Juvenis Provas Combinadas em Pista Coberta | F2: 2019-20 | J2: Toneio de Abertura Pista
A3: 2003004 | B3: Pombal | C3: PC-Pista Coberta | D3: 2020-01-11 | E3: Campeonato Nacional de Juniores Provas Combinadas em Pista Coberta | F3: 2019-20 | J3: Torn. Jovem P. Coberta
A4: 2003008 | B4: Braga / Pombal | C4: PC-Pista Coberta | D4: 2020-02-01 | E4: Campeonato Nacional de Clubes em Pista Coberta - Apuramento | F4: 2019-20 | J4: Distrital Combinadas PC + Extras
A5: 2003009 | B5: Braga | C5: PC-Pista Coberta | D5: 2020-02-08 | E5: Campeonato Nacional de Juvenis em Pista Coberta | F5: 2019-20 | J5: Inter Associações Inf
A6: 2003011 | B6: Pombal | C6: PC-Pista Coberta | D6: 2020-02-15 | E6: Campeonato Nacional de Juniores em Pista Coberta | F6: 2019-20 | J6: Torneio de Pista Coberta
A7: 2012003 | B7: Lisboa | C7: AL-Pista Ar Livre | D7: 2020-01-04 | E7: Campeonato Regional Lançamentos Longos | F7: 2019-20 | J7: Distrital Sub-18 - Pista Coberta
A8: 2012004 | B8: Lisboa | C8: PC-Pista Coberta | D8: 2020-01-11 | E8: Campeonato Regional Inverno PC - Absolutos | F8: 2019-20 | J8: Distrital Absoluto Pista Coberta
A9: 2020005 | B9: Alpiarça | C9: PC-Pista Coberta | D9: 2019-12-21 | E9: Torneio de Abertura Juv, Jun, Sem | F9: 2019-20 | J9: Torneio Lançamentos Longos - 1ªInf/Ini
A10: 2020006 | B10: Pombal/Alpiaça | C10: PC-Pista Coberta | D10: 2019-12-22 | E10: Campeonato Regional Sub 18 P. Coberta | F10: 2019-20 | J10: Meeting António Monteiro
A11: 2020008 | B11: Alpiarça | C11: PC-Pista Coberta | D11: 2020-01-04 | E11: Triatlo Técnico Jovem Regional | F11: 2019-20 | J11: Distrital Lançamentos Longos - 1ª Jorn
A12: 2024001 | B12: Óbidos | C12: AL-Pista (Ar Livre) | D12: 2019-11-09 | E12: Torneio de Abertura Prof. Mário Avelino | F12: 2019-20 | J12: Triatlo Técnico Distrital Sub-16-2ªIni
A13: 2024002 | B13: Marinha Grande | C13: AL-Pista (Ar Livre) | D13: 2019-11-23 | E13: Torneio de Preparação de Pista | F13: 2019-20 | J13: Triatlo Técnico Distrital - Sub-18
A14: 2024003 | B14: Marinha Grande | C14: CM-Corta Mato | D14: 2019-12-01 | E14: 14.º Corta-mato Jovem Rota do Vidro | F14: 2019-20 | J14: Jornadas Lançamentos - Etapa 1
A15: 2024004 | B15: Leiria | C15: AL-Pista (Ar Livre) | D15: 2019-12-07 | E15: Torneio de Preparação de Lançamentos | F15: 2019-20 | J15: Distrital Sub-20 em Pista Coberta
A16: 2024005 | B16: Pombal | C16: PC-Pista (Coberta) | D16: 2019-12-14 | E16: Campeonato Distrital Provas Combinadas - PC + Provas Extras | F16: 2019-20 | J16: Meeting Cidade Pombal
A17: 2024006 | B17: Pombal | C17: PC-Pista (Coberta) | D17: 2019-12-21 | E17: Triatlo Técnico Distrital - Sub-16 - 2ª Jornada CD Sub-16 -PC | F17: 2019-20 | J17: Camp. Portugal Pista Coberta
A18: 2024007 | B18: Pombal | C18: PC-Pista (Coberta) | D18: 2019-12-22 | E18: 1ª Jornada Campeonto Distrital Sub-18 - PC | F18: 2019-20 | J18: Camp. Nacional Juvenis Pista Coberta
A19: 2024008 | B19: Pombal | C19: PC-Pista (Coberta) | D19: 2019-12-29 | E19: Campeonato Distrital de Sub-20 + Provas Extra | F19: 2019-20 | J19: Distrital Lançamentos Longos - 2ª Jorn
A20: 2024009 | B20: Pombal | C20: PC-Pista (Coberta) | D20: 2019-12-28 | E20: Triatlo Técnico Distrital Sub18 - 2ª Jornada CD Sub-18 | F20: 2019-20 | J20: Triatlo Técnico Infantis
A21: 2024010 | B21: Pombal | C21: PC-Pista (Coberta) | D21: 2020-01-04 | E21: 2ª Jornada Campeonato Distrital Sub-20 -PC + P. Extras Absolutos | F21: 2019-20 | J21: Jornadas Lançamentos - Etapa 2
A22: 2024011 | B22: Pombal | C22: PC-Pista (Coberta) | D22: 2020-01-05 | E22: 3ª Jornada Campeonato Distrital Sub-18 PC | F22: 2019-20 | J22: Jornadas Lançamentos - Etapa 3
A23: 2024012 | B23: Leiria | C23: ES-Estrada | D23: 2020-01-02 | E23: 5º Challenge Leiria em Marcha Atlética + CD Marcha | F23: 2019-20 | J23: Camp. Nacional Esperanças Pista Coberta
A24: 2024013 | B24: Óbidos | C24: CM-Corta Mato | D24: 2020-01-12 | E24: 16º Corta Mato Vila de Óbidos | F24: 2019-20 | J24: Meeting Jovem Cidade Pombal 4ª Inf/Ini
A25: 2024014 | B25: Pombal | C25: PC-Pista (Coberta) | D25: 2020-01-11 | E25: Provas Extra de Salto com Vara | F25: 2019-20 | J25: Campeonato Nacional Universitário PC
A26: 2024015 | B26: Pombal | C26: PC-Pista (Coberta) | D26: 2020-01-18 | E26: 4ª Jornada Campeonato Distrital de Sub-18 - PC | F26: 2019-20 | J26: Torneio Jovem da Nazaré 5ª Inf/Ini
A27: 2024016 | B27: Marinha Grande | C27: AL-Pista (Ar Livre) | D27: 2020-01-18 | E27: Provas Preparação Lançamentos Longos | F27: 2019-20 | J27: Distrital Provas Combinadas - A. Completo
A28: 2024017 | B28: Pombal | C28: PC-Pista (Coberta) | D28: 2020-01-19 | E28: 3ª Jornada Campeonato Distrital de Sub-20 - PC | F28: 2019-20 | J28: IMT - Cidade Cristal
A29: 2024018 | B29: Marinha Grande | C29: AL-Pista (Ar Livre) | D29: 2020-01-19 | E29: Campeonato Distrital Lançamentos Longos (Inf/Inic.) | F29: 2019-20 | J29: Atleta Completo Distrital 7ª Inf/Ini
A30: 2024019 | B30: Maceira | C30: AL-Pista (Ar Livre) | D30: 2020-01-19 | E30: Maceira a Marchar | F30: 2019-20 | J30: Meeting Jovem CAMG e 8ª Inf/Ini
A31: 2024020 | B31: Pombal | C31: PC-Pista (Coberta) | D31: 2020-01-25 | E31: Campeonato Distrital Absoluto em Pista Coberta | F31: 2019-20 | J31: Atleta Completo Nacional (Iniciados)
A32: 2024021 | B32: Porto de Mós | C32: ES-Estrada | D32: 2020-01-26 | E32: Grande Prémio Marcha Pedreiras | F32: 2019-20 | J32: Camp Nacional Juvenis Provas Combinadas
A33: 2024022 | B33: Ansião | C33: CM-Corta Mato | D33: 2020-02-02 | E33: CD Corta Mato Curto (Sub-20/Sen/Vet) e CD Corta Mato Infantis e Iniciados | F33: 2019-20 | J33: Triatlo Jovem Nacional
A34: 2024023 | B34: Marinha Grande | C34: AL-Pista (Ar Livre) | D34: 2020-02-08 | E34: CD Lançamentos Longos - 1ª Jornada CD Sub-18 Ar Livre | F34: 2019-20 | J34: Camp Nacional Lançamentos Longos
A35: 2024024 | B35: Pombal | C35: PC-Pista (Coberta) | D35: 2020-02-08 | E35: Meeting Cidade de Pombal | F35: 2019-20 | J35: Camp Nacional Lançamentos Longos Sub-18
A36: 2024025 | B36: Pombal | C36: PC-Pista (Coberta) | D36: 2020-02-09 | E36: Triatlo Técnico Infantis + 2ª Jornada CD Infantis + P extra Benjamins | F36: 2019-20 | J36: Camp Nacional Juniores em Pista Coberta
A37: 2024026 | B37: Pombal | C37: PC-Pista (Coberta) | D37: 2020-02-16 | E37: Meeting António Monteiro | F37: 2019-20 | J37: Apuramento Clubes Pista Coberta
A38: 2024027 | B38: Pombal | C38: PC-Pista (Coberta) | D38: 2020-02-23 | E38: Meeting Jovem Cidade Pombal - 4ª Jornada CD Infantis e Iniciados | F38: 2019-20 | J38: Camp Nacional Sub18 Combinadas
A39: 2024028 | B39: Pero Neto - Mª Grande | C39: CM-Corta Mato | D39: 2020-02-23 | E39: 1º Corta-Mato Pero Neto / Monica Rosa + CD Corta-Mato Sub-18, Sub-20 e Longo Sen e Vet. | F39: 2019-20 | J39: Torneio Iberico Combinadas
A40: 2024029 | B40: Leiria | C40: AL-Pista (Ar Livre) | D40: 2020-02-22 | E40: Jornadas de Lançamentos - Etapa 1 | F40: 2019-20 | J40: Camp Portugal Pista Coberta
A41: 2030005 | B41: Coimbra | C41: AL-Pista Ar Livre | D41: 2019-12-07 | E41: TORNEIO DE PISTA INFANTIS | F41: 2019-20 | J41: Camp Nacional Clubes PC
A42: 2038004 | B42: Lourosa | C42: AL-Pista Ar Livre | D42: 2019-12-28 | E42: Campeonato Distrital Provas Combinadas | F42: 2019-20 | J42: Olimpico Jovem Distrital
A43: 2038005 | B43: Lourosa | C43: AL-Pista Ar Livre | D43: 2019-12-28 | E43: Campeonato Distrital Juvenis | F43: 2019-20 | J43: Meeting Fernando Alves
A44: 2038006 | B44: Vagos | C44: AL-Pista Ar Livre | D44: 2020-01-04 | E44: Campeonato Distrital Master | F44: 2019-20 | J44: Meeting Internacional Jovem de Leiria
A45: 2038015 | B45: Lourosa | C45: AL-Pista Ar Livre | D45: 2020-02-22 | E45: Torneio Inter Associações e Torneio Saúl Fernandes | F45: 2019-20 | J45: Campeonato Distritais de Sub-20
A46: 2047011 | B46: Braga | C46: PC-Pista Coberta | D46: 2020-01-25 | E46: Campeonato Absoluto do Norte em PC | F46: 2019-20 | J46: Inter Associações Inf
A47: 2090023 | B47: Funchal / R. Brava | C47: AL-Pista Ar Livre | D47: 2020-01-25 | E47: Master Athletics - International Meeting 2020 | F47: 2019-20 | J47: Campeonato Nacional Clubes - Apuramento
A48: 2003012 | B48: Braga | C48: PC-Pista (Coberta) | D48: 2020-02-23 | E48: Campeonato Nacional Clubes em Pista Coberta - I Divisão | F48: 2019-20 | J48: Olimpico Jovem Nacional
A49: 2003005 | B49: Coimbra | C49: AL-Pista Ar Livre | D49: 2020-02-29 | E49: TORNEIO DE PISTA INFANTIS | F49: 2019-20 | J49: Campeonato Distrital de Esperanças
A50: 2003014 | B50: Pombal | C50: PC-Pista Coberta | D50: 2020-03-01 | E50: Campeonato de Portugal em Pista Coberta | F50: 2019-20 | J50: Torneio Lançamentos Feijó
A51: 2003015 | B51: Pombal | C51: PC-Pista Coberta | D51: 2020-02-29 | E51: Campeonato de Portugal Provas Combinadas em Pista Coberta | F51: 2019-20 | J51: Meeting Marquês de Pombal
A52: 2003016 | B52: Braga | C52: PC-Pista Coberta | D52: 2020-03-07 | E52: Campeonato Nacional de Esperanças em Pista Coberta | F52: 2019-20 | J52: Meeting Cidade de Lisboa
A53: 2003017 | B53: Vagos | C53: AL-Pista Ar Livre | D53: 2020-03-07 | E53: Campeonato Nacional Lançamentos Longos | F53: 2019-20 | J53: Campeonato Distrital Sub-18
A54: 2003018 | B54: Vagos | C54: AL-Pista Ar Livre | D54: 2020-03-08 | E54: Campeonato Nacional Lançamentos Longos Sub-18 Juvenis | F54: 2019-20 | J54: Campeonato Nacional de Esperanças
A55: 2020016 | B55: Alpiarça | C55: PC-Pista Coberta | D55: 2020-03-07 | E55: Torneio de Salto em Altura em Sala | F55: 2019-20 | J55: Campeonato Distrital de Infantis
F56: 2019-20 | J56: Jornadas de Lançamentos - Etapa 4
F57: 2019-20 | J57: Campeonato Distrital de Iniciados
F58: 2019-20 | J58: Campeonato Nacional Juniores (sub20)
F59: 2019-20 | J59: Copa Ibérica Juvenis
F60: 2019-20 | J60: Campeonato Nacional Juvenis (sub18)
F61: 2019-20 | J61: Campeonato Distrital Absolutos
F62: 2019-20 | J62: Jornada de Lançamentos - Etapa 5
F63: 2019-20 | J63: Campeonatos de Portugal em Pista
A66: 2099999 | B66: ADAL | C66: In/Out | D66: 2020-10-31 | E66: Fim da Época 2019-20 | F66: 2019-20

Sheet Modelo (hidden)
A1: Ser | B1: Cod | C1: Jorn | D1: Data | E1: Época | F1: Prova | G1: Local | H1: Tipo | I1: Especialidade | J1: Escalão | K1: Nasc | L1: Gen | M1: LicFPA | N1: Atleta | O1: Clube | P1: Marca | Q1: Gen+Esp+Dorsal | R1: Melhor | S1: MarcaC | T1: Vento | U1: Tipo Marca
A2: 1 | B2: 2024001 | D2: =IF(C2=2,VLOOKUP($B2,Competicoes!$A$2:$F$66,4,FALSE)+1,VLOOKUP($B2,Competicoes!$A$2:$F$66,4,FALSE)) -> 2019-11-09 | E2: =VLOOKUP($B2,Competicoes!$A$2:$F$66,6,FALSE) -> 2019-20 | F2: =VLOOKUP($B2,Competicoes!$A$2:$F$66,5,FALSE) -> Torneio de Abertura Prof. Mário Avelino | G2: =VLOOKUP($B2,Competicoes!$A$2:$F$66,2,FALSE) -> Óbidos | H2: =LEFT(VLOOKUP($B2,Competicoes!$A$2:$F$66,3,FALSE),2) -> AL | I2: 60 | J2: =VLOOKUP($M2,'Atletas2019-20'!$A$3:$G$1358,7,FALSE) -> Ben-B | K2: =VLOOKUP($M2,'Atletas2019-20'!$A$3:$F$1358,5,FALSE) -> 2009 | L2: =VLOOKUP($M2,'Atletas2019-20'!$A$3:$F$1358,3,FALSE) -> F | M2: 152002 | N2: =VLOOKUP($M2,'Atletas2019-20'!$A$3:$F$1358,2,FALSE) -> Matilde Silva | O2: =VLOOKUP($M2,'Atletas2019-20'!$A$3:$F$1358,6,FALSE) -> JV | P2: 10.2 | Q2: =L2&I2&M2 -> F60152002 | R2: =IF(COUNTIF($Q$2:Q2,Q2)=1,"SB","") -> SB | S2: =SIGN(P2)*P2 -> 10.2 | T2: -0.3 | U2: 1

Sheet Escaloes (hidden)
A1: Codigo | B1: Escalão
A2: 1 | B2: Ben-A
A3: 2 | B3: Ben-B
A4: 3 | B4: Inf
A5: 4 | B5: Ini
A6: 5 | B6: Juv
A7: 6 | B7: Jun
A8: 7 | B8: S23
A9: 8 | B9: Sen
A10: 9 | B10: Vet
A11: 9.35 | B11: V35
A12: 9.4 | B12: V40
A13: 9.45 | B13: V45
A14: 9.5 | B14: V50
A15: 9.55 | B15: V55
A16: 9.6 | B16: V60
A17: 9.65 | B17: V65
A18: 9.7 | B18: V70
A19: 9.75 | B19: V75
A20: 9.8 | B20: V80
A21: 9.85 | B21: V85
A22: 9.9 | B22: V90
A23: 9.95 | B23: Adap
A24: 9.96 | B24: Sdown
